Body,Body name,Service label,Service divison label,Expenditure category,Detailed expenses type,Detailed expense code,Date paid,Transaction number,Net amount,Capital or revenue,Supplier name ,
http://statistics.data.gov.uk/doc/local-authority/00DA,East - North East                    ,East - North East,Construction Services,Supplies and Services,Other Materials,205,15-Feb-2012,1202-00001,570.40,R,A Andrews & Sons (Marbles & Tiles),
http://statistics.data.gov.uk/doc/local-authority/00DA,Leeds City Council,City Development,Libraries  Arts & Heritage,Supplies and Services,Operational Materials,205,08-Feb-2012,1202-00002,423.33,R,A C Entertainment Technologies Ltd,
http://statistics.data.gov.uk/doc/local-authority/00DA,Leeds City Council,Adult Social Care,Roseville Enterprises,Supplies and Services,Operational Furniture And Equipment,203,24-Feb-2012,1202-00003,490.00,R,A D G Engineering Ltd,
http://statistics.data.gov.uk/doc/local-authority/00DA,Leeds City Council,Adult Social Care,Roseville Enterprises,Supplies and Services,Operational Furniture And Equipment,203,24-Feb-2012,1202-00004,850.00,R,A D G Engineering Ltd,
http://statistics.data.gov.uk/doc/local-authority/00DA,East - North East                    ,East - North East,Construction Services,Supplies and Services,Other Hired And Contracted Services,265,17-Feb-2012,1202-00005,2316.26,R,A D Simpson Construction Ltd,
http://statistics.data.gov.uk/doc/local-authority/00DA,East - North East                    ,East - North East,Construction Services,Supplies and Services,Other Hired And Contracted Services,265,17-Feb-2012,1202-00006,1009.54,R,A D Simpson Construction Ltd,
http://statistics.data.gov.uk/doc/local-authority/00DA,East - North East                    ,East - North East,Construction Services,Supplies and Services,Other Hired And Contracted Services,265,17-Feb-2012,1202-00007,707.65,R,A D Simpson Construction Ltd,
http://statistics.data.gov.uk/doc/local-authority/00DA,Leeds City Council,Childrens Services,Learning Skills & Universal,Third Party Payments,Services Rendered By Voluntary Sector,505,28-Feb-2012,1202-00008,921.00,R,A E Speight,
http://statistics.data.gov.uk/doc/local-authority/00DA,Leeds City Council,Central & Corporate Functions,Commercial Services Trading Services,Supplies and Services,Operational Materials,205,17-Feb-2012,1202-00009,442.00,R,A J H  Pump Supply & Repair Ltd,
http://statistics.data.gov.uk/doc/local-authority/00DA,Leeds City Council,Central & Corporate Functions,Commercial Services Trading Services,Supplies and Services,Other Hired And Contracted Services,265,22-Feb-2012,1202-00010,5250.00,R,A J H  Pump Supply & Repair Ltd,
http://statistics.data.gov.uk/doc/local-authority/00DA,Leeds City Council,Central & Corporate Functions,Commercial Services Trading Services,Supplies and Services,Operational Materials,205,24-Feb-2012,1202-00011,420.00,R,A J H  Pump Supply & Repair Ltd,
http://statistics.data.gov.uk/doc/local-authority/00DA,Leeds City Council,Central & Corporate Functions,Commercial Services Trading Services,Supplies and Services,Operational Materials,205,24-Feb-2012,1202-00012,1727.00,R,A J H  Pump Supply & Repair Ltd,
http://statistics.data.gov.uk/doc/local-authority/00DA,Leeds City Council,Central & Corporate Functions,Commercial Services Trading Services,Supplies and Services,Operational Materials,205,27-Feb-2012,1202-00013,515.00,R,A J H  Pump Supply & Repair Ltd,
http://statistics.data.gov.uk/doc/local-authority/00DA,Leeds City Council,City Development,Recreation,Supplies and Services,Resaleable Materials,204,13-Feb-2012,1202-00014,525.00,R,A J Promotions,
http://statistics.data.gov.uk/doc/local-authority/00DA,Leeds City Council,Childrens Services,Safeguarding Targeted & Specialist,Third Party Payments,General External Residential Placements,507,03-Feb-2012,1202-00015,13000.00,R,A Lowrie Care Service Limited,
http://statistics.data.gov.uk/doc/local-authority/00DA,Leeds City Council,Childrens Services,Safeguarding Targeted & Specialist,Third Party Payments,General External Residential Placements,507,03-Feb-2012,1202-00016,14000.00,R,A Lowrie Care Service Limited,
http://statistics.data.gov.uk/doc/local-authority/00DA,Leeds City Council,Childrens Services,Safeguarding Targeted & Specialist,Third Party Payments,General External Residential Placements,507,29-Feb-2012,1202-00017,13000.00,R,A Lowrie Care Service Limited,
http://statistics.data.gov.uk/doc/local-authority/00DA,Leeds City Council,Childrens Services,Safeguarding Targeted & Specialist,Third Party Payments,General External Residential Placements,507,29-Feb-2012,1202-00018,14000.00,R,A Lowrie Care Service Limited,
http://statistics.data.gov.uk/doc/local-authority/00DA,Leeds City Council,Environment & Neighbourhoods,Statutory Housing,Transport,Public Transport Expenses,310,09-Feb-2012,1202-00019,455.00,R,A Zoom Taxis,
http://statistics.data.gov.uk/doc/local-authority/00DA,Aire Valley Homes Leeds             ,Aire Valley Homes Leeds,Aire Valley Homes Leeds,Employees,General Training,079,02-Feb-2012,1202-00020,655.00,R,Aaa Training Co Ltd,
http://statistics.data.gov.uk/doc/local-authority/00DA,Leeds City Council,Adult Social Care,Services For Older People - 65 And Over,Third Party Payments,Residential Care Emi,571,15-Feb-2012,1202-00021,1170.76,R,Abbey Lea Residential Care Home,
http://statistics.data.gov.uk/doc/local-authority/00DA,Leeds City Council,Adult Social Care,Services For Adults Under 65 Mental/Dis,Third Party Payments,Residential,580,15-Feb-2012,1202-00022,1163.80,R,Abbeydale Care Home,
http://statistics.data.gov.uk/doc/local-authority/00DA,Leeds City Council,Childrens Services,Learning Skills & Universal,Third Party Payments,Services Rendered By Other Organisations,511,06-Feb-2012,1202-00023,8214.00,R,Abc Nursery At Lufc,
http://statistics.data.gov.uk/doc/local-authority/00DA,Leeds City Council,Childrens Services,Learning Skills & Universal,Third Party Payments,Services Rendered By Other Organisations,511,28-Feb-2012,1202-00024,599.00,R,Abc Nursery At Lufc,
http://statistics.data.gov.uk/doc/local-authority/00DA,Leeds City Council,Adult Social Care,Services For Older People - 65 And Over,Third Party Payments,Nursing Home,570,15-Feb-2012,1202-00025,18813.77,R,Aberford Hall,
http://statistics.data.gov.uk/doc/local-authority/00DA,Leeds City Council,Adult Social Care,Services For Older People - 65 And Over,Third Party Payments,Residential,580,15-Feb-2012,1202-00026,1146.36,R,Aberford Hall,
http://statistics.data.gov.uk/doc/local-authority/00DA,Leeds City Council,City Development,Economic Development,Supplies and Services,Other Hired And Contracted Services,265,14-Feb-2012,1202-00027,1400.00,R,Abi Bliss,
http://statistics.data.gov.uk/doc/local-authority/00DA,Leeds City Council,Central & Corporate Functions,Commercial Services Trading Services,Supplies and Services,Operational Materials,205,22-Feb-2012,1202-00028,495.00,R,Abi Garage Doors Ltd,
http://statistics.data.gov.uk/doc/local-authority/00DA,Leeds City Council,Environment & Neighbourhoods,Environmental Health,Capital,Construction,3,03-Feb-2012,1202-00029,2890.00,C,Able Bathing & Building Contractors Ltd,
http://statistics.data.gov.uk/doc/local-authority/00DA,Leeds City Council,Environment & Neighbourhoods,Environmental Health,Capital,Construction,3,03-Feb-2012,1202-00030,5405.46,C,Able Bathing & Building Contractors Ltd,
http://statistics.data.gov.uk/doc/local-authority/00DA,Leeds City Council,Environment & Neighbourhoods,Environmental Health,Capital,Construction,3,03-Feb-2012,1202-00031,5149.90,C,Able Bathing & Building Contractors Ltd,
http://statistics.data.gov.uk/doc/local-authority/00DA,Leeds City Council,Environment & Neighbourhoods,Environmental Health,Capital,Construction,3,03-Feb-2012,1202-00032,4150.00,C,Able Bathing & Building Contractors Ltd,
http://statistics.data.gov.uk/doc/local-authority/00DA,Leeds City Council,Environment & Neighbourhoods,Environmental Health,Capital,Construction,3,03-Feb-2012,1202-00033,4150.00,C,Able Bathing & Building Contractors Ltd,
http://statistics.data.gov.uk/doc/local-authority/00DA,Leeds City Council,Environment & Neighbourhoods,Environmental Health,Capital,Construction,3,03-Feb-2012,1202-00034,4150.00,C,Able Bathing & Building Contractors Ltd,
http://statistics.data.gov.uk/doc/local-authority/00DA,Leeds City Council,Environment & Neighbourhoods,Environmental Health,Capital,Construction,3,08-Feb-2012,1202-00035,4150.00,C,Able Bathing & Building Contractors Ltd,
http://statistics.data.gov.uk/doc/local-authority/00DA,Leeds City Council,Environment & Neighbourhoods,Environmental Health,Capital,Construction,3,08-Feb-2012,1202-00036,4150.00,C,Able Bathing & Building Contractors Ltd,
http://statistics.data.gov.uk/doc/local-authority/00DA,Leeds City Council,Environment & Neighbourhoods,Environmental Health,Capital,Construction,3,08-Feb-2012,1202-00037,4150.00,C,Able Bathing & Building Contractors Ltd,
http://statistics.data.gov.uk/doc/local-authority/00DA,Leeds City Council,Environment & Neighbourhoods,Environmental Health,Capital,Construction,3,09-Feb-2012,1202-00038,4370.00,C,Able Bathing & Building Contractors Ltd,
http://statistics.data.gov.uk/doc/local-authority/00DA,Leeds City Council,Environment & Neighbourhoods,Environmental Health,Capital,Construction,3,09-Feb-2012,1202-00039,4150.00,C,Able Bathing & Building Contractors Ltd,
http://statistics.data.gov.uk/doc/local-authority/00DA,Leeds City Council,Environment & Neighbourhoods,Environmental Health,Capital,Construction,3,09-Feb-2012,1202-00040,4150.00,C,Able Bathing & Building Contractors Ltd,
http://statistics.data.gov.uk/doc/local-authority/00DA,Leeds City Council,Environment & Neighbourhoods,Environmental Health,Capital,Construction,3,16-Feb-2012,1202-00041,1500.00,C,Able Bathing & Building Contractors Ltd,
http://statistics.data.gov.uk/doc/local-authority/00DA,Leeds City Council,Environment & Neighbourhoods,Environmental Health,Capital,Construction,3,16-Feb-2012,1202-00042,4150.00,C,Able Bathing & Building Contractors Ltd,
http://statistics.data.gov.uk/doc/local-authority/00DA,Leeds City Council,Environment & Neighbourhoods,Environmental Health,Capital,Construction,3,20-Feb-2012,1202-00043,4150.00,C,Able Bathing & Building Contractors Ltd,
http://statistics.data.gov.uk/doc/local-authority/00DA,Leeds City Council,Environment & Neighbourhoods,Environmental Health,Capital,Construction,3,20-Feb-2012,1202-00044,4150.00,C,Able Bathing & Building Contractors Ltd,
http://statistics.data.gov.uk/doc/local-authority/00DA,Leeds City Council,Environment & Neighbourhoods,Environmental Health,Capital,Construction,3,20-Feb-2012,1202-00045,2865.87,C,Able Bathing & Building Contractors Ltd,
http://statistics.data.gov.uk/doc/local-authority/00DA,Leeds City Council,Environment & Neighbourhoods,Environmental Health,Capital,Construction,3,20-Feb-2012,1202-00046,4150.00,C,Able Bathing & Building Contractors Ltd,
http://statistics.data.gov.uk/doc/local-authority/00DA,Leeds City Council,Environment & Neighbourhoods,Environmental Health,Capital,Construction,3,20-Feb-2012,1202-00047,4150.00,C,Able Bathing & Building Contractors Ltd,
http://statistics.data.gov.uk/doc/local-authority/00DA,Leeds City Council,Environment & Neighbourhoods,Environmental Health,Capital,Construction,3,20-Feb-2012,1202-00048,4150.00,C,Able Bathing & Building Contractors Ltd,
http://statistics.data.gov.uk/doc/local-authority/00DA,Leeds City Council,Environment & Neighbourhoods,Environmental Health,Capital,Construction,3,20-Feb-2012,1202-00049,4377.05,C,Able Bathing & Building Contractors Ltd,
http://statistics.data.gov.uk/doc/local-authority/00DA,Leeds City Council,Environment & Neighbourhoods,Environmental Health,Capital,Construction,3,24-Feb-2012,1202-00050,4150.00,C,Able Bathing & Building Contractors Ltd,
http://statistics.data.gov.uk/doc/local-authority/00DA,Leeds City Council,Environment & Neighbourhoods,Environmental Health,Capital,Construction,3,24-Feb-2012,1202-00051,4150.00,C,Able Bathing & Building Contractors Ltd,
http://statistics.data.gov.uk/doc/local-authority/00DA,Leeds City Council,Environment & Neighbourhoods,Environmental Health,Capital,Construction,3,24-Feb-2012,1202-00052,4380.00,C,Able Bathing & Building Contractors Ltd,
http://statistics.data.gov.uk/doc/local-authority/00DA,Leeds City Council,Environment & Neighbourhoods,Environmental Health,Capital,Construction,3,24-Feb-2012,1202-00053,2890.00,C,Able Bathing & Building Contractors Ltd,
http://statistics.data.gov.uk/doc/local-authority/00DA,Leeds City Council,Environment & Neighbourhoods,Environmental Health,Capital,Construction,3,24-Feb-2012,1202-00054,5048.50,C,Able Bathing & Building Contractors Ltd,
http://statistics.data.gov.uk/doc/local-authority/00DA,Leeds City Council,Environment & Neighbourhoods,Environmental Health,Capital,Construction,3,24-Feb-2012,1202-00055,4990.00,C,Able Bathing & Building Contractors Ltd,
http://statistics.data.gov.uk/doc/local-authority/00DA,Leeds City Council,Childrens Services,Learning Skills & Universal,Employees,Agency Staff,008,02-Feb-2012,1202-00056,444.00,R,Academic Appointments Ltd,
http://statistics.data.gov.uk/doc/local-authority/00DA,Leeds City Council,Childrens Services,Learning Skills & Universal,Employees,Agency Staff,008,02-Feb-2012,1202-00057,444.00,R,Academic Appointments Ltd,
http://statistics.data.gov.uk/doc/local-authority/00DA,Leeds City Council,Childrens Services,Learning Skills & Universal,Employees,Agency Staff,008,13-Feb-2012,1202-00058,600.00,R,Academic Appointments Ltd,
http://statistics.data.gov.uk/doc/local-authority/00DA,Leeds City Council,Childrens Services,Learning Skills & Universal,Employees,Agency Staff,008,16-Feb-2012,1202-00059,444.00,R,Academic Appointments Ltd,
http://statistics.data.gov.uk/doc/local-authority/00DA,Leeds City Council,Adult Social Care,Services For Adults Under 65 Learn/Dis,Premises,Rents,141,08-Feb-2012,1202-00060,546.00,R,Accent Foundation,
http://statistics.data.gov.uk/doc/local-authority/00DA,Leeds City Council,Environment & Neighbourhoods,Environmental Health,Capital,Construction,3,16-Feb-2012,1202-00061,1560.60,C,Accent Homes Ltd,
http://statistics.data.gov.uk/doc/local-authority/00DA,East - North East                    ,East - North East,Technical Services,Premises,General Maintenance,104,03-Feb-2012,1202-00062,549.50,R,Access Locksmiths (Leeds) Limited,
http://statistics.data.gov.uk/doc/local-authority/00DA,East - North East                    ,East - North East,Technical Services,Premises,H.R.A. - Repairs A To P,107,17-Feb-2012,1202-00063,550.00,R,Access Maintenance Solutions Ltd,
http://statistics.data.gov.uk/doc/local-authority/00DA,East - North East                    ,East - North East,Technical Services,Premises,H.R.A. - Repairs A To P,107,17-Feb-2012,1202-00064,450.00,R,Access Maintenance Solutions Ltd,
http://statistics.data.gov.uk/doc/local-authority/00DA,East - North East                    ,East - North East,Technical Services,Premises,H.R.A. - Repairs A To P,107,23-Feb-2012,1202-00065,580.00,R,Access Maintenance Solutions Ltd,
http://statistics.data.gov.uk/doc/local-authority/00DA,East - North East                    ,East - North East,Technical Services,Premises,H.R.A. - Repairs A To P,107,23-Feb-2012,1202-00066,460.00,R,Access Maintenance Solutions Ltd,
http://statistics.data.gov.uk/doc/local-authority/00DA,Leeds City Council,City Development,Recreation,Supplies and Services,Security Services(Non Infrastructure),262,03-Feb-2012,1202-00067,1397.28,R,Acclaimed Security Services,
http://statistics.data.gov.uk/doc/local-authority/00DA,Leeds City Council,City Development,Recreation,Supplies and Services,Security Services(Non Infrastructure),262,09-Feb-2012,1202-00068,1146.36,R,Acclaimed Security Services,
http://statistics.data.gov.uk/doc/local-authority/00DA,Leeds City Council,City Development,Recreation,Supplies and Services,Security Services(Non Infrastructure),262,17-Feb-2012,1202-00069,1702.32,R,Acclaimed Security Services,
http://statistics.data.gov.uk/doc/local-authority/00DA,Leeds City Council,City Development,Recreation,Supplies and Services,Security Services(Non Infrastructure),262,17-Feb-2012,1202-00070,1210.32,R,Acclaimed Security Services,
http://statistics.data.gov.uk/doc/local-authority/00DA,Leeds City Council,Adult Social Care,Services For Older People Under 65 P/Dis,Supplies and Services,Operational Furniture And Equipment,203,24-Feb-2012,1202-00071,1115.00,R,Accora,
http://statistics.data.gov.uk/doc/local-authority/00DA,Leeds City Council,Childrens Services,Learning Skills & Universal,Supplies and Services,Other Hired And Contracted Services,265,01-Feb-2012,1202-00072,560.00,R,Ache Community & Young Peoples Centre,
http://statistics.data.gov.uk/doc/local-authority/00DA,Leeds City Council,Central & Corporate Functions,Commercial Services Trading Services,Supplies and Services,Other Hired And Contracted Services,265,21-Feb-2012,1202-00073,480.00,R,Acm,
http://statistics.data.gov.uk/doc/local-authority/00DA,Leeds City Council,Central & Corporate Functions,Commercial Services Trading Services,Supplies and Services,Other Hired And Contracted Services,265,21-Feb-2012,1202-00074,480.00,R,Acm,
http://statistics.data.gov.uk/doc/local-authority/00DA,Leeds City Council,Central & Corporate Functions,Commercial Services Trading Services,Supplies and Services,Other Hired And Contracted Services,265,21-Feb-2012,1202-00075,590.00,R,Acm,
http://statistics.data.gov.uk/doc/local-authority/00DA,Leeds City Council,Central & Corporate Functions,Commercial Services Trading Services,Supplies and Services,Other Hired And Contracted Services,265,21-Feb-2012,1202-00076,1800.00,R,Acm,
http://statistics.data.gov.uk/doc/local-authority/00DA,Leeds City Council,Central & Corporate Functions,Commercial Services Trading Services,Supplies and Services,Other Hired And Contracted Services,265,21-Feb-2012,1202-00077,3300.00,R,Acm,
http://statistics.data.gov.uk/doc/local-authority/00DA,Leeds City Council,Adult Social Care,Services For Older People - 65 And Over,Third Party Payments,Nursing Home,570,15-Feb-2012,1202-00078,18955.84,R,Acre Green,
http://statistics.data.gov.uk/doc/local-authority/00DA,Leeds City Council,Adult Social Care,Services For Older People Under 65 P/Dis,Third Party Payments,Nursing Home,570,15-Feb-2012,1202-00079,1645.08,R,Acre Green,
http://statistics.data.gov.uk/doc/local-authority/00DA,Leeds City Council,Adult Social Care,Services For Older People - 65 And Over,Third Party Payments,Nursing Care Emi,574,15-Feb-2012,1202-00080,1824.68,R,Acre Green,
http://statistics.data.gov.uk/doc/local-authority/00DA,Leeds City Council,Adult Social Care,Services For Adults Under 65 Mental/Dis,Third Party Payments,Residential,580,15-Feb-2012,1202-00081,1718.12,R,Acre Green,
http://statistics.data.gov.uk/doc/local-authority/00DA,Leeds City Council,Adult Social Care,Services For Older People - 65 And Over,Third Party Payments,Residential,580,15-Feb-2012,1202-00082,17263.81,R,Acre Green,
http://statistics.data.gov.uk/doc/local-authority/00DA,Leeds City Council,Adult Social Care,Services For Older People Under 65 P/Dis,Third Party Payments,Residential,580,15-Feb-2012,1202-00083,1259.12,R,Acre Green,
http://statistics.data.gov.uk/doc/local-authority/00DA,Leeds City Council,Childrens Services,Learning Skills & Universal,Third Party Payments,Services Rendered By Other Organisations,511,06-Feb-2012,1202-00084,11322.00,R,Acre Wood Childrens Nursery,
http://statistics.data.gov.uk/doc/local-authority/00DA,Leeds City Council,Childrens Services,Learning Skills & Universal,Third Party Payments,Services Rendered By Other Organisations,511,28-Feb-2012,1202-00085,632.00,R,Acre Wood Childrens Nursery,
http://statistics.data.gov.uk/doc/local-authority/00DA,Leeds City Council,City Development,Highways,Supplies and Services,Memberships,226,16-Feb-2012,1202-00086,495.00,R,Act Travelwise,
http://statistics.data.gov.uk/doc/local-authority/00DA,Leeds City Council,Childrens Services,Safeguarding Targeted & Specialist,Third Party Payments,Independent Fostering Agencies,509,03-Feb-2012,1202-00087,4774.00,R,Action For Children,
http://statistics.data.gov.uk/doc/local-authority/00DA,Leeds City Council,Childrens Services,Safeguarding Targeted & Specialist,Third Party Payments,Independent Fostering Agencies,509,03-Feb-2012,1202-00088,2559.20,R,Action For Children,
http://statistics.data.gov.uk/doc/local-authority/00DA,Leeds City Council,Childrens Services,Safeguarding Targeted & Specialist,Third Party Payments,Adoptions - Allowances,560,06-Feb-2012,1202-00089,1194.00,R,Action For Children,
http://statistics.data.gov.uk/doc/local-authority/00DA,Leeds City Council,Childrens Services,Safeguarding Targeted & Specialist,Third Party Payments,Adoptions - Allowances,560,06-Feb-2012,1202-00090,6065.06,R,Action For Children,
http://statistics.data.gov.uk/doc/local-authority/00DA,Leeds City Council,Childrens Services,Safeguarding Targeted & Specialist,Third Party Payments,Adoptions - Allowances,560,20-Feb-2012,1202-00091,825.00,R,Action For Children,
http://statistics.data.gov.uk/doc/local-authority/00DA,Leeds City Council,Childrens Services,Safeguarding Targeted & Specialist,Third Party Payments,Adoptions - Allowances,560,28-Feb-2012,1202-00092,3863.00,R,Action For Children,
http://statistics.data.gov.uk/doc/local-authority/00DA,Leeds City Council,Childrens Services,Learning Skills & Universal,Third Party Payments,Services Rendered By Other Organisations,511,06-Feb-2012,1202-00093,8391.60,R,Active Kids Day Nursery,
http://statistics.data.gov.uk/doc/local-authority/00DA,Leeds City Council,City Development,Recreation,Supplies and Services,Bought In Professional Services,277,09-Feb-2012,1202-00094,4204.66,R,Ad Golf Management Ltd,
http://statistics.data.gov.uk/doc/local-authority/00DA,Leeds City Council,Central & Corporate Functions,Support And Facilities Trading Services,Supplies and Services,Other Hired And Contracted Services,265,15-Feb-2012,1202-00095,1139.00,R,Ad3 Envelope Printers Limited,
http://statistics.data.gov.uk/doc/local-authority/00DA,Leeds City Council,Central & Corporate Functions,Support And Facilities Trading Services,Supplies and Services,Other Hired And Contracted Services,265,21-Feb-2012,1202-00096,5275.00,R,Ad3 Envelope Printers Limited,
http://statistics.data.gov.uk/doc/local-authority/00DA,Leeds City Council,City Development,Recreation,Supplies and Services,Other Hired And Contracted Services,265,13-Feb-2012,1202-00097,7868.00,R,Addlestone Moumouris Orme & Sixsmith,
http://statistics.data.gov.uk/doc/local-authority/00DA,Leeds City Council,Childrens Services,Learning Skills & Universal,Third Party Payments,Services Rendered By Voluntary Sector,505,28-Feb-2012,1202-00098,442.00,R,Adel Pre School,
http://statistics.data.gov.uk/doc/local-authority/00DA,Leeds City Council,Childrens Services,Safeguarding Targeted & Specialist,Third Party Payments,Adoptions - Allowances,560,20-Feb-2012,1202-00099,1194.00,R,Adoption Matters Northwest,
http://statistics.data.gov.uk/doc/local-authority/00DA,Leeds City Council,Environment & Neighbourhoods,Safer Leeds Drugs Team,Third Party Payments,Services Rendered By Voluntary Sector,505,03-Feb-2012,1202-00100,10000.00,R,Ads,
http://statistics.data.gov.uk/doc/local-authority/00DA,Leeds City Council,Adult Social Care,Other Adult Services,Third Party Payments,Residential - Drugs & Alcohol,583,03-Feb-2012,1202-00101,18656.25,R,Ads,
http://statistics.data.gov.uk/doc/local-authority/00DA,Leeds City Council,City Development,Asset Management Services,Premises,Maintenance Of Buildings,101,15-Feb-2012,1202-00102,426.46,R,Adt Fire And Security,
http://statistics.data.gov.uk/doc/local-authority/00DA,East - North East                    ,East - North East,Construction Services,Premises,Buildings,101,29-Feb-2012,1202-00103,463.82,R,Adt Fire And Security,
http://statistics.data.gov.uk/doc/local-authority/00DA,Leeds City Council,Adult Social Care,Services For Adults Under 65 Mental/Dis,Third Party Payments,Nursing Home,570,16-Feb-2012,1202-00104,1562.20,R,Adult Supported Living Ltd,
http://statistics.data.gov.uk/doc/local-authority/00DA,Leeds City Council as Accountable Body,Social Services Pooled Budgets,Jcs For People With Learning Disabilitie,Third Party Payments,Home Care,568,02-Feb-2012,1202-00105,936.50,R,Advantage Healthcare Nursing &,
http://statistics.data.gov.uk/doc/local-authority/00DA,Leeds City Council as Accountable Body,Social Services Pooled Budgets,Jcs For People With Learning Disabilitie,Third Party Payments,Home Care,568,03-Feb-2012,1202-00106,916.50,R,Advantage Healthcare Nursing &,
http://statistics.data.gov.uk/doc/local-authority/00DA,Leeds City Council as Accountable Body,Social Services Pooled Budgets,Jcs For People With Learning Disabilitie,Third Party Payments,Home Care,568,10-Feb-2012,1202-00107,3244.99,R,Advantage Healthcare Nursing &,
http://statistics.data.gov.uk/doc/local-authority/00DA,Leeds City Council as Accountable Body,Social Services Pooled Budgets,Jcs For People With Learning Disabilitie,Third Party Payments,Home Care,568,17-Feb-2012,1202-00108,916.50,R,Advantage Healthcare Nursing &,
http://statistics.data.gov.uk/doc/local-authority/00DA,Leeds City Council as Accountable Body,Social Services Pooled Budgets,Jcs For People With Learning Disabilitie,Third Party Payments,Residential,580,15-Feb-2012,1202-00109,17892.96,R,Advitam Ltd,
http://statistics.data.gov.uk/doc/local-authority/00DA,Leeds City Council,Adult Social Care,Services For Adults Under 65 Mental/Dis,Third Party Payments,Payments To Voluntary Organisations,561,16-Feb-2012,1202-00110,23156.00,R,Advocacy For Mental Health And Dementia,
http://statistics.data.gov.uk/doc/local-authority/00DA,Leeds City Council,Childrens Services,Safeguarding Targeted & Specialist,Support Services,Legal Disbursements,411,16-Feb-2012,1202-00111,1021.00,R,Aelred Hookway,
http://statistics.data.gov.uk/doc/local-authority/00DA,Leeds City Council as Accountable Body,Social Services Pooled Budgets,Jcs For People With Learning Disabilitie,Third Party Payments,Day Centre,564,09-Feb-2012,1202-00112,-2681.08,R,Affinity Trust,
http://statistics.data.gov.uk/doc/local-authority/00DA,Leeds City Council as Accountable Body,Social Services Pooled Budgets,Jcs For People With Learning Disabilitie,Third Party Payments,Home Care,568,09-Feb-2012,1202-00113,925.10,R,Affinity Trust,
http://statistics.data.gov.uk/doc/local-authority/00DA,Leeds City Council as Accountable Body,Social Services Pooled Budgets,Jcs For People With Learning Disabilitie,Third Party Payments,Home Care,568,09-Feb-2012,1202-00114,1020.00,R,Affinity Trust,
http://statistics.data.gov.uk/doc/local-authority/00DA,Leeds City Council as Accountable Body,Social Services Pooled Budgets,Jcs For People With Learning Disabilitie,Third Party Payments,Day Centre,564,09-Feb-2012,1202-00115,570.80,R,Affinity Trust,
http://statistics.data.gov.uk/doc/local-authority/00DA,Leeds City Council as Accountable Body,Social Services Pooled Budgets,Jcs For People With Learning Disabilitie,Third Party Payments,Home Care,568,09-Feb-2012,1202-00116,1277.62,R,Affinity Trust,
http://statistics.data.gov.uk/doc/local-authority/00DA,Leeds City Council as Accountable Body,Social Services Pooled Budgets,Jcs For People With Learning Disabilitie,Third Party Payments,Home Care,568,09-Feb-2012,1202-00117,958.74,R,Affinity Trust,
http://statistics.data.gov.uk/doc/local-authority/00DA,Leeds City Council as Accountable Body,Social Services Pooled Budgets,Jcs For People With Learning Disabilitie,Third Party Payments,Home Care,568,09-Feb-2012,1202-00118,597.00,R,Affinity Trust,
http://statistics.data.gov.uk/doc/local-authority/00DA,Leeds City Council as Accountable Body,Social Services Pooled Budgets,Jcs For People With Learning Disabilitie,Third Party Payments,Home Care,568,09-Feb-2012,1202-00119,504.60,R,Affinity Trust,
http://statistics.data.gov.uk/doc/local-authority/00DA,Leeds City Council,Adult Social Care,Services For Older People - 65 And Over,Third Party Payments,Residential,580,09-Feb-2012,1202-00120,454.14,R,Affinity Trust,
http://statistics.data.gov.uk/doc/local-authority/00DA,Leeds City Council,Adult Social Care,Services For Adults Under 65 Mental/Dis,Third Party Payments,Home Care,568,09-Feb-2012,1202-00121,925.65,R,Affinity Trust,
http://statistics.data.gov.uk/doc/local-authority/00DA,Leeds City Council as Accountable Body,Social Services Pooled Budgets,Jcs For People With Learning Disabilitie,Third Party Payments,Home Care,568,09-Feb-2012,1202-00122,510.80,R,Affinity Trust,
http://statistics.data.gov.uk/doc/local-authority/00DA,Leeds City Council as Accountable Body,Social Services Pooled Budgets,Jcs For People With Learning Disabilitie,Third Party Payments,Home Care,568,09-Feb-2012,1202-00123,672.80,R,Affinity Trust,
http://statistics.data.gov.uk/doc/local-authority/00DA,Leeds City Council as Accountable Body,Social Services Pooled Budgets,Jcs For People With Learning Disabilitie,Third Party Payments,Day Centre,564,09-Feb-2012,1202-00124,2916.25,R,Affinity Trust,
http://statistics.data.gov.uk/doc/local-authority/00DA,Leeds City Council as Accountable Body,Social Services Pooled Budgets,Jcs For People With Learning Disabilitie,Third Party Payments,Home Care,568,09-Feb-2012,1202-00125,1607.80,R,Affinity Trust,
http://statistics.data.gov.uk/doc/local-authority/00DA,Leeds City Council as Accountable Body,Social Services Pooled Budgets,Jcs For People With Learning Disabilitie,Third Party Payments,Home Care,568,09-Feb-2012,1202-00126,564.30,R,Affinity Trust,
http://statistics.data.gov.uk/doc/local-authority/00DA,Leeds City Council as Accountable Body,Social Services Pooled Budgets,Jcs For People With Learning Disabilitie,Third Party Payments,Day Centre,564,09-Feb-2012,1202-00127,1316.70,R,Affinity Trust,
http://statistics.data.gov.uk/doc/local-authority/00DA,Leeds City Council as Accountable Body,Social Services Pooled Budgets,Jcs For People With Learning Disabilitie,Third Party Payments,Day Centre,564,09-Feb-2012,1202-00128,4308.50,R,Affinity Trust,
http://statistics.data.gov.uk/doc/local-authority/00DA,Leeds City Council as Accountable Body,Social Services Pooled Budgets,Jcs For People With Learning Disabilitie,Third Party Payments,Day Centre,564,09-Feb-2012,1202-00129,876.26,R,Affinity Trust,
http://statistics.data.gov.uk/doc/local-authority/00DA,Leeds City Council as Accountable Body,Social Services Pooled Budgets,Jcs For People With Learning Disabilitie,Third Party Payments,Day Centre,564,09-Feb-2012,1202-00130,3733.92,R,Affinity Trust,
http://statistics.data.gov.uk/doc/local-authority/00DA,Leeds City Council as Accountable Body,Social Services Pooled Budgets,Jcs For People With Learning Disabilitie,Third Party Payments,Day Centre,564,09-Feb-2012,1202-00131,586.60,R,Affinity Trust,
http://statistics.data.gov.uk/doc/local-authority/00DA,Leeds City Council as Accountable Body,Social Services Pooled Budgets,Jcs For People With Learning Disabilitie,Third Party Payments,Residential,580,09-Feb-2012,1202-00132,1462.85,R,Affinity Trust,
http://statistics.data.gov.uk/doc/local-authority/00DA,Leeds City Council as Accountable Body,Social Services Pooled Budgets,Jcs For People With Learning Disabilitie,Third Party Payments,Home Care,568,09-Feb-2012,1202-00133,1005.60,R,Affinity Trust,
http://statistics.data.gov.uk/doc/local-authority/00DA,Leeds City Council as Accountable Body,Social Services Pooled Budgets,Jcs For People With Learning Disabilitie,Third Party Payments,Home Care,568,09-Feb-2012,1202-00134,754.20,R,Affinity Trust,
http://statistics.data.gov.uk/doc/local-authority/00DA,Leeds City Council,Adult Social Care,Services For Older People - 65 And Over,Third Party Payments,Residential,580,09-Feb-2012,1202-00135,658.35,R,Affinity Trust,
http://statistics.data.gov.uk/doc/local-authority/00DA,Leeds City Council as Accountable Body,Social Services Pooled Budgets,Jcs For People With Learning Disabilitie,Third Party Payments,Home Care,568,09-Feb-2012,1202-00136,1055.88,R,Affinity Trust,
http://statistics.data.gov.uk/doc/local-authority/00DA,Leeds City Council as Accountable Body,Social Services Pooled Budgets,Jcs For People With Learning Disabilitie,Third Party Payments,Day Centre,564,09-Feb-2012,1202-00137,761.81,R,Affinity Trust,
http://statistics.data.gov.uk/doc/local-authority/00DA,Leeds City Council as Accountable Body,Social Services Pooled Budgets,Jcs For People With Learning Disabilitie,Third Party Payments,Day Centre,564,09-Feb-2012,1202-00138,2933.00,R,Affinity Trust,
http://statistics.data.gov.uk/doc/local-authority/00DA,Leeds City Council as Accountable Body,Social Services Pooled Budgets,Jcs For People With Learning Disabilitie,Third Party Payments,Residential,580,09-Feb-2012,1202-00139,1005.60,R,Affinity Trust,
http://statistics.data.gov.uk/doc/local-authority/00DA,Leeds City Council as Accountable Body,Social Services Pooled Budgets,Jcs For People With Learning Disabilitie,Third Party Payments,Home Care,568,10-Feb-2012,1202-00140,5521.60,R,Affinity Trust,
http://statistics.data.gov.uk/doc/local-authority/00DA,Leeds City Council as Accountable Body,Social Services Pooled Budgets,Jcs For People With Learning Disabilitie,Third Party Payments,Home Care,568,10-Feb-2012,1202-00141,2681.60,R,Affinity Trust,
http://statistics.data.gov.uk/doc/local-authority/00DA,Leeds City Council as Accountable Body,Social Services Pooled Budgets,Jcs For People With Learning Disabilitie,Third Party Payments,Home Care,568,10-Feb-2012,1202-00142,5144.32,R,Affinity Trust,
http://statistics.data.gov.uk/doc/local-authority/00DA,Leeds City Council as Accountable Body,Social Services Pooled Budgets,Jcs For People With Learning Disabilitie,Third Party Payments,Day Centre,564,16-Feb-2012,1202-00143,430.88,R,Affinity Trust,
http://statistics.data.gov.uk/doc/local-authority/00DA,Leeds City Council as Accountable Body,Social Services Pooled Budgets,Jcs For People With Learning Disabilitie,Third Party Payments,Home Care,568,22-Feb-2012,1202-00144,6193.32,R,Affinity Trust,
http://statistics.data.gov.uk/doc/local-authority/00DA,Leeds City Council as Accountable Body,Social Services Pooled Budgets,Jcs For People With Learning Disabilitie,Third Party Payments,Home Care,568,22-Feb-2012,1202-00145,3848.08,R,Affinity Trust,
http://statistics.data.gov.uk/doc/local-authority/00DA,Leeds City Council as Accountable Body,Social Services Pooled Budgets,Jcs For People With Learning Disabilitie,Third Party Payments,Home Care,568,22-Feb-2012,1202-00146,3848.08,R,Affinity Trust,
http://statistics.data.gov.uk/doc/local-authority/00DA,Leeds City Council as Accountable Body,Social Services Pooled Budgets,Jcs For People With Learning Disabilitie,Third Party Payments,Residential,580,08-Feb-2012,1202-00147,3510.27,R,Affinity Trust North Divisional Office,
http://statistics.data.gov.uk/doc/local-authority/00DA,Leeds City Council,Central & Corporate Functions,Commercial Services Trading Services,Supplies and Services,Other Hired And Contracted Services,265,17-Feb-2012,1202-00148,4500.00,R,Age Uk Leeds,
http://statistics.data.gov.uk/doc/local-authority/00DA,Leeds City Council,Environment & Neighbourhoods,Strategy & Commissioning,Third Party Payments,Supporting Ppl - Block Gross Chargeable,514,24-Feb-2012,1202-00149,3816.33,R,Age Uk Leeds,
http://statistics.data.gov.uk/doc/local-authority/00DA,Leeds City Council,Adult Social Care,Services For Older People Under 65 P/Dis,Third Party Payments,Residential,580,15-Feb-2012,1202-00150,5652.04,R,Agricola House,
http://statistics.data.gov.uk/doc/local-authority/00DA,Leeds City Council as Accountable Body,Social Services Pooled Budgets,Leeds Community Equip Store Pooled Budgt,Supplies and Services,Other Equipment,203,07-Feb-2012,1202-00151,795.00,R,Aidapt Bathrooms Ltd,
http://statistics.data.gov.uk/doc/local-authority/00DA,Leeds City Council as Accountable Body,Social Services Pooled Budgets,Leeds Community Equip Store Pooled Budgt,Supplies and Services,Other Equipment,203,07-Feb-2012,1202-00152,606.72,R,Aidapt Bathrooms Ltd,
http://statistics.data.gov.uk/doc/local-authority/00DA,Leeds City Council as Accountable Body,Social Services Pooled Budgets,Leeds Community Equip Store Pooled Budgt,Supplies and Services,Other Equipment,203,08-Feb-2012,1202-00153,654.00,R,Aidapt Bathrooms Ltd,
http://statistics.data.gov.uk/doc/local-authority/00DA,Leeds City Council as Accountable Body,Social Services Pooled Budgets,Leeds Community Equip Store Pooled Budgt,Supplies and Services,Other Equipment,203,09-Feb-2012,1202-00154,1935.00,R,Aidapt Bathrooms Ltd,
http://statistics.data.gov.uk/doc/local-authority/00DA,Leeds City Council as Accountable Body,Social Services Pooled Budgets,Leeds Community Equip Store Pooled Budgt,Supplies and Services,Other Equipment,203,10-Feb-2012,1202-00155,1663.00,R,Aidapt Bathrooms Ltd,
http://statistics.data.gov.uk/doc/local-authority/00DA,Leeds City Council as Accountable Body,Social Services Pooled Budgets,Leeds Community Equip Store Pooled Budgt,Supplies and Services,Other Equipment,203,17-Feb-2012,1202-00156,436.00,R,Aidapt Bathrooms Ltd,
http://statistics.data.gov.uk/doc/local-authority/00DA,Leeds City Council as Accountable Body,Social Services Pooled Budgets,Leeds Community Equip Store Pooled Budgt,Supplies and Services,Other Equipment,203,24-Feb-2012,1202-00157,490.50,R,Aidapt Bathrooms Ltd,
http://statistics.data.gov.uk/doc/local-authority/00DA,Leeds City Council as Accountable Body,Social Services Pooled Budgets,Leeds Community Equip Store Pooled Budgt,Supplies and Services,Other Equipment,203,29-Feb-2012,1202-00158,1038.00,R,Aidapt Bathrooms Ltd,
http://statistics.data.gov.uk/doc/local-authority/00DA,Leeds City Council,Childrens Services,Safeguarding Targeted & Specialist,Supplies and Services,Operational Furniture And Equipment,203,10-Feb-2012,1202-00159,519.00,R,Aidservice Ltd,
http://statistics.data.gov.uk/doc/local-authority/00DA,Leeds City Council,City Development,Economic Development,Supplies and Services,City Centre Enhancement,295,20-Feb-2012,1202-00160,1037.50,R,Aig Edenspiekermann Ltd,
http://statistics.data.gov.uk/doc/local-authority/00DA,Leeds City Council as Accountable Body,Social Services Pooled Budgets,Jcs For People With Learning Disabilitie,Third Party Payments,Residential,580,15-Feb-2012,1202-00161,7027.24,R,Aire House,
http://statistics.data.gov.uk/doc/local-authority/00DA,East - North East                    ,East - North East,Business Improvement,Premises,Other,114,15-Feb-2012,1202-00162,920.00,R,Aire Valley Landscaping Services Ltd,
http://statistics.data.gov.uk/doc/local-authority/00DA,East - North East                    ,East - North East,Business Improvement,Premises,Other,114,21-Feb-2012,1202-00163,590.00,R,Aire Valley Landscaping Services Ltd,
http://statistics.data.gov.uk/doc/local-authority/00DA,East - North East                    ,East - North East,Housing Services,Premises,Grounds Maintenance (Closed Landfill),134,16-Feb-2012,1202-00164,875.00,R,Aire Valley Tree Services Ltd,
http://statistics.data.gov.uk/doc/local-authority/00DA,Leeds City Council,Adult Social Care,Services For Older People - 65 And Over,Third Party Payments,Residential Care Emi,571,15-Feb-2012,1202-00165,36123.59,R,Aire View Residential Home,
http://statistics.data.gov.uk/doc/local-authority/00DA,Leeds City Council,Adult Social Care,Services For Adults Under 65 Mental/Dis,Third Party Payments,Residential,580,15-Feb-2012,1202-00166,2530.60,R,Aire View Residential Home,
http://statistics.data.gov.uk/doc/local-authority/00DA,Leeds City Council,Adult Social Care,Services For Older People - 65 And Over,Third Party Payments,Residential,580,15-Feb-2012,1202-00167,12659.81,R,Aire View Residential Home,
http://statistics.data.gov.uk/doc/local-authority/00DA,Leeds City Council,Central & Corporate Functions,Executive Support,Supplies and Services,Well Being Small Grants Projects,228,07-Feb-2012,1202-00168,500.00,R,Aireborough Voluntary Services,
http://statistics.data.gov.uk/doc/local-authority/00DA,Leeds City Council,Adult Social Care,Services For Older People - 65 And Over,Third Party Payments,Residential,580,15-Feb-2012,1202-00169,27498.36,R,Airedale (Goldsborough),
http://statistics.data.gov.uk/doc/local-authority/00DA,Leeds City Council,Adult Social Care,Services For Older People - 65 And Over,Third Party Payments,Home Care,568,24-Feb-2012,1202-00170,10407.29,R,Aj Social Care,
http://statistics.data.gov.uk/doc/local-authority/00DA,Leeds City Council,Adult Social Care,Services For Older People Under 65 P/Dis,Third Party Payments,Home Care,568,24-Feb-2012,1202-00171,1173.50,R,Aj Social Care,
http://statistics.data.gov.uk/doc/local-authority/00DA,Leeds City Council,Adult Social Care,Services For Older People - 65 And Over,Third Party Payments,Home Care,568,24-Feb-2012,1202-00172,716.80,R,Aj Social Care,
http://statistics.data.gov.uk/doc/local-authority/00DA,Leeds City Council,Adult Social Care,Services For Older People Under 65 P/Dis,Third Party Payments,Home Care,568,24-Feb-2012,1202-00173,1075.20,R,Aj Social Care,
http://statistics.data.gov.uk/doc/local-authority/00DA,Leeds City Council,Adult Social Care,Services For Older People - 65 And Over,Third Party Payments,Home Care,568,24-Feb-2012,1202-00174,3298.46,R,Aj Social Care,
http://statistics.data.gov.uk/doc/local-authority/00DA,East - North East                    ,East - North East,Construction Services,Supplies and Services,Other Materials,205,01-Feb-2012,1202-00175,786.30,R,Ajm Fixings & Power Tools Ltd,
http://statistics.data.gov.uk/doc/local-authority/00DA,East - North East                    ,East - North East,Construction Services,Supplies and Services,Other Materials,205,01-Feb-2012,1202-00176,1100.80,R,Ajm Fixings & Power Tools Ltd,
http://statistics.data.gov.uk/doc/local-authority/00DA,East - North East                    ,East - North East,Construction Services,Supplies and Services,Other Materials,205,01-Feb-2012,1202-00177,1627.69,R,Ajm Fixings & Power Tools Ltd,
http://statistics.data.gov.uk/doc/local-authority/00DA,East - North East                    ,East - North East,Construction Services,Supplies and Services,Other Materials,205,09-Feb-2012,1202-00178,630.66,R,Ajm Fixings & Power Tools Ltd,
http://statistics.data.gov.uk/doc/local-authority/00DA,East - North East                    ,East - North East,Construction Services,Supplies and Services,Other Materials,205,10-Feb-2012,1202-00179,1287.34,R,Ajm Fixings & Power Tools Ltd,
http://statistics.data.gov.uk/doc/local-authority/00DA,East - North East                    ,East - North East,Construction Services,Supplies and Services,Other Materials,205,22-Feb-2012,1202-00180,904.27,R,Ajm Fixings & Power Tools Ltd,
http://statistics.data.gov.uk/doc/local-authority/00DA,East - North East                    ,East - North East,Construction Services,Supplies and Services,Other Materials,205,22-Feb-2012,1202-00181,813.71,R,Ajm Fixings & Power Tools Ltd,
http://statistics.data.gov.uk/doc/local-authority/00DA,East - North East                    ,East - North East,Construction Services,Supplies and Services,Other Materials,205,22-Feb-2012,1202-00182,816.50,R,Ajm Fixings & Power Tools Ltd,
http://statistics.data.gov.uk/doc/local-authority/00DA,East - North East                    ,East - North East,Construction Services,Supplies and Services,Other Materials,205,24-Feb-2012,1202-00183,423.90,R,Ajm Fixings & Power Tools Ltd,
http://statistics.data.gov.uk/doc/local-authority/00DA,East - North East                    ,East - North East,Construction Services,Supplies and Services,Other Materials,205,24-Feb-2012,1202-00184,1071.95,R,Ajm Fixings & Power Tools Ltd,
http://statistics.data.gov.uk/doc/local-authority/00DA,East - North East                    ,East - North East,Construction Services,Supplies and Services,Other Materials,205,24-Feb-2012,1202-00185,1067.47,R,Ajm Fixings & Power Tools Ltd,
http://statistics.data.gov.uk/doc/local-authority/00DA,East - North East                    ,East - North East,Construction Services,Supplies and Services,Other Materials,205,29-Feb-2012,1202-00186,709.66,R,Ajm Fixings & Power Tools Ltd,
http://statistics.data.gov.uk/doc/local-authority/00DA,Leeds City Council,City Development,Planning & Sustainable Development,Support Services,Legal Disbursements,411,03-Feb-2012,1202-00187,9250.00,R,Alan Evans,
http://statistics.data.gov.uk/doc/local-authority/00DA,Leeds City Council,Adult Social Care,Services For Older People - 65 And Over,Third Party Payments,Residential Care Emi,571,15-Feb-2012,1202-00188,6907.61,R,Alexander Residential Home,
http://statistics.data.gov.uk/doc/local-authority/00DA,Leeds City Council,Adult Social Care,Services For Older People - 65 And Over,Third Party Payments,Residential,580,15-Feb-2012,1202-00189,11714.49,R,Alexander Residential Home,
http://statistics.data.gov.uk/doc/local-authority/00DA,Leeds City Council as Accountable Body,Social Services Pooled Budgets,Jcs For People With Learning Disabilitie,Third Party Payments,Residential,580,15-Feb-2012,1202-00190,1220.72,R,Alexander Residential Home,
http://statistics.data.gov.uk/doc/local-authority/00DA,Leeds City Council,Adult Social Care,Services For Older People - 65 And Over,Third Party Payments,Residential Care Emi,571,15-Feb-2012,1202-00191,1238.40,R,Alexandra Court,
http://statistics.data.gov.uk/doc/local-authority/00DA,Leeds City Council,Adult Social Care,Services For Older People - 65 And Over,Third Party Payments,Residential,580,15-Feb-2012,1202-00192,10571.69,R,Alexandra Court,
http://statistics.data.gov.uk/doc/local-authority/00DA,Leeds City Council,Environment & Neighbourhoods,Environmental Action (South),Supplies and Services,Bought In Professional Services,277,01-Feb-2012,1202-00193,464.55,R,Alfies Boarding Kennels,
http://statistics.data.gov.uk/doc/local-authority/00DA,Leeds City Council,Environment & Neighbourhoods,Environmental Action (South),Supplies and Services,Bought In Professional Services,277,22-Feb-2012,1202-00194,667.00,R,Alfies Boarding Kennels,
http://statistics.data.gov.uk/doc/local-authority/00DA,Leeds City Council,Central & Corporate Functions,Commercial Services Trading Services,Supplies and Services,Other Hired And Contracted Services,265,08-Feb-2012,1202-00195,1540.00,R,Alfred Bagnall & Sons (Leeds) Ltd,
http://statistics.data.gov.uk/doc/local-authority/00DA,Leeds City Council,City Development,Asset Management Services,Premises,Maintenance Of Buildings,101,08-Feb-2012,1202-00196,5800.98,R,Alfred Bagnall & Sons (Leeds) Ltd,
http://statistics.data.gov.uk/doc/local-authority/00DA,Leeds City Council,Central & Corporate Functions,Customer Services,Premises,Maintenance Of Buildings,101,29-Feb-2012,1202-00197,1710.00,R,Alfred Bagnall & Sons (Leeds) Ltd,
http://statistics.data.gov.uk/doc/local-authority/00DA,Leeds City Council,City Development,Libraries  Arts & Heritage,Supplies and Services,Bought In Professional Services,277,29-Feb-2012,1202-00198,1405.60,R,Alison Glew,
http://statistics.data.gov.uk/doc/local-authority/00DA,Leeds City Council,City Development,Recreation,Supplies and Services,Other Hired And Contracted Services,265,20-Feb-2012,1202-00199,550.00,R,Alison Rose,
http://statistics.data.gov.uk/doc/local-authority/00DA,Leeds City Council,Adult Social Care,Services For Older People - 65 And Over,Third Party Payments,Residential,580,15-Feb-2012,1202-00200,1103.16,R,Allendale Residential Home,
http://statistics.data.gov.uk/doc/local-authority/00DA,Leeds City Council,Central & Corporate Functions,Revenues,Supplies and Services,Bank Charges,263,03-Feb-2012,1202-00201,1185.67,R,Alliance & Leicester Commercial Bank,
http://statistics.data.gov.uk/doc/local-authority/00DA,Leeds City Council,Childrens Services,Safeguarding Targeted & Specialist,Third Party Payments,General External Residential Placements,507,09-Feb-2012,1202-00202,15212.14,R,Alliance Care And Education,
http://statistics.data.gov.uk/doc/local-authority/00DA,Leeds City Council,Adult Social Care,Other Generic Services,Third Party Payments,Home Care,568,01-Feb-2012,1202-00203,16250.17,R,Allied Healthcare Group Ltd,
http://statistics.data.gov.uk/doc/local-authority/00DA,Leeds City Council,Adult Social Care,Other Generic Services,Third Party Payments,Home Care,568,01-Feb-2012,1202-00204,5252.05,R,Allied Healthcare Group Ltd,
http://statistics.data.gov.uk/doc/local-authority/00DA,Leeds City Council as Accountable Body,Social Services Pooled Budgets,Jcs For People With Learning Disabilitie,Third Party Payments,Home Care,568,03-Feb-2012,1202-00205,450.00,R,Allied Healthcare Group Ltd,
http://statistics.data.gov.uk/doc/local-authority/00DA,Leeds City Council as Accountable Body,Social Services Pooled Budgets,Jcs For People With Learning Disabilitie,Third Party Payments,Home Care,568,03-Feb-2012,1202-00206,1193.46,R,Allied Healthcare Group Ltd,
http://statistics.data.gov.uk/doc/local-authority/00DA,Leeds City Council as Accountable Body,Social Services Pooled Budgets,Jcs For People With Learning Disabilitie,Third Party Payments,Home Care,568,03-Feb-2012,1202-00207,1320.05,R,Allied Healthcare Group Ltd,
http://statistics.data.gov.uk/doc/local-authority/00DA,Leeds City Council as Accountable Body,Social Services Pooled Budgets,Jcs For People With Learning Disabilitie,Third Party Payments,Home Care,568,03-Feb-2012,1202-00208,538.18,R,Allied Healthcare Group Ltd,
http://statistics.data.gov.uk/doc/local-authority/00DA,Leeds City Council,Adult Social Care,Services For Older People Under 65 P/Dis,Third Party Payments,Home Care,568,03-Feb-2012,1202-00209,1397.40,R,Allied Healthcare Group Ltd,
http://statistics.data.gov.uk/doc/local-authority/00DA,Leeds City Council,Adult Social Care,Services For Older People - 65 And Over,Third Party Payments,Home Care,568,03-Feb-2012,1202-00210,525.30,R,Allied Healthcare Group Ltd,
http://statistics.data.gov.uk/doc/local-authority/00DA,Leeds City Council,Adult Social Care,Services For Older People Under 65 P/Dis,Third Party Payments,Home Care,568,03-Feb-2012,1202-00211,428.40,R,Allied Healthcare Group Ltd,
http://statistics.data.gov.uk/doc/local-authority/00DA,Leeds City Council,Adult Social Care,Services For Older People Under 65 P/Dis,Third Party Payments,Home Care,568,03-Feb-2012,1202-00212,6414.77,R,Allied Healthcare Group Ltd,
http://statistics.data.gov.uk/doc/local-authority/00DA,Leeds City Council,Adult Social Care,Services For Older People Under 65 P/Dis,Third Party Payments,Home Care,568,03-Feb-2012,1202-00213,841.50,R,Allied Healthcare Group Ltd,
http://statistics.data.gov.uk/doc/local-authority/00DA,Leeds City Council as Accountable Body,Social Services Pooled Budgets,Jcs For People With Learning Disabilitie,Third Party Payments,Home Care,568,10-Feb-2012,1202-00214,1337.86,R,Allied Healthcare Group Ltd,
http://statistics.data.gov.uk/doc/local-authority/00DA,Leeds City Council,Adult Social Care,Services For Older People - 65 And Over,Third Party Payments,Home Care,568,13-Feb-2012,1202-00215,15432.67,R,Allied Healthcare Group Ltd,
http://statistics.data.gov.uk/doc/local-authority/00DA,Leeds City Council,Adult Social Care,Services For Older People Under 65 P/Dis,Third Party Payments,Home Care,568,13-Feb-2012,1202-00216,1117.61,R,Allied Healthcare Group Ltd,
http://statistics.data.gov.uk/doc/local-authority/00DA,Leeds City Council,Adult Social Care,Other Generic Services,Third Party Payments,Home Care,568,16-Feb-2012,1202-00217,15042.20,R,Allied Healthcare Group Ltd,
http://statistics.data.gov.uk/doc/local-authority/00DA,Leeds City Council,Adult Social Care,Other Generic Services,Third Party Payments,Home Care,568,16-Feb-2012,1202-00218,5609.55,R,Allied Healthcare Group Ltd,
http://statistics.data.gov.uk/doc/local-authority/00DA,Leeds City Council,Adult Social Care,Services For Older People - 65 And Over,Third Party Payments,Home Care,568,17-Feb-2012,1202-00219,13594.93,R,Allied Healthcare Group Ltd,
http://statistics.data.gov.uk/doc/local-authority/00DA,Leeds City Council,Adult Social Care,Services For Older People Under 65 P/Dis,Third Party Payments,Home Care,568,17-Feb-2012,1202-00220,12671.99,R,Allied Healthcare Group Ltd,
http://statistics.data.gov.uk/doc/local-authority/00DA,Leeds City Council,Adult Social Care,Services For Older People - 65 And Over,Third Party Payments,Home Care,568,17-Feb-2012,1202-00221,8898.92,R,Allied Healthcare Group Ltd,
http://statistics.data.gov.uk/doc/local-authority/00DA,Leeds City Council,Adult Social Care,Services For Older People Under 65 P/Dis,Third Party Payments,Home Care,568,17-Feb-2012,1202-00222,2311.23,R,Allied Healthcare Group Ltd,
http://statistics.data.gov.uk/doc/local-authority/00DA,Leeds City Council,Adult Social Care,Services For Older People - 65 And Over,Third Party Payments,Home Care,568,17-Feb-2012,1202-00223,9637.27,R,Allied Healthcare Group Ltd,
http://statistics.data.gov.uk/doc/local-authority/00DA,Leeds City Council,Adult Social Care,Services For Older People Under 65 P/Dis,Third Party Payments,Home Care,568,17-Feb-2012,1202-00224,1917.94,R,Allied Healthcare Group Ltd,
http://statistics.data.gov.uk/doc/local-authority/00DA,Leeds City Council,Adult Social Care,Services For Older People - 65 And Over,Third Party Payments,Home Care,568,17-Feb-2012,1202-00225,15653.01,R,Allied Healthcare Group Ltd,
http://statistics.data.gov.uk/doc/local-authority/00DA,Leeds City Council,Adult Social Care,Services For Older People - 65 And Over,Third Party Payments,Home Care,568,23-Feb-2012,1202-00226,672.72,R,Allied Healthcare Group Ltd,
http://statistics.data.gov.uk/doc/local-authority/00DA,Leeds City Council as Accountable Body,Social Services Pooled Budgets,Jcs For People With Learning Disabilitie,Third Party Payments,Home Care,568,23-Feb-2012,1202-00227,1351.41,R,Allied Healthcare Group Ltd,
http://statistics.data.gov.uk/doc/local-authority/00DA,Leeds City Council as Accountable Body,Social Services Pooled Budgets,Jcs For People With Learning Disabilitie,Third Party Payments,Home Care,568,24-Feb-2012,1202-00228,1169.62,R,Allied Healthcare Group Ltd,
http://statistics.data.gov.uk/doc/local-authority/00DA,Leeds City Council as Accountable Body,Social Services Pooled Budgets,Jcs For People With Learning Disabilitie,Third Party Payments,Home Care,568,24-Feb-2012,1202-00229,546.21,R,Allied Healthcare Group Ltd,
http://statistics.data.gov.uk/doc/local-authority/00DA,Leeds City Council,Childrens Services,Learning Skills & Universal,Transport,Fuel (Non LCC Supplies),321,07-Feb-2012,1202-00230,1845.71,R,Allstar Business Solutions Ltd,
http://statistics.data.gov.uk/doc/local-authority/00DA,Leeds City Council,Childrens Services,Learning Skills & Universal,Supplies and Services,Other Hired And Contracted Services,265,23-Feb-2012,1202-00231,24511.90,R,Alphasound Audio Visual Ltd,
http://statistics.data.gov.uk/doc/local-authority/00DA,Leeds City Council,Central & Corporate Functions,Commercial Services Trading Services,Supplies and Services,Operational Materials,205,03-Feb-2012,1202-00232,911.46,R,Alvin Morris Ltd,
http://statistics.data.gov.uk/doc/local-authority/00DA,Leeds City Council,Central & Corporate Functions,Commercial Services Trading Services,Supplies and Services,Operational Materials,205,27-Feb-2012,1202-00233,478.00,R,Alvin Morris Ltd,
http://statistics.data.gov.uk/doc/local-authority/00DA,Leeds City Council,Central & Corporate Functions,Commercial Services Trading Services,Supplies and Services,Operational Materials,205,27-Feb-2012,1202-00234,976.60,R,Alvin Morris Ltd,
http://statistics.data.gov.uk/doc/local-authority/00DA,Leeds City Council,Childrens Services,Learning Skills & Universal,Third Party Payments,Services Rendered By Other Organisations,511,28-Feb-2012,1202-00235,800.00,R,Amazing Grace Early Years Childcare,
http://statistics.data.gov.uk/doc/local-authority/00DA,Leeds City Council,Childrens Services,Partnership Development & Leadership,Employees,Tuition & Course Fees,073,16-Feb-2012,1202-00236,2135.00,R,Amberhawk Training Limited,
http://statistics.data.gov.uk/doc/local-authority/00DA,Leeds City Council,Childrens Services,Safeguarding Targeted & Specialist,Third Party Payments,General External Residential Placements,507,10-Feb-2012,1202-00237,16554.00,R,Amberleigh Care Ltd,
http://statistics.data.gov.uk/doc/local-authority/00DA,Leeds City Council,Adult Social Care,Services For Older People - 65 And Over,Third Party Payments,Residential,580,15-Feb-2012,1202-00238,2171.72,R,Amelia House Care Home,
http://statistics.data.gov.uk/doc/local-authority/00DA,Leeds City Council,Childrens Services,Safeguarding Targeted & Specialist,Third Party Payments,General External Residential Placements,507,13-Feb-2012,1202-00239,9472.00,R,Ampleforth Abbey Trust,
http://statistics.data.gov.uk/doc/local-authority/00DA,Leeds City Council,City Development,Libraries  Arts & Heritage,Employees,Central Training,079,10-Feb-2012,1202-00240,700.00,R,Amr Security Services Ltd,
http://statistics.data.gov.uk/doc/local-authority/00DA,Leeds City Council,Adult Social Care,Services For Older People - 65 And Over,Third Party Payments,Payments To Voluntary Organisations,561,16-Feb-2012,1202-00241,9167.48,R,Anchor,
http://statistics.data.gov.uk/doc/local-authority/00DA,Leeds City Council,Adult Social Care,Services For Older People - 65 And Over,Third Party Payments,Home Care,568,17-Feb-2012,1202-00242,544.64,R,Anchor,
http://statistics.data.gov.uk/doc/local-authority/00DA,Leeds City Council,Adult Social Care,Services For Older People - 65 And Over,Third Party Payments,Home Care,568,17-Feb-2012,1202-00243,617.89,R,Anchor,
http://statistics.data.gov.uk/doc/local-authority/00DA,Leeds City Council,Adult Social Care,Services For Older People - 65 And Over,Third Party Payments,Home Care,568,17-Feb-2012,1202-00244,515.97,R,Anchor,
http://statistics.data.gov.uk/doc/local-authority/00DA,Leeds City Council,Adult Social Care,Services For Older People - 65 And Over,Third Party Payments,Home Care,568,17-Feb-2012,1202-00245,519.16,R,Anchor,
http://statistics.data.gov.uk/doc/local-authority/00DA,Leeds City Council,Adult Social Care,Services For Older People - 65 And Over,Third Party Payments,Home Care,568,17-Feb-2012,1202-00246,649.74,R,Anchor,
http://statistics.data.gov.uk/doc/local-authority/00DA,Leeds City Council,Adult Social Care,Services For Older People - 65 And Over,Third Party Payments,Home Care,568,17-Feb-2012,1202-00247,423.61,R,Anchor,
http://statistics.data.gov.uk/doc/local-authority/00DA,Leeds City Council,Adult Social Care,Services For Older People - 65 And Over,Third Party Payments,Home Care,568,17-Feb-2012,1202-00248,589.23,R,Anchor,
http://statistics.data.gov.uk/doc/local-authority/00DA,Leeds City Council,Adult Social Care,Services For Older People - 65 And Over,Third Party Payments,Home Care,568,17-Feb-2012,1202-00249,697.52,R,Anchor,
http://statistics.data.gov.uk/doc/local-authority/00DA,Leeds City Council,Adult Social Care,Services For Older People - 65 And Over,Third Party Payments,Home Care,568,17-Feb-2012,1202-00250,608.34,R,Anchor,
http://statistics.data.gov.uk/doc/local-authority/00DA,Leeds City Council as Accountable Body,Social Services Pooled Budgets,Jcs For People With Learning Disabilitie,Third Party Payments,Residential,580,03-Feb-2012,1202-00251,588.96,R,Anchor Trust,
http://statistics.data.gov.uk/doc/local-authority/00DA,Leeds City Council,Adult Social Care,Services For Older People - 65 And Over,Third Party Payments,Nursing Home,570,15-Feb-2012,1202-00252,4056.28,R,Anchor Trust,
http://statistics.data.gov.uk/doc/local-authority/00DA,Leeds City Council,Adult Social Care,Services For Older People Under 65 P/Dis,Third Party Payments,Nursing Home,570,15-Feb-2012,1202-00253,1397.80,R,Anchor Trust,
http://statistics.data.gov.uk/doc/local-authority/00DA,Leeds City Council,Adult Social Care,Services For Older People - 65 And Over,Third Party Payments,Residential Care Emi,571,15-Feb-2012,1202-00254,478.68,R,Anchor Trust,
http://statistics.data.gov.uk/doc/local-authority/00DA,Leeds City Council,Adult Social Care,Services For Older People - 65 And Over,Third Party Payments,Residential Care Emi,571,15-Feb-2012,1202-00255,1650.04,R,Anchor Trust,
http://statistics.data.gov.uk/doc/local-authority/00DA,Leeds City Council,Adult Social Care,Services For Older People - 65 And Over,Third Party Payments,Residential Care Emi,571,15-Feb-2012,1202-00256,3578.40,R,Anchor Trust,
http://statistics.data.gov.uk/doc/local-authority/00DA,Leeds City Council,Adult Social Care,Services For Older People - 65 And Over,Third Party Payments,Nursing Care Emi,574,15-Feb-2012,1202-00257,1186.96,R,Anchor Trust,
http://statistics.data.gov.uk/doc/local-authority/00DA,Leeds City Council,Adult Social Care,Services For Older People - 65 And Over,Third Party Payments,Nursing Care Emi,574,15-Feb-2012,1202-00258,3460.80,R,Anchor Trust,
http://statistics.data.gov.uk/doc/local-authority/00DA,Leeds City Council,Adult Social Care,Services For Older People - 65 And Over,Third Party Payments,Residential,580,15-Feb-2012,1202-00259,19079.99,R,Anchor Trust,
http://statistics.data.gov.uk/doc/local-authority/00DA,Leeds City Council,Adult Social Care,Services For Older People - 65 And Over,Third Party Payments,Residential,580,15-Feb-2012,1202-00260,7957.72,R,Anchor Trust,
http://statistics.data.gov.uk/doc/local-authority/00DA,Leeds City Council,Adult Social Care,Services For Adults Under 65 Mental/Dis,Third Party Payments,Residential,580,15-Feb-2012,1202-00261,1094.56,R,Anchor Trust,
http://statistics.data.gov.uk/doc/local-authority/00DA,Leeds City Council,Adult Social Care,Services For Older People Under 65 P/Dis,Third Party Payments,Residential,580,15-Feb-2012,1202-00262,1927.89,R,Anchor Trust,
http://statistics.data.gov.uk/doc/local-authority/00DA,Leeds City Council as Accountable Body,Social Services Pooled Budgets,Jcs For People With Learning Disabilitie,Third Party Payments,Residential,580,24-Feb-2012,1202-00263,588.96,R,Anchor Trust,
http://statistics.data.gov.uk/doc/local-authority/00DA,Leeds City Council,Environment & Neighbourhoods,Strategy & Commissioning,Third Party Payments,Supporting Ppl - Block Gross Chargeable,514,24-Feb-2012,1202-00264,451.75,R,Anchor Trust,
http://statistics.data.gov.uk/doc/local-authority/00DA,Leeds City Council,Environment & Neighbourhoods,Strategy & Commissioning,Third Party Payments,Supporting Ppl - Block Gross Chargeable,514,24-Feb-2012,1202-00265,9492.43,R,Anchor Trust,
http://statistics.data.gov.uk/doc/local-authority/00DA,Leeds City Council,Environment & Neighbourhoods,Strategy & Commissioning,Third Party Payments,Supporting People - Block Subsidy,513,24-Feb-2012,1202-00266,754.31,R,Anchor Trust,
http://statistics.data.gov.uk/doc/local-authority/00DA,Leeds City Council,Adult Social Care,Services For Older People - 65 And Over,Third Party Payments,Residential Care Emi,571,15-Feb-2012,1202-00267,11298.26,R,Anchor Trust Simon Marks Court,
http://statistics.data.gov.uk/doc/local-authority/00DA,Leeds City Council,Adult Social Care,Services For Older People - 65 And Over,Third Party Payments,Residential,580,15-Feb-2012,1202-00268,23132.91,R,Anchor Trust Simon Marks Court,
http://statistics.data.gov.uk/doc/local-authority/00DA,Leeds City Council,Environment & Neighbourhoods,Hra,Support Services,Professional Legal Services Charges,410,01-Feb-2012,1202-00269,25000.00,R,Andrew Arden Qc,
http://statistics.data.gov.uk/doc/local-authority/00DA,Leeds City Council,Environment & Neighbourhoods,Hra,Support Services,Professional Legal Services Charges,410,01-Feb-2012,1202-00270,75000.00,R,Andrew Arden Qc,
http://statistics.data.gov.uk/doc/local-authority/00DA,Leeds City Council,City Development,Highways,Supplies and Services,Bought In Professional Services,277,03-Feb-2012,1202-00271,750.00,R,Andrew Clayton,
http://statistics.data.gov.uk/doc/local-authority/00DA,Aire Valley Homes Leeds             ,Aire Valley Homes Leeds,Aire Valley Homes Leeds,Supplies and Services,Other Hired And Contracted Services,265,17-Feb-2012,1202-00272,520.00,R,Andrew Elliott,
http://statistics.data.gov.uk/doc/local-authority/00DA,Leeds City Council,Adult Social Care,Services For Older People - 65 And Over,Third Party Payments,Home Care,568,03-Feb-2012,1202-00273,514.50,R,Angels Home Care Services,
http://statistics.data.gov.uk/doc/local-authority/00DA,Leeds City Council,Adult Social Care,Services For Older People - 65 And Over,Third Party Payments,Home Care,568,08-Feb-2012,1202-00274,846.50,R,Angels Home Care Services,
http://statistics.data.gov.uk/doc/local-authority/00DA,Leeds City Council,Adult Social Care,Services For Older People - 65 And Over,Third Party Payments,Home Care,568,08-Feb-2012,1202-00275,2086.00,R,Angels Home Care Services,
http://statistics.data.gov.uk/doc/local-authority/00DA,Leeds City Council,Adult Social Care,Services For Older People - 65 And Over,Third Party Payments,Home Care,568,08-Feb-2012,1202-00276,3710.00,R,Angels Home Care Services,
http://statistics.data.gov.uk/doc/local-authority/00DA,Leeds City Council,Adult Social Care,Services For Older People - 65 And Over,Third Party Payments,Home Care,568,16-Feb-2012,1202-00277,690.76,R,Angels Home Care Services,
http://statistics.data.gov.uk/doc/local-authority/00DA,Leeds City Council,Adult Social Care,Services For Older People Under 65 P/Dis,Third Party Payments,Home Care,568,24-Feb-2012,1202-00278,2203.00,R,Angels Home Care Services,
http://statistics.data.gov.uk/doc/local-authority/00DA,Leeds City Council,Adult Social Care,Services For Older People - 65 And Over,Third Party Payments,Home Care,568,29-Feb-2012,1202-00279,745.20,R,Angels Home Care Services,
http://statistics.data.gov.uk/doc/local-authority/00DA,Leeds City Council,Adult Social Care,Services For Older People - 65 And Over,Third Party Payments,Home Care,568,29-Feb-2012,1202-00280,626.40,R,Angels Home Care Services,
http://statistics.data.gov.uk/doc/local-authority/00DA,Leeds City Council,Childrens Services,Learning Skills & Universal,Third Party Payments,Services Rendered By Other Organisations,511,28-Feb-2012,1202-00281,1265.00,R,Angels Nursery,
http://statistics.data.gov.uk/doc/local-authority/00DA,Leeds City Council,Central & Corporate Functions,Benefits,Transfer Payments,Fines And Compensation Orders,623,01-Feb-2012,1202-00282,934.59,R,Anglo East Property,
http://statistics.data.gov.uk/doc/local-authority/00DA,Leeds City Council,Childrens Services,Safeguarding Targeted & Specialist,Support Services,Legal Disbursements,411,03-Feb-2012,1202-00283,865.00,R,Ann M Mortimer,
http://statistics.data.gov.uk/doc/local-authority/00DA,Leeds City Council,Central & Corporate Functions,Support And Facilities Trading Services,Supplies and Services,Operational Materials,205,14-Feb-2012,1202-00284,-532.00,R,Antalis Mcnaughton Limited,
http://statistics.data.gov.uk/doc/local-authority/00DA,Leeds City Council,Central & Corporate Functions,Support And Facilities Trading Services,Supplies and Services,Operational Materials,205,14-Feb-2012,1202-00285,938.00,R,Antalis Mcnaughton Limited,
http://statistics.data.gov.uk/doc/local-authority/00DA,Leeds City Council,Central & Corporate Functions,Support And Facilities Trading Services,Supplies and Services,Operational Materials,205,17-Feb-2012,1202-00286,532.00,R,Antalis Mcnaughton Limited,
http://statistics.data.gov.uk/doc/local-authority/00DA,Leeds City Council,Central & Corporate Functions,Support And Facilities Trading Services,Supplies and Services,Operational Materials,205,17-Feb-2012,1202-00287,469.00,R,Antalis Mcnaughton Limited,
http://statistics.data.gov.uk/doc/local-authority/00DA,Leeds City Council,Central & Corporate Functions,Commercial Services Trading Services,Supplies and Services,Food & Drink,231,10-Feb-2012,1202-00288,2516.72,R,Apetito Ltd,
http://statistics.data.gov.uk/doc/local-authority/00DA,Leeds City Council,Central & Corporate Functions,Commercial Services Trading Services,Supplies and Services,Food & Drink,231,10-Feb-2012,1202-00289,860.63,R,Apetito Ltd,
http://statistics.data.gov.uk/doc/local-authority/00DA,Leeds City Council,Central & Corporate Functions,Commercial Services Trading Services,Supplies and Services,Food & Drink,231,10-Feb-2012,1202-00290,1263.91,R,Apetito Ltd,
http://statistics.data.gov.uk/doc/local-authority/00DA,Leeds City Council,Central & Corporate Functions,Commercial Services Trading Services,Supplies and Services,Food & Drink,231,13-Feb-2012,1202-00291,2364.85,R,Apetito Ltd,
http://statistics.data.gov.uk/doc/local-authority/00DA,Leeds City Council,Adult Social Care,Services For Older People - 65 And Over,Supplies and Services,Food & Drink,231,15-Feb-2012,1202-00292,621.84,R,Apetito Ltd,
http://statistics.data.gov.uk/doc/local-authority/00DA,Leeds City Council,Central & Corporate Functions,Commercial Services Trading Services,Supplies and Services,Food & Drink,231,17-Feb-2012,1202-00293,2217.27,R,Apetito Ltd,
http://statistics.data.gov.uk/doc/local-authority/00DA,Leeds City Council,Central & Corporate Functions,Commercial Services Trading Services,Supplies and Services,Food & Drink,231,17-Feb-2012,1202-00294,1674.86,R,Apetito Ltd,
http://statistics.data.gov.uk/doc/local-authority/00DA,Leeds City Council,Central & Corporate Functions,Commercial Services Trading Services,Supplies and Services,Food & Drink,231,24-Feb-2012,1202-00295,2601.98,R,Apetito Ltd,
http://statistics.data.gov.uk/doc/local-authority/00DA,Leeds City Council,Central & Corporate Functions,Commercial Services Trading Services,Supplies and Services,Food & Drink,231,24-Feb-2012,1202-00296,1244.20,R,Apetito Ltd,
http://statistics.data.gov.uk/doc/local-authority/00DA,Leeds City Council as Accountable Body,Social Services Pooled Budgets,Jcs For People With Learning Disabilitie,Third Party Payments,Residential,580,15-Feb-2012,1202-00297,10647.76,R,Applewalk Homes,
http://statistics.data.gov.uk/doc/local-authority/00DA,Leeds City Council,Environment & Neighbourhoods,South South East,Capital,Construction,3,13-Feb-2012,1202-00298,57909.93,C,Aqua Interiors T/A V & T Plumbing,
http://statistics.data.gov.uk/doc/local-authority/00DA,Leeds City Council as Accountable Body,Social Services Pooled Budgets,Jcs For People With Learning Disabilitie,Third Party Payments,Home Care,568,08-Feb-2012,1202-00299,525.37,R,Arabella Health Staffing Ltd,
http://statistics.data.gov.uk/doc/local-authority/00DA,Leeds City Council as Accountable Body,Social Services Pooled Budgets,Jcs For People With Learning Disabilitie,Third Party Payments,Home Care,568,08-Feb-2012,1202-00300,600.08,R,Arabella Health Staffing Ltd,
http://statistics.data.gov.uk/doc/local-authority/00DA,Leeds City Council as Accountable Body,Social Services Pooled Budgets,Jcs For People With Learning Disabilitie,Third Party Payments,Home Care,568,16-Feb-2012,1202-00301,-978.31,R,Arabella Health Staffing Ltd,
http://statistics.data.gov.uk/doc/local-authority/00DA,Leeds City Council as Accountable Body,Social Services Pooled Budgets,Jcs For People With Learning Disabilitie,Third Party Payments,Home Care,568,16-Feb-2012,1202-00302,578.36,R,Arabella Health Staffing Ltd,
http://statistics.data.gov.uk/doc/local-authority/00DA,Leeds City Council as Accountable Body,Social Services Pooled Budgets,Jcs For People With Learning Disabilitie,Third Party Payments,Home Care,568,16-Feb-2012,1202-00303,567.78,R,Arabella Health Staffing Ltd,
http://statistics.data.gov.uk/doc/local-authority/00DA,Leeds City Council as Accountable Body,Social Services Pooled Budgets,Jcs For People With Learning Disabilitie,Third Party Payments,Home Care,568,16-Feb-2012,1202-00304,809.24,R,Arabella Health Staffing Ltd,
http://statistics.data.gov.uk/doc/local-authority/00DA,Leeds City Council as Accountable Body,Social Services Pooled Budgets,Jcs For People With Learning Disabilitie,Third Party Payments,Home Care,568,16-Feb-2012,1202-00305,708.77,R,Arabella Health Staffing Ltd,
http://statistics.data.gov.uk/doc/local-authority/00DA,Leeds City Council as Accountable Body,Social Services Pooled Budgets,Jcs For People With Learning Disabilitie,Third Party Payments,Home Care,568,16-Feb-2012,1202-00306,943.03,R,Arabella Health Staffing Ltd,
http://statistics.data.gov.uk/doc/local-authority/00DA,Leeds City Council as Accountable Body,Social Services Pooled Budgets,Jcs For People With Learning Disabilitie,Third Party Payments,Home Care,568,16-Feb-2012,1202-00307,2077.74,R,Arabella Health Staffing Ltd,
http://statistics.data.gov.uk/doc/local-authority/00DA,Leeds City Council as Accountable Body,Social Services Pooled Budgets,Jcs For People With Learning Disabilitie,Third Party Payments,Home Care,568,16-Feb-2012,1202-00308,531.53,R,Arabella Health Staffing Ltd,
http://statistics.data.gov.uk/doc/local-authority/00DA,Leeds City Council as Accountable Body,Social Services Pooled Budgets,Jcs For People With Learning Disabilitie,Third Party Payments,Home Care,568,16-Feb-2012,1202-00309,1407.94,R,Arabella Health Staffing Ltd,
http://statistics.data.gov.uk/doc/local-authority/00DA,Leeds City Council as Accountable Body,Social Services Pooled Budgets,Jcs For People With Learning Disabilitie,Third Party Payments,Home Care,568,16-Feb-2012,1202-00310,486.40,R,Arabella Health Staffing Ltd,
http://statistics.data.gov.uk/doc/local-authority/00DA,Leeds City Council as Accountable Body,Social Services Pooled Budgets,Jcs For People With Learning Disabilitie,Third Party Payments,Home Care,568,16-Feb-2012,1202-00311,496.39,R,Arabella Health Staffing Ltd,
http://statistics.data.gov.uk/doc/local-authority/00DA,Leeds City Council as Accountable Body,Social Services Pooled Budgets,Jcs For People With Learning Disabilitie,Third Party Payments,Home Care,568,16-Feb-2012,1202-00312,721.89,R,Arabella Health Staffing Ltd,
http://statistics.data.gov.uk/doc/local-authority/00DA,Leeds City Council as Accountable Body,Social Services Pooled Budgets,Jcs For People With Learning Disabilitie,Third Party Payments,Home Care,568,16-Feb-2012,1202-00313,698.43,R,Arabella Health Staffing Ltd,
http://statistics.data.gov.uk/doc/local-authority/00DA,Leeds City Council as Accountable Body,Social Services Pooled Budgets,Jcs For People With Learning Disabilitie,Third Party Payments,Home Care,568,16-Feb-2012,1202-00314,859.79,R,Arabella Health Staffing Ltd,
http://statistics.data.gov.uk/doc/local-authority/00DA,Leeds City Council as Accountable Body,Social Services Pooled Budgets,Jcs For People With Learning Disabilitie,Third Party Payments,Home Care,568,16-Feb-2012,1202-00315,969.43,R,Arabella Health Staffing Ltd,
http://statistics.data.gov.uk/doc/local-authority/00DA,Leeds City Council as Accountable Body,Social Services Pooled Budgets,Jcs For People With Learning Disabilitie,Third Party Payments,Home Care,568,16-Feb-2012,1202-00316,517.60,R,Arabella Health Staffing Ltd,
http://statistics.data.gov.uk/doc/local-authority/00DA,Leeds City Council as Accountable Body,Social Services Pooled Budgets,Jcs For People With Learning Disabilitie,Third Party Payments,Home Care,568,16-Feb-2012,1202-00317,1809.26,R,Arabella Health Staffing Ltd,
http://statistics.data.gov.uk/doc/local-authority/00DA,Leeds City Council as Accountable Body,Social Services Pooled Budgets,Jcs For People With Learning Disabilitie,Third Party Payments,Home Care,568,22-Feb-2012,1202-00318,981.76,R,Arabella Health Staffing Ltd,
http://statistics.data.gov.uk/doc/local-authority/00DA,Leeds City Council as Accountable Body,Social Services Pooled Budgets,Jcs For People With Learning Disabilitie,Third Party Payments,Home Care,568,22-Feb-2012,1202-00319,631.54,R,Arabella Health Staffing Ltd,
http://statistics.data.gov.uk/doc/local-authority/00DA,Leeds City Council as Accountable Body,Social Services Pooled Budgets,Jcs For People With Learning Disabilitie,Third Party Payments,Home Care,568,22-Feb-2012,1202-00320,729.48,R,Arabella Health Staffing Ltd,
http://statistics.data.gov.uk/doc/local-authority/00DA,Leeds City Council as Accountable Body,Social Services Pooled Budgets,Jcs For People With Learning Disabilitie,Third Party Payments,Home Care,568,27-Feb-2012,1202-00321,1025.33,R,Arabella Health Staffing Ltd,
http://statistics.data.gov.uk/doc/local-authority/00DA,Leeds City Council as Accountable Body,Social Services Pooled Budgets,Jcs For People With Learning Disabilitie,Third Party Payments,Home Care,568,29-Feb-2012,1202-00322,842.29,R,Arabella Health Staffing Ltd,
http://statistics.data.gov.uk/doc/local-authority/00DA,Leeds City Council as Accountable Body,Social Services Pooled Budgets,Jcs For People With Learning Disabilitie,Third Party Payments,Home Care,568,29-Feb-2012,1202-00323,653.84,R,Arabella Health Staffing Ltd,
http://statistics.data.gov.uk/doc/local-authority/00DA,Leeds City Council as Accountable Body,Social Services Pooled Budgets,Jcs For People With Learning Disabilitie,Third Party Payments,Home Care,568,29-Feb-2012,1202-00324,1132.09,R,Arabella Health Staffing Ltd,
http://statistics.data.gov.uk/doc/local-authority/00DA,Leeds City Council,Central & Corporate Functions,Support And Facilities General Fund  ,Supplies and Services,Clothing & Uniforms,241,04-Jan-2012,1202-00325,441.42,R,Arco Ho Credit Control,
http://statistics.data.gov.uk/doc/local-authority/00DA,Leeds City Council,City Development,Recreation  ,Supplies and Services,Other Materials,205,31-Jan-2012,1202-00326,516.64,R,Arco Ltd,
http://statistics.data.gov.uk/doc/local-authority/00DA,Leeds City Council,City Development,Libraries  Arts & Heritage,Supplies and Services,Clothing & Uniforms,241,01-Feb-2012,1202-00327,601.44,R,Arco Ltd,
http://statistics.data.gov.uk/doc/local-authority/00DA,Leeds City Council,Central & Corporate Functions,Commercial Services Trading Services,Supplies and Services,Clothing & Uniforms,241,01-Feb-2012,1202-00328,-626.00,R,Arco Ltd,
http://statistics.data.gov.uk/doc/local-authority/00DA,Leeds City Council,Central & Corporate Functions,Commercial Services Trading Services,Supplies and Services,Clothing & Uniforms,241,10-Feb-2012,1202-00329,626.00,R,Arco Ltd,
http://statistics.data.gov.uk/doc/local-authority/00DA,West - North West                    ,West - North West,Customer And Tenancy,Supplies and Services,Clothing & Uniforms,241,10-Feb-2012,1202-00330,779.81,R,Arco Ltd,
http://statistics.data.gov.uk/doc/local-authority/00DA,Leeds City Council,City Development,Libraries  Arts & Heritage,Supplies and Services,Clothing & Uniforms,241,16-Feb-2012,1202-00331,482.75,R,Arco Ltd,
http://statistics.data.gov.uk/doc/local-authority/00DA,East - North East                    ,East - North East,Construction Services,Supplies and Services,Other Materials,205,23-Feb-2012,1202-00332,803.96,R,Arco Ltd,
http://statistics.data.gov.uk/doc/local-authority/00DA,Leeds City Council,Central & Corporate Functions,Commercial Services Trading Services,Supplies and Services,Operational Materials,205,23-Feb-2012,1202-00333,1739.07,R,Arco Ltd,
http://statistics.data.gov.uk/doc/local-authority/00DA,Leeds City Council,Central & Corporate Functions,Commercial Services Trading Services,Supplies and Services,Operational Materials,205,23-Feb-2012,1202-00334,766.04,R,Arco Ltd,
http://statistics.data.gov.uk/doc/local-authority/00DA,Leeds City Council,Central & Corporate Functions,Commercial Services Trading Services,Supplies and Services,Operational Materials,205,28-Feb-2012,1202-00335,502.80,R,Arco Ltd,
http://statistics.data.gov.uk/doc/local-authority/00DA,Aire Valley Homes Leeds             ,Aire Valley Homes Leeds,Aire Valley Homes Leeds,Supplies and Services,Information Technology (Computers),214,17-Feb-2012,1202-00336,1500.00,R,Arena Partnership Limited,
http://statistics.data.gov.uk/doc/local-authority/00DA,Leeds City Council,Adult Social Care,Services For Older People - 65 And Over,Third Party Payments,Home Care,568,07-Feb-2012,1202-00337,2434.67,R,Ark Home Healthcare Ltd,
http://statistics.data.gov.uk/doc/local-authority/00DA,Leeds City Council,Adult Social Care,Services For Older People Under 65 P/Dis,Third Party Payments,Home Care,568,07-Feb-2012,1202-00338,824.96,R,Ark Home Healthcare Ltd,
http://statistics.data.gov.uk/doc/local-authority/00DA,Leeds City Council,Adult Social Care,Services For Older People - 65 And Over,Third Party Payments,Home Care,568,09-Feb-2012,1202-00339,5367.23,R,Ark Home Healthcare Ltd,
http://statistics.data.gov.uk/doc/local-authority/00DA,Leeds City Council,Adult Social Care,Services For Older People - 65 And Over,Third Party Payments,Home Care,568,09-Feb-2012,1202-00340,7570.93,R,Ark Home Healthcare Ltd,
http://statistics.data.gov.uk/doc/local-authority/00DA,Leeds City Council,Adult Social Care,Services For Older People Under 65 P/Dis,Third Party Payments,Home Care,568,09-Feb-2012,1202-00341,947.42,R,Ark Home Healthcare Ltd,
http://statistics.data.gov.uk/doc/local-authority/00DA,Leeds City Council,Adult Social Care,Services For Older People - 65 And Over,Third Party Payments,Home Care,568,09-Feb-2012,1202-00342,6863.81,R,Ark Home Healthcare Ltd,
http://statistics.data.gov.uk/doc/local-authority/00DA,Leeds City Council,Adult Social Care,Services For Older People Under 65 P/Dis,Third Party Payments,Home Care,568,09-Feb-2012,1202-00343,1137.04,R,Ark Home Healthcare Ltd,
http://statistics.data.gov.uk/doc/local-authority/00DA,Leeds City Council,Adult Social Care,Services For Older People - 65 And Over,Third Party Payments,Home Care,568,09-Feb-2012,1202-00344,22421.01,R,Ark Home Healthcare Ltd,
http://statistics.data.gov.uk/doc/local-authority/00DA,Leeds City Council,Adult Social Care,Services For Older People Under 65 P/Dis,Third Party Payments,Home Care,568,09-Feb-2012,1202-00345,2524.05,R,Ark Home Healthcare Ltd,
http://statistics.data.gov.uk/doc/local-authority/00DA,Leeds City Council,Adult Social Care,Services For Older People - 65 And Over,Third Party Payments,Home Care,568,09-Feb-2012,1202-00346,15001.10,R,Ark Home Healthcare Ltd,
http://statistics.data.gov.uk/doc/local-authority/00DA,Leeds City Council,Adult Social Care,Services For Older People Under 65 P/Dis,Third Party Payments,Home Care,568,09-Feb-2012,1202-00347,2442.00,R,Ark Home Healthcare Ltd,
http://statistics.data.gov.uk/doc/local-authority/00DA,Leeds City Council,Adult Social Care,Services For Older People - 65 And Over,Third Party Payments,Home Care,568,09-Feb-2012,1202-00348,10484.72,R,Ark Home Healthcare Ltd,
http://statistics.data.gov.uk/doc/local-authority/00DA,Leeds City Council,Adult Social Care,Services For Older People Under 65 P/Dis,Third Party Payments,Home Care,568,09-Feb-2012,1202-00349,2732.94,R,Ark Home Healthcare Ltd,
http://statistics.data.gov.uk/doc/local-authority/00DA,Leeds City Council,Adult Social Care,Services For Older People - 65 And Over,Third Party Payments,Home Care,568,09-Feb-2012,1202-00350,2918.68,R,Ark Home Healthcare Ltd,
http://statistics.data.gov.uk/doc/local-authority/00DA,Leeds City Council,Adult Social Care,Services For Older People Under 65 P/Dis,Third Party Payments,Home Care,568,09-Feb-2012,1202-00351,789.51,R,Ark Home Healthcare Ltd,
http://statistics.data.gov.uk/doc/local-authority/00DA,Leeds City Council,Adult Social Care,Services For Older People - 65 And Over,Third Party Payments,Home Care,568,10-Feb-2012,1202-00352,598.78,R,Ark Home Healthcare Ltd,
http://statistics.data.gov.uk/doc/local-authority/00DA,Leeds City Council,Adult Social Care,Services For Older People - 65 And Over,Third Party Payments,Home Care,568,14-Feb-2012,1202-00353,573.30,R,Ark Home Healthcare Ltd,
http://statistics.data.gov.uk/doc/local-authority/00DA,Leeds City Council,Adult Social Care,Services For Older People - 65 And Over,Third Party Payments,Home Care,568,24-Feb-2012,1202-00354,605.15,R,Ark Home Healthcare Ltd,
http://statistics.data.gov.uk/doc/local-authority/00DA,Leeds City Council,Adult Social Care,Services For Older People - 65 And Over,Third Party Payments,Home Care,568,24-Feb-2012,1202-00355,6848.72,R,Ark Home Healthcare Ltd,
http://statistics.data.gov.uk/doc/local-authority/00DA,Leeds City Council,Adult Social Care,Services For Older People Under 65 P/Dis,Third Party Payments,Home Care,568,24-Feb-2012,1202-00356,844.30,R,Ark Home Healthcare Ltd,
http://statistics.data.gov.uk/doc/local-authority/00DA,Leeds City Council,Adult Social Care,Services For Older People - 65 And Over,Third Party Payments,Home Care,568,24-Feb-2012,1202-00357,4477.35,R,Ark Home Healthcare Ltd,
http://statistics.data.gov.uk/doc/local-authority/00DA,Leeds City Council,Adult Social Care,Services For Older People - 65 And Over,Third Party Payments,Home Care,568,24-Feb-2012,1202-00358,4189.25,R,Ark Home Healthcare Ltd,
http://statistics.data.gov.uk/doc/local-authority/00DA,Leeds City Council,Adult Social Care,Services For Older People - 65 And Over,Third Party Payments,Home Care,568,24-Feb-2012,1202-00359,10788.55,R,Ark Home Healthcare Ltd,
http://statistics.data.gov.uk/doc/local-authority/00DA,Leeds City Council,Adult Social Care,Services For Older People Under 65 P/Dis,Third Party Payments,Home Care,568,24-Feb-2012,1202-00360,2736.93,R,Ark Home Healthcare Ltd,
http://statistics.data.gov.uk/doc/local-authority/00DA,Leeds City Council,Adult Social Care,Services For Older People - 65 And Over,Third Party Payments,Home Care,568,24-Feb-2012,1202-00361,22493.76,R,Ark Home Healthcare Ltd,
http://statistics.data.gov.uk/doc/local-authority/00DA,Leeds City Council,Adult Social Care,Services For Older People - 65 And Over,Third Party Payments,Home Care,568,24-Feb-2012,1202-00362,3603.78,R,Ark Home Healthcare Ltd,
http://statistics.data.gov.uk/doc/local-authority/00DA,Leeds City Council,Adult Social Care,Services For Older People Under 65 P/Dis,Third Party Payments,Home Care,568,24-Feb-2012,1202-00363,699.29,R,Ark Home Healthcare Ltd,
http://statistics.data.gov.uk/doc/local-authority/00DA,Leeds City Council,Adult Social Care,Services For Older People - 65 And Over,Third Party Payments,Home Care,568,24-Feb-2012,1202-00364,8186.73,R,Ark Home Healthcare Ltd,
http://statistics.data.gov.uk/doc/local-authority/00DA,Leeds City Council,City Development,Highways,Transport,Plant Hire - By Directorate,305,22-Feb-2012,1202-00365,2000.00,R,Armcon Limited,
http://statistics.data.gov.uk/doc/local-authority/00DA,East - North East                    ,East - North East,Construction Services,Supplies and Services,Other Materials,205,10-Feb-2012,1202-00366,473.79,R,Arnold Laver & Co Ltd,
http://statistics.data.gov.uk/doc/local-authority/00DA,Leeds City Council,Central & Corporate Functions,Commercial Services Trading Services,Supplies and Services,Operational Materials,205,15-Feb-2012,1202-00367,531.18,R,Arnold Laver & Co Ltd,
http://statistics.data.gov.uk/doc/local-authority/00DA,East - North East                    ,East - North East,Construction Services,Supplies and Services,Other Materials,205,17-Feb-2012,1202-00368,1067.43,R,Arnold Laver & Co Ltd,
http://statistics.data.gov.uk/doc/local-authority/00DA,East - North East                    ,East - North East,Construction Services,Supplies and Services,Other Materials,205,29-Feb-2012,1202-00369,882.54,R,Arnold Laver & Co Ltd,
http://statistics.data.gov.uk/doc/local-authority/00DA,Leeds City Council,City Development,Highways,Supplies and Services,Operational Materials,205,29-Feb-2012,1202-00370,594.22,R,Arnold Laver & Co Ltd,
http://statistics.data.gov.uk/doc/local-authority/00DA,East - North East                    ,East - North East,Construction Services,Supplies and Services,Other Materials,205,01-Feb-2012,1202-00371,495.52,R,Arnold Laver Timber World,
http://statistics.data.gov.uk/doc/local-authority/00DA,East - North East                    ,East - North East,Technical Services,Supplies and Services,Other Hired And Contracted Services,265,08-Feb-2012,1202-00372,3850.00,R,Arr Spend Management Solutions,
http://statistics.data.gov.uk/doc/local-authority/00DA,East - North East                    ,East - North East,Technical Services,Supplies and Services,Other Hired And Contracted Services,265,16-Feb-2012,1202-00373,3850.00,R,Arr Spend Management Solutions,
http://statistics.data.gov.uk/doc/local-authority/00DA,Leeds City Council,Adult Social Care,Services For Older People - 65 And Over,Third Party Payments,Nursing Home,570,16-Feb-2012,1202-00374,1347.20,R,Arrigadeen Nursing Home,
http://statistics.data.gov.uk/doc/local-authority/00DA,Leeds City Council,City Development,Economic Development,Supplies and Services,Other Hired And Contracted Services,265,20-Feb-2012,1202-00375,3653.65,R,Artavia,
http://statistics.data.gov.uk/doc/local-authority/00DA,Leeds City Council,Adult Social Care,Social Services Support Services,Third Party Payments,Payments To Voluntary Organisations,561,02-Feb-2012,1202-00376,13893.17,R,Articulate Advocacy,
http://statistics.data.gov.uk/doc/local-authority/00DA,Leeds City Council,Adult Social Care,Services For Adults Under 65 Learn/Dis,Supplies and Services,Non-Recurring Grants,227,02-Feb-2012,1202-00377,4416.06,R,Articulate Advocacy,
http://statistics.data.gov.uk/doc/local-authority/00DA,Leeds City Council as Accountable Body,Social Services Pooled Budgets,Jcs For People With Learning Disabilitie,Third Party Payments,Other Agency Services,561,23-Feb-2012,1202-00378,2063.17,R,Articulate Advocacy,
http://statistics.data.gov.uk/doc/local-authority/00DA,Leeds City Council,City Development,Libraries  Arts & Heritage,Supplies and Services,Operational Materials,205,17-Feb-2012,1202-00379,846.96,R,Artificial Grass 4u,
http://statistics.data.gov.uk/doc/local-authority/00DA,Leeds City Council,Environment & Neighbourhoods,Strategy & Commissioning,Supplies and Services,Non-Recurring Grants,227,22-Feb-2012,1202-00380,1411.55,R,Artlink West Yorkshire,
http://statistics.data.gov.uk/doc/local-authority/00DA,Leeds City Council,City Development,Recreation,Supplies and Services,Resaleable Materials,204,24-Feb-2012,1202-00381,644.88,R,Asa Awards Scheme,
http://statistics.data.gov.uk/doc/local-authority/00DA,Leeds City Council,City Development,Recreation,Supplies and Services,Resaleable Materials,204,24-Feb-2012,1202-00382,2528.02,R,Asa Awards Scheme,
http://statistics.data.gov.uk/doc/local-authority/00DA,Leeds City Council,City Development,Recreation,Employees,Training Costs,071,17-Feb-2012,1202-00383,10000.00,R,Asaner (Amater Swimming Association),
http://statistics.data.gov.uk/doc/local-authority/00DA,Leeds City Council,Central & Corporate Functions,Commercial Services Trading Services,Supplies and Services,Other Hired And Contracted Services,265,02-Feb-2012,1202-00384,435.00,R,Asbestos Sample Analysis Limited,
http://statistics.data.gov.uk/doc/local-authority/00DA,Leeds City Council,Central & Corporate Functions,Commercial Services Trading Services,Supplies and Services,Other Hired And Contracted Services,265,23-Feb-2012,1202-00385,420.00,R,Asbestos Sample Analysis Limited,
http://statistics.data.gov.uk/doc/local-authority/00DA,Leeds City Council,Central & Corporate Functions,Commercial Services Trading Services,Supplies and Services,Other Hired And Contracted Services,265,23-Feb-2012,1202-00386,420.00,R,Asbestos Sample Analysis Limited,
http://statistics.data.gov.uk/doc/local-authority/00DA,Leeds City Council,Central & Corporate Functions,Executive Support,Supplies and Services,'Well Being' Large Grants Projects,230,24-Feb-2012,1202-00387,4762.00,R,Asha Neighbourhood Project,
http://statistics.data.gov.uk/doc/local-authority/00DA,Leeds City Council,Adult Social Care,Services For Older People - 65 And Over,Third Party Payments,Residential,580,15-Feb-2012,1202-00388,8286.69,R,Ashcroft House Residential Home,
http://statistics.data.gov.uk/doc/local-authority/00DA,Leeds City Council,Adult Social Care,Services For Older People - 65 And Over,Third Party Payments,Nursing Home,570,15-Feb-2012,1202-00389,4762.65,R,Ashcroft Nursing Home,
http://statistics.data.gov.uk/doc/local-authority/00DA,Leeds City Council,Adult Social Care,Services For Older People - 65 And Over,Third Party Payments,Nursing Home,570,15-Feb-2012,1202-00390,1209.96,R,Ashcroft Nursing Home,
http://statistics.data.gov.uk/doc/local-authority/00DA,Leeds City Council,Adult Social Care,Services For Older People - 65 And Over,Third Party Payments,Residential Care Emi,571,15-Feb-2012,1202-00391,782.16,R,Ashcroft Nursing Home,
http://statistics.data.gov.uk/doc/local-authority/00DA,Leeds City Council,Adult Social Care,Services For Older People - 65 And Over,Third Party Payments,Residential Care Emi,571,15-Feb-2012,1202-00392,660.48,R,Ashfield Court,
http://statistics.data.gov.uk/doc/local-authority/00DA,Leeds City Council,Adult Social Care,Services For Older People - 65 And Over,Third Party Payments,Residential,580,15-Feb-2012,1202-00393,507.28,R,Ashfield Court,
http://statistics.data.gov.uk/doc/local-authority/00DA,Leeds City Council,Adult Social Care,Services For Older People - 65 And Over,Third Party Payments,Nursing Home,570,15-Feb-2012,1202-00394,13840.92,R,Ashfield Nursing Home,
http://statistics.data.gov.uk/doc/local-authority/00DA,Leeds City Council,Adult Social Care,Services For Adults Under 65 Mental/Dis,Third Party Payments,Residential,580,15-Feb-2012,1202-00395,2318.40,R,Ashfield Nursing Home,
http://statistics.data.gov.uk/doc/local-authority/00DA,Leeds City Council,Adult Social Care,Services For Older People - 65 And Over,Third Party Payments,Residential,580,15-Feb-2012,1202-00396,2697.88,R,Ashfield Nursing Home,
http://statistics.data.gov.uk/doc/local-authority/00DA,Leeds City Council,Adult Social Care,Services For Older People - 65 And Over,Third Party Payments,Nursing Home,570,15-Feb-2012,1202-00397,1504.00,R,Ashley Care Ltd,
http://statistics.data.gov.uk/doc/local-authority/00DA,Leeds City Council,City Development,Recreation,Transport,Hire Of Movable Plant & Machinery,315,03-Feb-2012,1202-00398,470.78,R,Ashtead Plant Hire Company Ltd,
http://statistics.data.gov.uk/doc/local-authority/00DA,Leeds City Council,City Development,Highways,Transport,Plant Hire - By Directorate,305,03-Feb-2012,1202-00399,660.00,R,Ashtead Plant Hire Company Ltd,
http://statistics.data.gov.uk/doc/local-authority/00DA,Leeds City Council,City Development,Highways,Transport,Plant Hire - By Directorate,305,03-Feb-2012,1202-00400,660.00,R,Ashtead Plant Hire Company Ltd,
http://statistics.data.gov.uk/doc/local-authority/00DA,Leeds City Council,City Development,Highways,Transport,Plant Hire - By Directorate,305,03-Feb-2012,1202-00401,880.00,R,Ashtead Plant Hire Company Ltd,
http://statistics.data.gov.uk/doc/local-authority/00DA,Leeds City Council,Central & Corporate Functions,Commercial Services Trading Services,Supplies and Services,Other Hired And Contracted Services,265,21-Feb-2012,1202-00402,726.00,R,Ashtead Plant Hire Company Ltd,
http://statistics.data.gov.uk/doc/local-authority/00DA,Leeds City Council,Adult Social Care,Services For Older People - 65 And Over,Third Party Payments,Residential Care Emi,571,15-Feb-2012,1202-00403,857.96,R,Ashville Care Home,
http://statistics.data.gov.uk/doc/local-authority/00DA,Leeds City Council,Adult Social Care,Services For Older People - 65 And Over,Third Party Payments,Residential Care Emi,571,16-Feb-2012,1202-00404,1145.32,R,Ashworth Grange,
http://statistics.data.gov.uk/doc/local-authority/00DA,Leeds City Council,Adult Social Care,Services For Older People - 65 And Over,Third Party Payments,Residential,580,16-Feb-2012,1202-00405,1422.88,R,Ashworth Grange,
http://statistics.data.gov.uk/doc/local-authority/00DA,Leeds City Council,City Development,Libraries  Arts & Heritage,Supplies and Services,Books & Audio-Visual Materials,206,01-Feb-2012,1202-00406,834.48,R,Askews & Holts Library Services Ltd,
http://statistics.data.gov.uk/doc/local-authority/00DA,Leeds City Council,City Development,Libraries  Arts & Heritage,Supplies and Services,Books & Audio-Visual Materials,206,07-Feb-2012,1202-00407,1018.16,R,Askews & Holts Library Services Ltd,
http://statistics.data.gov.uk/doc/local-authority/00DA,Leeds City Council,City Development,Libraries  Arts & Heritage,Supplies and Services,Books & Audio-Visual Materials,206,07-Feb-2012,1202-00408,1634.07,R,Askews & Holts Library Services Ltd,
http://statistics.data.gov.uk/doc/local-authority/00DA,Leeds City Council,City Development,Libraries  Arts & Heritage,Supplies and Services,Books & Audio-Visual Materials,206,07-Feb-2012,1202-00409,5760.06,R,Askews & Holts Library Services Ltd,
http://statistics.data.gov.uk/doc/local-authority/00DA,Leeds City Council,City Development,Libraries  Arts & Heritage,Supplies and Services,Books & Audio-Visual Materials,206,07-Feb-2012,1202-00410,1650.58,R,Askews & Holts Library Services Ltd,
http://statistics.data.gov.uk/doc/local-authority/00DA,Leeds City Council,City Development,Libraries  Arts & Heritage,Supplies and Services,Books & Audio-Visual Materials,206,07-Feb-2012,1202-00411,5205.93,R,Askews & Holts Library Services Ltd,
http://statistics.data.gov.uk/doc/local-authority/00DA,Leeds City Council,City Development,Libraries  Arts & Heritage,Supplies and Services,Books & Audio-Visual Materials,206,09-Feb-2012,1202-00412,423.68,R,Askews & Holts Library Services Ltd,
http://statistics.data.gov.uk/doc/local-authority/00DA,Leeds City Council,City Development,Libraries  Arts & Heritage,Supplies and Services,Books & Audio-Visual Materials,206,10-Feb-2012,1202-00413,658.18,R,Askews & Holts Library Services Ltd,
http://statistics.data.gov.uk/doc/local-authority/00DA,Leeds City Council,City Development,Libraries  Arts & Heritage,Supplies and Services,Books & Audio-Visual Materials,206,14-Feb-2012,1202-00414,5647.55,R,Askews & Holts Library Services Ltd,
http://statistics.data.gov.uk/doc/local-authority/00DA,Leeds City Council,City Development,Libraries  Arts & Heritage,Supplies and Services,Books & Audio-Visual Materials,206,14-Feb-2012,1202-00415,1355.68,R,Askews & Holts Library Services Ltd,
http://statistics.data.gov.uk/doc/local-authority/00DA,Leeds City Council,City Development,Libraries  Arts & Heritage,Supplies and Services,Books & Audio-Visual Materials,206,14-Feb-2012,1202-00416,3627.54,R,Askews & Holts Library Services Ltd,
http://statistics.data.gov.uk/doc/local-authority/00DA,Leeds City Council,City Development,Libraries  Arts & Heritage,Supplies and Services,Books & Audio-Visual Materials,206,14-Feb-2012,1202-00417,1600.43,R,Askews & Holts Library Services Ltd,
http://statistics.data.gov.uk/doc/local-authority/00DA,Leeds City Council,City Development,Libraries  Arts & Heritage,Supplies and Services,Books & Audio-Visual Materials,206,14-Feb-2012,1202-00418,1661.64,R,Askews & Holts Library Services Ltd,
http://statistics.data.gov.uk/doc/local-authority/00DA,Leeds City Council,City Development,Libraries  Arts & Heritage,Supplies and Services,Books & Audio-Visual Materials,206,14-Feb-2012,1202-00419,6648.43,R,Askews & Holts Library Services Ltd,
http://statistics.data.gov.uk/doc/local-authority/00DA,Leeds City Council,City Development,Libraries  Arts & Heritage,Supplies and Services,Books & Audio-Visual Materials,206,20-Feb-2012,1202-00420,645.92,R,Askews & Holts Library Services Ltd,
http://statistics.data.gov.uk/doc/local-authority/00DA,Leeds City Council,City Development,Libraries  Arts & Heritage,Supplies and Services,Books & Audio-Visual Materials,206,20-Feb-2012,1202-00421,4434.25,R,Askews & Holts Library Services Ltd,
http://statistics.data.gov.uk/doc/local-authority/00DA,Leeds City Council,City Development,Libraries  Arts & Heritage,Supplies and Services,Books & Audio-Visual Materials,206,20-Feb-2012,1202-00422,1579.45,R,Askews & Holts Library Services Ltd,
http://statistics.data.gov.uk/doc/local-authority/00DA,Leeds City Council,City Development,Libraries  Arts & Heritage,Supplies and Services,Books & Audio-Visual Materials,206,20-Feb-2012,1202-00423,904.02,R,Askews & Holts Library Services Ltd,
http://statistics.data.gov.uk/doc/local-authority/00DA,Leeds City Council,City Development,Libraries  Arts & Heritage,Supplies and Services,Books & Audio-Visual Materials,206,23-Feb-2012,1202-00424,3364.54,R,Askews & Holts Library Services Ltd,
http://statistics.data.gov.uk/doc/local-authority/00DA,Leeds City Council,City Development,Libraries  Arts & Heritage,Supplies and Services,Books & Audio-Visual Materials,206,23-Feb-2012,1202-00425,428.69,R,Askews & Holts Library Services Ltd,
http://statistics.data.gov.uk/doc/local-authority/00DA,Leeds City Council,City Development,Libraries  Arts & Heritage,Supplies and Services,Books & Audio-Visual Materials,206,23-Feb-2012,1202-00426,964.46,R,Askews & Holts Library Services Ltd,
http://statistics.data.gov.uk/doc/local-authority/00DA,Leeds City Council,City Development,Libraries  Arts & Heritage,Supplies and Services,Books & Audio-Visual Materials,206,28-Feb-2012,1202-00427,9480.97,R,Askews & Holts Library Services Ltd,
http://statistics.data.gov.uk/doc/local-authority/00DA,Leeds City Council,City Development,Libraries  Arts & Heritage,Supplies and Services,Books & Audio-Visual Materials,206,28-Feb-2012,1202-00428,2273.43,R,Askews & Holts Library Services Ltd,
http://statistics.data.gov.uk/doc/local-authority/00DA,Leeds City Council,City Development,Libraries  Arts & Heritage,Supplies and Services,Books & Audio-Visual Materials,206,28-Feb-2012,1202-00429,5449.42,R,Askews & Holts Library Services Ltd,
http://statistics.data.gov.uk/doc/local-authority/00DA,Leeds City Council,City Development,Libraries  Arts & Heritage,Supplies and Services,Books & Audio-Visual Materials,206,28-Feb-2012,1202-00430,1842.54,R,Askews & Holts Library Services Ltd,
http://statistics.data.gov.uk/doc/local-authority/00DA,Leeds City Council,City Development,Libraries  Arts & Heritage,Supplies and Services,Books & Audio-Visual Materials,206,28-Feb-2012,1202-00431,5249.27,R,Askews & Holts Library Services Ltd,
http://statistics.data.gov.uk/doc/local-authority/00DA,Leeds City Council,City Development,Libraries  Arts & Heritage,Supplies and Services,Books & Audio-Visual Materials,206,28-Feb-2012,1202-00432,2275.94,R,Askews & Holts Library Services Ltd,
http://statistics.data.gov.uk/doc/local-authority/00DA,Leeds City Council,City Development,Libraries  Arts & Heritage,Supplies and Services,Books & Audio-Visual Materials,206,29-Feb-2012,1202-00433,663.48,R,Askews & Holts Library Services Ltd,
http://statistics.data.gov.uk/doc/local-authority/00DA,Aire Valley Homes Leeds             ,Aire Valley Homes Leeds,Aire Valley Homes Leeds,Employees,General Training,079,20-Feb-2012,1202-00434,960.00,R,Askham Bryan College,
http://statistics.data.gov.uk/doc/local-authority/00DA,Leeds City Council,Childrens Services,Learning Skills & Universal,Premises,Maintenance Of Buildings,101,10-Feb-2012,1202-00435,810.00,R,Aspect Building Solutions,
http://statistics.data.gov.uk/doc/local-authority/00DA,Leeds City Council,Childrens Services,Learning Skills & Universal,Premises,Maintenance Of Buildings,101,21-Feb-2012,1202-00436,630.00,R,Aspect Building Solutions,
http://statistics.data.gov.uk/doc/local-authority/00DA,Leeds City Council,City Development,Highways,Transport,Plant Hire - By Directorate,305,10-Feb-2012,1202-00437,1160.00,R,Asphalt Pavers,
http://statistics.data.gov.uk/doc/local-authority/00DA,Leeds City Council,City Development,Highways,Transport,Plant Hire - By Directorate,305,10-Feb-2012,1202-00438,726.00,R,Asphalt Pavers,
http://statistics.data.gov.uk/doc/local-authority/00DA,Leeds City Council,City Development,Highways,Transport,Plant Hire - By Directorate,305,10-Feb-2012,1202-00439,635.00,R,Asphalt Pavers,
http://statistics.data.gov.uk/doc/local-authority/00DA,Leeds City Council,City Development,Highways,Transport,Plant Hire - By Directorate,305,10-Feb-2012,1202-00440,1901.00,R,Asphalt Pavers,
http://statistics.data.gov.uk/doc/local-authority/00DA,Leeds City Council,City Development,Highways,Transport,Plant Hire - By Directorate,305,10-Feb-2012,1202-00441,790.00,R,Asphalt Pavers,
http://statistics.data.gov.uk/doc/local-authority/00DA,Leeds City Council,City Development,Highways,Transport,Plant Hire - By Directorate,305,24-Feb-2012,1202-00442,3292.00,R,Asphalt Pavers,
http://statistics.data.gov.uk/doc/local-authority/00DA,Leeds City Council,City Development,Highways,Transport,Plant Hire - By Directorate,305,24-Feb-2012,1202-00443,790.00,R,Asphalt Pavers,
http://statistics.data.gov.uk/doc/local-authority/00DA,Leeds City Council,Childrens Services,Learning Skills & Universal,Supplies and Services,Bought In Professional Services,277,23-Feb-2012,1202-00444,3150.00,R,Aspirational Education Limited,
http://statistics.data.gov.uk/doc/local-authority/00DA,Leeds City Council,Childrens Services,Learning Skills & Universal,Supplies and Services,Other Hired And Contracted Services,265,22-Feb-2012,1202-00445,825.00,R,Aspire And Achieve Ltd,
http://statistics.data.gov.uk/doc/local-authority/00DA,Aire Valley Homes Leeds             ,Aire Valley Homes Leeds,Aire Valley Homes Leeds,Supplies and Services,Conference Fees,253,17-Feb-2012,1202-00446,4302.00,R,Aspire Ltd,
http://statistics.data.gov.uk/doc/local-authority/00DA,Leeds City Council,Environment & Neighbourhoods,West North West,Capital,Construction,3,23-Feb-2012,1202-00447,3900.00,C,Asprey Bros Ltd,
http://statistics.data.gov.uk/doc/local-authority/00DA,Leeds City Council,Environment & Neighbourhoods,East North East,Capital,Construction,3,23-Feb-2012,1202-00448,3750.00,C,Asprey Bros Ltd,
http://statistics.data.gov.uk/doc/local-authority/00DA,Leeds City Council,Childrens Services,Learning Skills & Universal,Third Party Payments,Services Rendered By Other Organisations,511,06-Feb-2012,1202-00449,14385.60,R,Asquith Court Nursery,
http://statistics.data.gov.uk/doc/local-authority/00DA,Leeds City Council,Childrens Services,Learning Skills & Universal,Third Party Payments,Services Rendered By Other Organisations,511,28-Feb-2012,1202-00450,507.00,R,Asquith Court Nursery,
http://statistics.data.gov.uk/doc/local-authority/00DA,Leeds City Council,Childrens Services,Learning Skills & Universal,Third Party Payments,Services Rendered By Other Organisations,511,06-Feb-2012,1202-00451,6970.80,R,Asquith Nurseries Ltd,
http://statistics.data.gov.uk/doc/local-authority/00DA,Leeds City Council,Childrens Services,Learning Skills & Universal,Supplies and Services,Schools Examination Entry Fees,269,28-Feb-2012,1202-00452,1030.00,R,Assessment And Qualifications Alliance,
http://statistics.data.gov.uk/doc/local-authority/00DA,Leeds City Council,Central & Corporate Functions,Support And Facilities General Fund  ,Premises,Removal Of Refuse,126,12-Jan-2012,1202-00453,491.82,R,Associated Waste Manageme,
http://statistics.data.gov.uk/doc/local-authority/00DA,Leeds City Council,Central & Corporate Functions,Commercial Services Trading Services  ,Premises,Removal Of Refuse,126,12-Jan-2012,1202-00454,2444.14,R,Associated Waste Manageme,
http://statistics.data.gov.uk/doc/local-authority/00DA,Leeds City Council,Central & Corporate Functions,Support And Facilities General Fund  ,Premises,Removal Of Refuse,126,17-Jan-2012,1202-00455,534.36,R,Associated Waste Manageme,
http://statistics.data.gov.uk/doc/local-authority/00DA,Leeds City Council,Central & Corporate Functions,Support And Facilities General Fund  ,Premises,Removal Of Refuse,126,19-Jan-2012,1202-00456,471.28,R,Associated Waste Manageme,
http://statistics.data.gov.uk/doc/local-authority/00DA,Leeds City Council,Central & Corporate Functions,Commercial Services Trading Services,Supplies and Services,Other Hired And Contracted Services,265,02-Feb-2012,1202-00457,1227.84,R,Associated Waste Management Limited,
http://statistics.data.gov.uk/doc/local-authority/00DA,Leeds City Council,City Development,Recreation,Premises,Removal Of Workplace Waste,126,02-Feb-2012,1202-00458,426.00,R,Associated Waste Management Limited,
http://statistics.data.gov.uk/doc/local-authority/00DA,Leeds City Council,City Development,Recreation,Premises,Removal Of Workplace Waste,126,07-Feb-2012,1202-00459,650.00,R,Associated Waste Management Limited,
http://statistics.data.gov.uk/doc/local-authority/00DA,Leeds City Council,City Development,Recreation,Premises,Removal Of Workplace Waste,126,10-Feb-2012,1202-00460,737.74,R,Associated Waste Management Limited,
http://statistics.data.gov.uk/doc/local-authority/00DA,Leeds City Council,City Development,Libraries  Arts & Heritage,Premises,Removal Of Workplace Waste,126,10-Feb-2012,1202-00461,3744.25,R,Associated Waste Management Limited,
http://statistics.data.gov.uk/doc/local-authority/00DA,Leeds City Council,City Development,Recreation,Premises,Removal Of Workplace Waste,126,16-Feb-2012,1202-00462,506.00,R,Associated Waste Management Limited,
http://statistics.data.gov.uk/doc/local-authority/00DA,Leeds City Council,City Development,Recreation,Premises,Removal Of Workplace Waste,126,16-Feb-2012,1202-00463,650.00,R,Associated Waste Management Limited,
http://statistics.data.gov.uk/doc/local-authority/00DA,Leeds City Council,Environment & Neighbourhoods,Streetscene Environmental Services,Supplies and Services,Recycling & Reuse Charges,234,20-Feb-2012,1202-00464,10689.41,R,Associated Waste Management Limited,
http://statistics.data.gov.uk/doc/local-authority/00DA,Leeds City Council,Environment & Neighbourhoods,Streetscene Environmental Services,Supplies and Services,Waste Disposal Charges,236,20-Feb-2012,1202-00465,19851.93,R,Associated Waste Management Limited,
http://statistics.data.gov.uk/doc/local-authority/00DA,Leeds City Council,Environment & Neighbourhoods,Streetscene Environmental Services,Supplies and Services,Waste Disposal Charges,237,20-Feb-2012,1202-00466,35438.21,R,Associated Waste Management Limited,
http://statistics.data.gov.uk/doc/local-authority/00DA,Leeds City Council,Environment & Neighbourhoods,Streetscene Environmental Services,Supplies and Services,Recycling & Reuse Charges,234,20-Feb-2012,1202-00467,11222.03,R,Associated Waste Management Limited,
http://statistics.data.gov.uk/doc/local-authority/00DA,Leeds City Council,Environment & Neighbourhoods,Streetscene Environmental Services,Supplies and Services,Waste Disposal Charges,236,20-Feb-2012,1202-00468,20840.94,R,Associated Waste Management Limited,
http://statistics.data.gov.uk/doc/local-authority/00DA,Leeds City Council,Environment & Neighbourhoods,Streetscene Environmental Services,Supplies and Services,Waste Disposal Charges,237,20-Feb-2012,1202-00469,37204.09,R,Associated Waste Management Limited,
http://statistics.data.gov.uk/doc/local-authority/00DA,Leeds City Council,Environment & Neighbourhoods,Streetscene Environmental Services,Supplies and Services,Recycling & Reuse Charges,234,20-Feb-2012,1202-00470,6395.56,R,Associated Waste Management Limited,
http://statistics.data.gov.uk/doc/local-authority/00DA,Leeds City Council,Environment & Neighbourhoods,Streetscene Environmental Services,Supplies and Services,Waste Disposal Charges,236,20-Feb-2012,1202-00471,11877.51,R,Associated Waste Management Limited,
http://statistics.data.gov.uk/doc/local-authority/00DA,Leeds City Council,Environment & Neighbourhoods,Streetscene Environmental Services,Supplies and Services,Waste Disposal Charges,237,20-Feb-2012,1202-00472,21203.00,R,Associated Waste Management Limited,
http://statistics.data.gov.uk/doc/local-authority/00DA,Leeds City Council,Environment & Neighbourhoods,Streetscene Environmental Services,Supplies and Services,Recycling & Reuse Charges,234,20-Feb-2012,1202-00473,7111.42,R,Associated Waste Management Limited,
http://statistics.data.gov.uk/doc/local-authority/00DA,Leeds City Council,Environment & Neighbourhoods,Streetscene Environmental Services,Supplies and Services,Waste Disposal Charges,236,20-Feb-2012,1202-00474,13206.95,R,Associated Waste Management Limited,
http://statistics.data.gov.uk/doc/local-authority/00DA,Leeds City Council,Environment & Neighbourhoods,Streetscene Environmental Services,Supplies and Services,Waste Disposal Charges,237,20-Feb-2012,1202-00475,23576.28,R,Associated Waste Management Limited,
http://statistics.data.gov.uk/doc/local-authority/00DA,Leeds City Council,City Development,Recreation,Premises,Removal Of Workplace Waste,126,23-Feb-2012,1202-00476,650.00,R,Associated Waste Management Limited,
http://statistics.data.gov.uk/doc/local-authority/00DA,Leeds City Council,Central & Corporate Functions,Commercial Services Trading Services,Supplies and Services,Other Hired And Contracted Services,265,23-Feb-2012,1202-00477,553.17,R,Associated Waste Management Limited,
http://statistics.data.gov.uk/doc/local-authority/00DA,Leeds City Council,City Development,Highways,Supplies and Services,Food & Drink,231,24-Feb-2012,1202-00478,511.00,R,Associated Waste Management Limited,
http://statistics.data.gov.uk/doc/local-authority/00DA,Leeds City Council,City Development,Recreation,Premises,Removal Of Workplace Waste,126,24-Feb-2012,1202-00479,650.00,R,Associated Waste Management Limited,
http://statistics.data.gov.uk/doc/local-authority/00DA,East - North East                    ,East - North East,Construction Services,Employees,General Training,079,24-Feb-2012,1202-00480,600.00,R,Astra  Access Safety Training Ltd,
http://statistics.data.gov.uk/doc/local-authority/00DA,Leeds City Council,Adult Social Care,Services For Older People - 65 And Over,Third Party Payments,Nursing Home,570,15-Feb-2012,1202-00481,17805.93,R,Atkinson Court,
http://statistics.data.gov.uk/doc/local-authority/00DA,Leeds City Council,Adult Social Care,Services For Older People - 65 And Over,Third Party Payments,Nursing Care Emi,574,15-Feb-2012,1202-00482,17594.01,R,Atkinson Court,
http://statistics.data.gov.uk/doc/local-authority/00DA,Leeds City Council,Central & Corporate Functions,Commercial Services Trading Services,Supplies and Services,Other Hired And Contracted Services,265,22-Feb-2012,1202-00483,833.33,R,Atkinsons Fencing Limited,
http://statistics.data.gov.uk/doc/local-authority/00DA,Leeds City Council,City Development,Highways,Supplies and Services,Other Hired And Contracted Services,265,22-Feb-2012,1202-00484,421.67,R,Atkinsons Fencing Limited,
http://statistics.data.gov.uk/doc/local-authority/00DA,Leeds City Council,Central & Corporate Functions,Commercial Services Trading Services,Supplies and Services,Other Hired And Contracted Services,265,29-Feb-2012,1202-00485,1820.00,R,Atkinsons Fencing Limited,
http://statistics.data.gov.uk/doc/local-authority/00DA,Leeds City Council,Adult Social Care,Services For Older People - 65 And Over,Third Party Payments,Nursing Home,570,15-Feb-2012,1202-00486,1584.00,R,Attlee Court,
http://statistics.data.gov.uk/doc/local-authority/00DA,Leeds City Council,Adult Social Care,Services For Older People - 65 And Over,Third Party Payments,Nursing Care Emi,574,15-Feb-2012,1202-00487,1143.36,R,Attlee Court,
http://statistics.data.gov.uk/doc/local-authority/00DA,Leeds City Council,City Development,Libraries  Arts & Heritage,Supplies and Services,Books & Audio-Visual Materials,206,15-Feb-2012,1202-00488,623.86,R,Audiogo Ltd,
http://statistics.data.gov.uk/doc/local-authority/00DA,Leeds City Council,City Development,Libraries  Arts & Heritage,Supplies and Services,Books & Audio-Visual Materials,206,15-Feb-2012,1202-00489,723.25,R,Audiogo Ltd,
http://statistics.data.gov.uk/doc/local-authority/00DA,Leeds City Council,City Development,Libraries  Arts & Heritage,Supplies and Services,Books & Audio-Visual Materials,206,23-Feb-2012,1202-00490,530.40,R,Audiogo Ltd,
http://statistics.data.gov.uk/doc/local-authority/00DA,Leeds City Council,City Development,Libraries  Arts & Heritage,Supplies and Services,Books & Audio-Visual Materials,206,28-Feb-2012,1202-00491,689.34,R,Audiogo Ltd,
http://statistics.data.gov.uk/doc/local-authority/00DA,Leeds City Council as Accountable Body,Social Services Pooled Budgets,Jcs For People With Learning Disabilitie,Third Party Payments,Residential,580,15-Feb-2012,1202-00492,8217.00,R,Autism Care (Uk) Ltd,
http://statistics.data.gov.uk/doc/local-authority/00DA,Leeds City Council,Childrens Services,Safeguarding Targeted & Specialist,Third Party Payments,Services Rendered By Other Organisations,511,10-Feb-2012,1202-00493,450.50,R,Autism Partnership Uk Ltd,
http://statistics.data.gov.uk/doc/local-authority/00DA,Leeds City Council,Childrens Services,Safeguarding Targeted & Specialist,Third Party Payments,Services Rendered By Other Organisations,511,10-Feb-2012,1202-00494,2544.04,R,Autism Partnership Uk Ltd,
http://statistics.data.gov.uk/doc/local-authority/00DA,Leeds City Council,Childrens Services,Safeguarding Targeted & Specialist,Third Party Payments,Services Rendered By Other Organisations,511,10-Feb-2012,1202-00495,1557.14,R,Autism Partnership Uk Ltd,
http://statistics.data.gov.uk/doc/local-authority/00DA,Leeds City Council,Childrens Services,Safeguarding Targeted & Specialist,Third Party Payments,Services Rendered By Other Organisations,511,10-Feb-2012,1202-00496,911.75,R,Autism Partnership Uk Ltd,
http://statistics.data.gov.uk/doc/local-authority/00DA,Leeds City Council,Childrens Services,Safeguarding Targeted & Specialist,Third Party Payments,Services Rendered By Other Organisations,511,10-Feb-2012,1202-00497,503.50,R,Autism Partnership Uk Ltd,
http://statistics.data.gov.uk/doc/local-authority/00DA,Leeds City Council,Childrens Services,Safeguarding Targeted & Specialist,Third Party Payments,Services Rendered By Other Organisations,511,10-Feb-2012,1202-00498,1863.03,R,Autism Partnership Uk Ltd,
http://statistics.data.gov.uk/doc/local-authority/00DA,East - North East                    ,East - North East,Construction Services,Employees,General Training,079,02-Feb-2012,1202-00499,495.00,R,Avalon,
http://statistics.data.gov.uk/doc/local-authority/00DA,East - North East                    ,East - North East,Construction Services,Employees,General Training,079,02-Feb-2012,1202-00500,495.00,R,Avalon,
http://statistics.data.gov.uk/doc/local-authority/00DA,East - North East                    ,East - North East,Construction Services,Supplies and Services,Other Hired And Contracted Services,265,02-Feb-2012,1202-00501,7599.67,R,Avalon,
http://statistics.data.gov.uk/doc/local-authority/00DA,East - North East                    ,East - North East,Housing Services,Premises,Grounds Maintenance (Closed Landfill),134,02-Feb-2012,1202-00502,6133.33,R,Avalon,
http://statistics.data.gov.uk/doc/local-authority/00DA,Leeds City Council as Accountable Body,Social Services Pooled Budgets,Jcs For People With Learning Disabilitie,Third Party Payments,Home Care,568,03-Feb-2012,1202-00503,823.81,R,Avalon,
http://statistics.data.gov.uk/doc/local-authority/00DA,Leeds City Council as Accountable Body,Social Services Pooled Budgets,Jcs For People With Learning Disabilitie,Third Party Payments,Home Care,568,09-Feb-2012,1202-00504,1332.20,R,Avalon,
http://statistics.data.gov.uk/doc/local-authority/00DA,Leeds City Council as Accountable Body,Social Services Pooled Budgets,Jcs For People With Learning Disabilitie,Third Party Payments,Home Care,568,17-Feb-2012,1202-00505,1332.20,R,Avalon,
http://statistics.data.gov.uk/doc/local-authority/00DA,Leeds City Council as Accountable Body,Social Services Pooled Budgets,Jcs For People With Learning Disabilitie,Third Party Payments,Residential,580,03-Feb-2012,1202-00506,4642.20,R,Avens Ltd,
http://statistics.data.gov.uk/doc/local-authority/00DA,Leeds City Council as Accountable Body,Social Services Pooled Budgets,Jcs For People With Learning Disabilitie,Third Party Payments,Residential,580,24-Feb-2012,1202-00507,4642.20,R,Avens Ltd,
http://statistics.data.gov.uk/doc/local-authority/00DA,Leeds City Council,City Development,Libraries  Arts & Heritage  ,Supplies and Services,Other Hired And Contracted Services,265,09-Jan-2012,1202-00508,626.99,R,Avenso UK Ltd,
http://statistics.data.gov.uk/doc/local-authority/00DA,East - North East                    ,East - North East,Construction Services,Supplies and Services,Other Materials,205,01-Feb-2012,1202-00509,770.50,R,Avocet Hardware Ltd,
http://statistics.data.gov.uk/doc/local-authority/00DA,East - North East                    ,East - North East,Construction Services,Supplies and Services,Other Materials,205,01-Feb-2012,1202-00510,536.00,R,Avocet Hardware Ltd,
http://statistics.data.gov.uk/doc/local-authority/00DA,East - North East                    ,East - North East,Construction Services,Supplies and Services,Other Materials,205,09-Feb-2012,1202-00511,2010.00,R,Avocet Hardware Ltd,
http://statistics.data.gov.uk/doc/local-authority/00DA,East - North East                    ,East - North East,Construction Services,Supplies and Services,Other Materials,205,10-Feb-2012,1202-00512,1005.00,R,Avocet Hardware Ltd,
http://statistics.data.gov.uk/doc/local-authority/00DA,East - North East                    ,East - North East,Construction Services,Supplies and Services,Other Materials,205,10-Feb-2012,1202-00513,3350.00,R,Avocet Hardware Ltd,
http://statistics.data.gov.uk/doc/local-authority/00DA,Leeds City Council as Accountable Body,Social Services Pooled Budgets,Jcs For People With Learning Disabilitie,Third Party Payments,Residential,580,15-Feb-2012,1202-00514,4143.32,R,Avon Lodge,
http://statistics.data.gov.uk/doc/local-authority/00DA,Leeds City Council,Childrens Services,Learning Skills & Universal,Supplies and Services,Books & Audio-Visual Materials,206,08-Feb-2012,1202-00515,1776.67,R,Award Scheme Ltd,
http://statistics.data.gov.uk/doc/local-authority/00DA,Leeds City Council,Childrens Services,Learning Skills & Universal,Supplies and Services,Books & Audio-Visual Materials,206,15-Feb-2012,1202-00516,572.50,R,Award Scheme Ltd,
http://statistics.data.gov.uk/doc/local-authority/00DA,Leeds City Council,City Development,Recreation  ,Supplies and Services,*** No Description ***,000,31-Jan-2012,1202-00517,523.20,R,Awards Centre V/t,
http://statistics.data.gov.uk/doc/local-authority/00DA,Leeds City Council,Adult Social Care,Services For Older People - 65 And Over,Third Party Payments,Nursing Home,570,15-Feb-2012,1202-00518,1221.00,R,Ayresome Court Nursing Home,
http://statistics.data.gov.uk/doc/local-authority/00DA,Leeds City Council,Environment & Neighbourhoods,Environmental Health,Capital,Construction,3,03-Feb-2012,1202-00519,4150.00,C,B & K Passmore,
http://statistics.data.gov.uk/doc/local-authority/00DA,Leeds City Council,Environment & Neighbourhoods,Environmental Health,Capital,Construction,3,03-Feb-2012,1202-00520,2890.00,C,B & K Passmore,
http://statistics.data.gov.uk/doc/local-authority/00DA,Leeds City Council,Environment & Neighbourhoods,Environmental Health,Capital,Construction,3,03-Feb-2012,1202-00521,4720.00,C,B & K Passmore,
http://statistics.data.gov.uk/doc/local-authority/00DA,Leeds City Council,Environment & Neighbourhoods,Environmental Health,Capital,Construction,3,08-Feb-2012,1202-00522,4150.00,C,B & K Passmore,
http://statistics.data.gov.uk/doc/local-authority/00DA,Leeds City Council,Environment & Neighbourhoods,Environmental Health,Capital,Construction,3,09-Feb-2012,1202-00523,4150.00,C,B & K Passmore,
http://statistics.data.gov.uk/doc/local-authority/00DA,Leeds City Council,Environment & Neighbourhoods,Environmental Health,Capital,Construction,3,09-Feb-2012,1202-00524,4150.00,C,B & K Passmore,
http://statistics.data.gov.uk/doc/local-authority/00DA,Leeds City Council,Environment & Neighbourhoods,Environmental Health,Capital,Construction,3,09-Feb-2012,1202-00525,28500.00,C,B & K Passmore,
http://statistics.data.gov.uk/doc/local-authority/00DA,Leeds City Council,Environment & Neighbourhoods,Environmental Health,Capital,Construction,3,09-Feb-2012,1202-00526,4720.00,C,B & K Passmore,
http://statistics.data.gov.uk/doc/local-authority/00DA,Leeds City Council,Environment & Neighbourhoods,Environmental Health,Capital,Construction,3,13-Feb-2012,1202-00527,15291.60,C,B & K Passmore,
http://statistics.data.gov.uk/doc/local-authority/00DA,Leeds City Council,Environment & Neighbourhoods,Environmental Health,Capital,Construction,3,16-Feb-2012,1202-00528,2890.00,C,B & K Passmore,
http://statistics.data.gov.uk/doc/local-authority/00DA,Leeds City Council,Environment & Neighbourhoods,Environmental Health,Capital,Construction,3,20-Feb-2012,1202-00529,4150.00,C,B & K Passmore,
http://statistics.data.gov.uk/doc/local-authority/00DA,Leeds City Council,Environment & Neighbourhoods,Environmental Health,Capital,Construction,3,20-Feb-2012,1202-00530,7830.00,C,B & K Passmore,
http://statistics.data.gov.uk/doc/local-authority/00DA,Leeds City Council,Environment & Neighbourhoods,Environmental Health,Capital,Construction,3,20-Feb-2012,1202-00531,4150.00,C,B & K Passmore,
http://statistics.data.gov.uk/doc/local-authority/00DA,Leeds City Council,Environment & Neighbourhoods,Environmental Health,Capital,Construction,3,20-Feb-2012,1202-00532,4150.00,C,B & K Passmore,
http://statistics.data.gov.uk/doc/local-authority/00DA,Leeds City Council,Environment & Neighbourhoods,Environmental Health,Capital,Construction,3,20-Feb-2012,1202-00533,4772.50,C,B & K Passmore,
http://statistics.data.gov.uk/doc/local-authority/00DA,Leeds City Council,Environment & Neighbourhoods,Health & Environmental Action,Income,Admissions  Booking Fees & Ticket Sales,933,20-Feb-2012,1202-00534,-622.50,R,B & K Passmore,
http://statistics.data.gov.uk/doc/local-authority/00DA,Leeds City Council,Environment & Neighbourhoods,Environmental Health,Capital,Construction,3,20-Feb-2012,1202-00535,4150.00,C,B & K Passmore,
http://statistics.data.gov.uk/doc/local-authority/00DA,Leeds City Council,Environment & Neighbourhoods,Environmental Health,Capital,Construction,3,20-Feb-2012,1202-00536,4150.00,C,B & K Passmore,
http://statistics.data.gov.uk/doc/local-authority/00DA,Leeds City Council,Environment & Neighbourhoods,Environmental Health,Capital,Construction,3,24-Feb-2012,1202-00537,4150.00,C,B & K Passmore,
http://statistics.data.gov.uk/doc/local-authority/00DA,Leeds City Council,Environment & Neighbourhoods,Environmental Health,Capital,Construction,3,24-Feb-2012,1202-00538,4420.00,C,B & K Passmore,
http://statistics.data.gov.uk/doc/local-authority/00DA,Leeds City Council,Environment & Neighbourhoods,Environmental Health,Capital,Construction,3,24-Feb-2012,1202-00539,4945.00,C,B & K Passmore,
http://statistics.data.gov.uk/doc/local-authority/00DA,Leeds City Council,Environment & Neighbourhoods,Environmental Health,Capital,Construction,3,24-Feb-2012,1202-00540,4150.00,C,B & K Passmore,
http://statistics.data.gov.uk/doc/local-authority/00DA,Leeds City Council,City Development,Recreation  ,Supplies and Services,Other Materials,205,17-Jan-2012,1202-00541,1166.07,R,B & Q,
http://statistics.data.gov.uk/doc/local-authority/00DA,Leeds City Council,City Development,Asset Management Services,Premises,Maintenance Of Buildings,101,16-Feb-2012,1202-00542,603.55,R,B E Brooks Ecological,
http://statistics.data.gov.uk/doc/local-authority/00DA,Leeds City Council,Central & Corporate Functions,Commercial Services General Fund,Supplies and Services,Office Furniture & Equipment,201,03-Feb-2012,1202-00543,617.00,R,Back Care Solutions Ltd,
http://statistics.data.gov.uk/doc/local-authority/00DA,Leeds City Council,Childrens Services,Learning Skills & Universal,Supplies and Services,Admission Charges To Schools,283,22-Feb-2012,1202-00544,480.00,R,Back Lane Stables,
http://statistics.data.gov.uk/doc/local-authority/00DA,West - North West                    ,West - North West,Customer And Tenancy,Employees,Temporary Staff-Basic,009,02-Feb-2012,1202-00545,485.07,R,Badenoch & Clark Ltd,
http://statistics.data.gov.uk/doc/local-authority/00DA,West - North West                    ,West - North West,Customer And Tenancy,Employees,Temporary Staff-Basic,009,03-Feb-2012,1202-00546,724.46,R,Badenoch & Clark Ltd,
http://statistics.data.gov.uk/doc/local-authority/00DA,West - North West                    ,West - North West,Customer And Tenancy,Employees,Temporary Staff-Basic,009,03-Feb-2012,1202-00547,643.80,R,Badenoch & Clark Ltd,
http://statistics.data.gov.uk/doc/local-authority/00DA,West - North West                    ,West - North West,Customer And Tenancy,Employees,Temporary Staff-Basic,009,03-Feb-2012,1202-00548,692.04,R,Badenoch & Clark Ltd,
http://statistics.data.gov.uk/doc/local-authority/00DA,West - North West                    ,West - North West,Customer And Tenancy,Employees,Temporary Staff-Basic,009,03-Feb-2012,1202-00549,602.36,R,Badenoch & Clark Ltd,
http://statistics.data.gov.uk/doc/local-authority/00DA,West - North West                    ,West - North West,Corporate Services,Employees,Temporary Staff-Basic,009,08-Feb-2012,1202-00550,678.95,R,Badenoch & Clark Ltd,
http://statistics.data.gov.uk/doc/local-authority/00DA,West - North West                    ,West - North West,Corporate Services,Employees,Temporary Staff-Basic,009,08-Feb-2012,1202-00551,422.05,R,Badenoch & Clark Ltd,
http://statistics.data.gov.uk/doc/local-authority/00DA,West - North West                    ,West - North West,Customer And Tenancy,Employees,Temporary Staff-Basic,009,09-Feb-2012,1202-00552,559.54,R,Badenoch & Clark Ltd,
http://statistics.data.gov.uk/doc/local-authority/00DA,West - North West                    ,West - North West,Customer And Tenancy,Employees,Temporary Staff-Basic,009,09-Feb-2012,1202-00553,706.26,R,Badenoch & Clark Ltd,
http://statistics.data.gov.uk/doc/local-authority/00DA,West - North West                    ,West - North West,ALMO Business Centre,Employees,Temporary Staff-Basic,009,09-Feb-2012,1202-00554,9000.00,R,Badenoch & Clark Ltd,
http://statistics.data.gov.uk/doc/local-authority/00DA,West - North West                    ,West - North West,Customer And Tenancy,Employees,Temporary Staff-Basic,009,10-Feb-2012,1202-00555,548.73,R,Badenoch & Clark Ltd,
http://statistics.data.gov.uk/doc/local-authority/00DA,West - North West                    ,West - North West,Customer And Tenancy,Employees,Temporary Staff-Basic,009,10-Feb-2012,1202-00556,724.46,R,Badenoch & Clark Ltd,
http://statistics.data.gov.uk/doc/local-authority/00DA,West - North West                    ,West - North West,Customer And Tenancy,Employees,Temporary Staff-Basic,009,10-Feb-2012,1202-00557,518.74,R,Badenoch & Clark Ltd,
http://statistics.data.gov.uk/doc/local-authority/00DA,West - North West                    ,West - North West,Customer And Tenancy,Employees,Temporary Staff-Basic,009,10-Feb-2012,1202-00558,620.86,R,Badenoch & Clark Ltd,
http://statistics.data.gov.uk/doc/local-authority/00DA,West - North West                    ,West - North West,Customer And Tenancy,Employees,Temporary Staff-Basic,009,10-Feb-2012,1202-00559,427.05,R,Badenoch & Clark Ltd,
http://statistics.data.gov.uk/doc/local-authority/00DA,West - North West                    ,West - North West,Customer And Tenancy,Employees,Temporary Staff-Basic,009,10-Feb-2012,1202-00560,931.76,R,Badenoch & Clark Ltd,
http://statistics.data.gov.uk/doc/local-authority/00DA,West - North West                    ,West - North West,Customer And Tenancy,Employees,Temporary Staff-Basic,009,10-Feb-2012,1202-00561,504.68,R,Badenoch & Clark Ltd,
http://statistics.data.gov.uk/doc/local-authority/00DA,West - North West                    ,West - North West,Customer And Tenancy,Employees,Temporary Staff-Basic,009,10-Feb-2012,1202-00562,569.40,R,Badenoch & Clark Ltd,
http://statistics.data.gov.uk/doc/local-authority/00DA,West - North West                    ,West - North West,Customer And Tenancy,Employees,Temporary Staff-Basic,009,10-Feb-2012,1202-00563,514.20,R,Badenoch & Clark Ltd,
http://statistics.data.gov.uk/doc/local-authority/00DA,West - North West                    ,West - North West,Customer And Tenancy,Employees,Temporary Staff-Basic,009,10-Feb-2012,1202-00564,561.34,R,Badenoch & Clark Ltd,
http://statistics.data.gov.uk/doc/local-authority/00DA,West - North West                    ,West - North West,Customer And Tenancy,Employees,Temporary Staff-Basic,009,10-Feb-2012,1202-00565,527.11,R,Badenoch & Clark Ltd,
http://statistics.data.gov.uk/doc/local-authority/00DA,West - North West                    ,West - North West,Customer And Tenancy,Employees,Temporary Staff-Basic,009,10-Feb-2012,1202-00566,717.76,R,Badenoch & Clark Ltd,
http://statistics.data.gov.uk/doc/local-authority/00DA,West - North West                    ,West - North West,Property And Maintenance,Employees,Temporary Staff-Basic,009,17-Feb-2012,1202-00567,728.16,R,Badenoch & Clark Ltd,
http://statistics.data.gov.uk/doc/local-authority/00DA,West - North West                    ,West - North West,Property And Maintenance,Employees,Temporary Staff-Basic,009,17-Feb-2012,1202-00568,728.16,R,Badenoch & Clark Ltd,
http://statistics.data.gov.uk/doc/local-authority/00DA,West - North West                    ,West - North West,Customer And Tenancy,Employees,Temporary Staff-Basic,009,17-Feb-2012,1202-00569,485.07,R,Badenoch & Clark Ltd,
http://statistics.data.gov.uk/doc/local-authority/00DA,West - North West                    ,West - North West,Customer And Tenancy,Employees,Temporary Staff-Basic,009,17-Feb-2012,1202-00570,485.07,R,Badenoch & Clark Ltd,
http://statistics.data.gov.uk/doc/local-authority/00DA,West - North West                    ,West - North West,Customer And Tenancy,Employees,Temporary Staff-Basic,009,17-Feb-2012,1202-00571,528.98,R,Badenoch & Clark Ltd,
http://statistics.data.gov.uk/doc/local-authority/00DA,West - North West                    ,West - North West,Customer And Tenancy,Employees,Temporary Staff-Basic,009,17-Feb-2012,1202-00572,434.94,R,Badenoch & Clark Ltd,
http://statistics.data.gov.uk/doc/local-authority/00DA,West - North West                    ,West - North West,Customer And Tenancy,Employees,Temporary Staff-Basic,009,17-Feb-2012,1202-00573,523.10,R,Badenoch & Clark Ltd,
http://statistics.data.gov.uk/doc/local-authority/00DA,West - North West                    ,West - North West,Customer And Tenancy,Employees,Temporary Staff-Basic,009,17-Feb-2012,1202-00574,440.81,R,Badenoch & Clark Ltd,
http://statistics.data.gov.uk/doc/local-authority/00DA,West - North West                    ,West - North West,Property And Maintenance,Employees,Temporary Staff-Basic,009,17-Feb-2012,1202-00575,728.16,R,Badenoch & Clark Ltd,
http://statistics.data.gov.uk/doc/local-authority/00DA,West - North West                    ,West - North West,Customer And Tenancy,Employees,Temporary Staff-Basic,009,17-Feb-2012,1202-00576,485.07,R,Badenoch & Clark Ltd,
http://statistics.data.gov.uk/doc/local-authority/00DA,West - North West                    ,West - North West,Property And Maintenance,Employees,Temporary Staff-Basic,009,17-Feb-2012,1202-00577,728.16,R,Badenoch & Clark Ltd,
http://statistics.data.gov.uk/doc/local-authority/00DA,West - North West                    ,West - North West,Customer And Tenancy,Employees,Temporary Staff-Basic,009,17-Feb-2012,1202-00578,577.40,R,Badenoch & Clark Ltd,
http://statistics.data.gov.uk/doc/local-authority/00DA,West - North West                    ,West - North West,Customer And Tenancy,Employees,Temporary Staff-Basic,009,17-Feb-2012,1202-00579,485.07,R,Badenoch & Clark Ltd,
http://statistics.data.gov.uk/doc/local-authority/00DA,West - North West                    ,West - North West,Property And Maintenance,Employees,Temporary Staff-Basic,009,17-Feb-2012,1202-00580,728.16,R,Badenoch & Clark Ltd,
http://statistics.data.gov.uk/doc/local-authority/00DA,West - North West                    ,West - North West,Property And Maintenance,Employees,Temporary Staff-Basic,009,17-Feb-2012,1202-00581,728.16,R,Badenoch & Clark Ltd,
http://statistics.data.gov.uk/doc/local-authority/00DA,West - North West                    ,West - North West,Customer And Tenancy,Employees,Temporary Staff-Basic,009,17-Feb-2012,1202-00582,478.41,R,Badenoch & Clark Ltd,
http://statistics.data.gov.uk/doc/local-authority/00DA,West - North West                    ,West - North West,Customer And Tenancy,Employees,Temporary Staff-Basic,009,17-Feb-2012,1202-00583,709.12,R,Badenoch & Clark Ltd,
http://statistics.data.gov.uk/doc/local-authority/00DA,West - North West                    ,West - North West,Customer And Tenancy,Employees,Temporary Staff-Basic,009,17-Feb-2012,1202-00584,907.24,R,Badenoch & Clark Ltd,
http://statistics.data.gov.uk/doc/local-authority/00DA,West - North West                    ,West - North West,Customer And Tenancy,Employees,Temporary Staff-Basic,009,17-Feb-2012,1202-00585,478.41,R,Badenoch & Clark Ltd,
http://statistics.data.gov.uk/doc/local-authority/00DA,West - North West                    ,West - North West,Customer And Tenancy,Employees,Temporary Staff-Basic,009,17-Feb-2012,1202-00586,819.92,R,Badenoch & Clark Ltd,
http://statistics.data.gov.uk/doc/local-authority/00DA,West - North West                    ,West - North West,Customer And Tenancy,Employees,Temporary Staff-Basic,009,17-Feb-2012,1202-00587,702.26,R,Badenoch & Clark Ltd,
http://statistics.data.gov.uk/doc/local-authority/00DA,West - North West                    ,West - North West,Customer And Tenancy,Employees,Temporary Staff-Basic,009,17-Feb-2012,1202-00588,634.18,R,Badenoch & Clark Ltd,
http://statistics.data.gov.uk/doc/local-authority/00DA,West - North West                    ,West - North West,Customer And Tenancy,Employees,Temporary Staff-Basic,009,17-Feb-2012,1202-00589,634.18,R,Badenoch & Clark Ltd,
http://statistics.data.gov.uk/doc/local-authority/00DA,West - North West                    ,West - North West,Customer And Tenancy,Employees,Temporary Staff-Basic,009,17-Feb-2012,1202-00590,435.49,R,Badenoch & Clark Ltd,
http://statistics.data.gov.uk/doc/local-authority/00DA,West - North West                    ,West - North West,Customer And Tenancy,Employees,Temporary Staff-Basic,009,17-Feb-2012,1202-00591,449.70,R,Badenoch & Clark Ltd,
http://statistics.data.gov.uk/doc/local-authority/00DA,West - North West                    ,West - North West,Customer And Tenancy,Employees,Temporary Staff-Basic,009,28-Feb-2012,1202-00592,602.36,R,Badenoch & Clark Ltd,
http://statistics.data.gov.uk/doc/local-authority/00DA,West - North West                    ,West - North West,Customer And Tenancy,Employees,Temporary Staff-Basic,009,28-Feb-2012,1202-00593,907.24,R,Badenoch & Clark Ltd,
http://statistics.data.gov.uk/doc/local-authority/00DA,West - North West                    ,West - North West,Customer And Tenancy,Employees,Temporary Staff-Basic,009,28-Feb-2012,1202-00594,478.41,R,Badenoch & Clark Ltd,
http://statistics.data.gov.uk/doc/local-authority/00DA,West - North West                    ,West - North West,Customer And Tenancy,Employees,Temporary Staff-Basic,009,28-Feb-2012,1202-00595,602.36,R,Badenoch & Clark Ltd,
http://statistics.data.gov.uk/doc/local-authority/00DA,Leeds City Council,City Development,Libraries  Arts & Heritage,Precepts,Art Galleries Total Stores,003,07-Feb-2012,1202-00596,443.15,R,Baker & Taylor (Uk) Ltd,
http://statistics.data.gov.uk/doc/local-authority/00DA,Leeds City Council,City Development,Libraries  Arts & Heritage,Precepts,Art Galleries Total Stores,003,07-Feb-2012,1202-00597,620.22,R,Baker & Taylor (Uk) Ltd,
http://statistics.data.gov.uk/doc/local-authority/00DA,Leeds City Council,City Development,Recreation  ,Supplies and Services,Other Hired And Contracted Services,265,23-Jan-2012,1202-00598,1371.40,R,Balmers Garden,
http://statistics.data.gov.uk/doc/local-authority/00DA,Leeds City Council,City Development,Recreation,Transport,Plant Spares,346,10-Feb-2012,1202-00599,519.88,R,Balmers Garden Machinery,
http://statistics.data.gov.uk/doc/local-authority/00DA,Leeds City Council,City Development,Recreation,Transport,Plant Spares,346,21-Feb-2012,1202-00600,786.10,R,Balmers Garden Machinery,
http://statistics.data.gov.uk/doc/local-authority/00DA,Leeds City Council,Childrens Services,Learning Skills & Universal,Supplies and Services,Non-Recurring Grants,227,29-Feb-2012,1202-00601,1000.00,R,Baltica,
http://statistics.data.gov.uk/doc/local-authority/00DA,Leeds City Council,Childrens Services,Safeguarding Targeted & Specialist,Supplies and Services,Operational Furniture And Equipment,203,10-Feb-2012,1202-00602,906.00,R,Bambach Saddle Seat (Eur) Ltd,
http://statistics.data.gov.uk/doc/local-authority/00DA,Leeds City Council,Childrens Services,Safeguarding Targeted & Specialist,Supplies and Services,General Amenity For Clients/Residents,285,02-Feb-2012,1202-00603,1911.00,R,Barca Leeds,
http://statistics.data.gov.uk/doc/local-authority/00DA,Leeds City Council,Childrens Services,Safeguarding Targeted & Specialist,Third Party Payments,Services Rendered By Voluntary Sector,505,02-Feb-2012,1202-00604,14000.00,R,Barca Leeds,
http://statistics.data.gov.uk/doc/local-authority/00DA,Leeds City Council,Environment & Neighbourhoods,Safer Leeds Drugs Team,Third Party Payments,Services Rendered By Voluntary Sector,505,02-Feb-2012,1202-00605,52760.25,R,Barca Leeds,
http://statistics.data.gov.uk/doc/local-authority/00DA,Leeds City Council,Childrens Services,Learning Skills & Universal,Third Party Payments,Services Rendered By Voluntary Sector,505,09-Feb-2012,1202-00606,6367.50,R,Barca Leeds,
http://statistics.data.gov.uk/doc/local-authority/00DA,Leeds City Council,Adult Social Care,Services For Adults Under 65 Mental/Dis,Third Party Payments,Payments To Voluntary Organisations,561,03-Feb-2012,1202-00607,26063.00,R,Barnardo Services Ltd,
http://statistics.data.gov.uk/doc/local-authority/00DA,Leeds City Council,Childrens Services,Safeguarding Targeted & Specialist,Third Party Payments,Services Rendered By Schools,506,09-Feb-2012,1202-00608,16538.17,R,Barnardo Services Ltd,
http://statistics.data.gov.uk/doc/local-authority/00DA,Leeds City Council as Accountable Body,Social Services Pooled Budgets,Jcs For People With Learning Disabilitie,Third Party Payments,Day Centre,564,22-Feb-2012,1202-00609,2340.00,R,Barnardo Services Ltd,
http://statistics.data.gov.uk/doc/local-authority/00DA,Leeds City Council,Childrens Services,Learning Skills & Universal,Third Party Payments,Services Rendered By Voluntary Sector,505,06-Feb-2012,1202-00610,4139.50,R,Barnardos Yorkshire,
http://statistics.data.gov.uk/doc/local-authority/00DA,Leeds City Council,Environment & Neighbourhoods,Statutory Housing,Supplies and Services,Non-Recurring Grants,227,07-Feb-2012,1202-00611,3750.00,R,Barnardos Yorkshire,
http://statistics.data.gov.uk/doc/local-authority/00DA,Leeds City Council,Childrens Services,Safeguarding Targeted & Specialist,Third Party Payments,Payments To Voluntary Organisations,561,09-Feb-2012,1202-00612,7500.00,R,Barnardos Yorkshire,
http://statistics.data.gov.uk/doc/local-authority/00DA,Leeds City Council,Childrens Services,Safeguarding Targeted & Specialist,Third Party Payments,Payments To Voluntary Organisations,561,17-Feb-2012,1202-00613,3750.00,R,Barnardos Yorkshire,
http://statistics.data.gov.uk/doc/local-authority/00DA,Leeds City Council,Childrens Services,Learning Skills & Universal,Third Party Payments,Services Rendered By Voluntary Sector,505,17-Feb-2012,1202-00614,27130.00,R,Barnardos Yorkshire,
http://statistics.data.gov.uk/doc/local-authority/00DA,Leeds City Council,Environment & Neighbourhoods,Statutory Housing,Transport,Public Transport Expenses,310,06-Feb-2012,1202-00615,864.50,R,Barnsley Mbc,
http://statistics.data.gov.uk/doc/local-authority/00DA,Leeds City Council,Environment & Neighbourhoods,Statutory Housing,Supplies and Services,Other Hired And Contracted Services,265,06-Feb-2012,1202-00616,525.00,R,Barringtons & Blake Estate,
http://statistics.data.gov.uk/doc/local-authority/00DA,Leeds City Council,City Development,Libraries  Arts & Heritage,Premises,Oil,122,02-Feb-2012,1202-00617,1246.20,R,Bayford Oil,
http://statistics.data.gov.uk/doc/local-authority/00DA,Leeds City Council,City Development,Recreation,Transport,Fuel (Non LCC Supplies),321,02-Feb-2012,1202-00618,1663.08,R,Bayford Oil,
http://statistics.data.gov.uk/doc/local-authority/00DA,Leeds City Council,City Development,Libraries  Arts & Heritage,Premises,Oil,122,02-Feb-2012,1202-00619,1247.31,R,Bayford Oil,
http://statistics.data.gov.uk/doc/local-authority/00DA,Leeds City Council,City Development,Recreation,Transport,Fuel (Non LCC Supplies),321,02-Feb-2012,1202-00620,1260.02,R,Bayford Oil,
http://statistics.data.gov.uk/doc/local-authority/00DA,Leeds City Council,City Development,Recreation,Transport,Fuel (Non LCC Supplies),321,02-Feb-2012,1202-00621,14623.70,R,Bayford Oil,
http://statistics.data.gov.uk/doc/local-authority/00DA,Leeds City Council,Central & Corporate Functions,Commercial Services Trading Services,Premises,Plant and Machinery,102,02-Feb-2012,1202-00622,653.20,R,Bayford Oil,
http://statistics.data.gov.uk/doc/local-authority/00DA,Leeds City Council,Environment & Neighbourhoods,Streetscene Environmental Services,Supplies and Services,Operational Furniture And Equipment,203,03-Feb-2012,1202-00623,757.90,R,Bayford Oil,
http://statistics.data.gov.uk/doc/local-authority/00DA,Leeds City Council,Central & Corporate Functions,Commercial Services Trading Services,Transport,Fuel (Non LCC Supplies),321,03-Feb-2012,1202-00624,2119.34,R,Bayford Oil,
http://statistics.data.gov.uk/doc/local-authority/00DA,Leeds City Council,Central & Corporate Functions,Commercial Services Trading Services,Transport,Fuel (Non LCC Supplies),321,03-Feb-2012,1202-00625,17022.00,R,Bayford Oil,
http://statistics.data.gov.uk/doc/local-authority/00DA,Leeds City Council,Central & Corporate Functions,Commercial Services Trading Services,Transport,Fuel (Non LCC Supplies),321,06-Feb-2012,1202-00626,11358.00,R,Bayford Oil,
http://statistics.data.gov.uk/doc/local-authority/00DA,Leeds City Council,City Development,Libraries  Arts & Heritage,Premises,Oil,122,09-Feb-2012,1202-00627,1247.55,R,Bayford Oil,
http://statistics.data.gov.uk/doc/local-authority/00DA,Leeds City Council,City Development,Recreation,Transport,Fuel (Non LCC Supplies),321,10-Feb-2012,1202-00628,1458.60,R,Bayford Oil,
http://statistics.data.gov.uk/doc/local-authority/00DA,Leeds City Council,Central & Corporate Functions,Commercial Services Trading Services,Transport,Fuel (Non LCC Supplies),321,13-Feb-2012,1202-00629,2037.22,R,Bayford Oil,
http://statistics.data.gov.uk/doc/local-authority/00DA,Leeds City Council,Central & Corporate Functions,Commercial Services Trading Services,Transport,Fuel (Non LCC Supplies),321,13-Feb-2012,1202-00630,17285.30,R,Bayford Oil,
http://statistics.data.gov.uk/doc/local-authority/00DA,Leeds City Council,Childrens Services,Learning Skills & Universal,Premises,Oil,122,13-Feb-2012,1202-00631,1956.05,R,Bayford Oil,
http://statistics.data.gov.uk/doc/local-authority/00DA,Leeds City Council,City Development,Libraries  Arts & Heritage,Premises,Oil,122,15-Feb-2012,1202-00632,1298.00,R,Bayford Oil,
http://statistics.data.gov.uk/doc/local-authority/00DA,Leeds City Council,Central & Corporate Functions,Support And Facilities Trading Services,Premises,Oil,122,15-Feb-2012,1202-00633,1344.20,R,Bayford Oil,
http://statistics.data.gov.uk/doc/local-authority/00DA,Leeds City Council,Central & Corporate Functions,Commercial Services Trading Services,Transport,Fuel (Non LCC Supplies),321,15-Feb-2012,1202-00634,25304.40,R,Bayford Oil,
http://statistics.data.gov.uk/doc/local-authority/00DA,Leeds City Council,Childrens Services,Learning Skills & Universal,Premises,Oil,122,16-Feb-2012,1202-00635,1362.20,R,Bayford Oil,
http://statistics.data.gov.uk/doc/local-authority/00DA,Leeds City Council,Central & Corporate Functions,Support And Facilities General Fund,Premises,Gas,123,17-Feb-2012,1202-00636,2037.90,R,Bayford Oil,
http://statistics.data.gov.uk/doc/local-authority/00DA,Leeds City Council,Central & Corporate Functions,Commercial Services Trading Services,Transport,Fuel (Non LCC Supplies),321,20-Feb-2012,1202-00637,25260.40,R,Bayford Oil,
http://statistics.data.gov.uk/doc/local-authority/00DA,Leeds City Council,Central & Corporate Functions,Commercial Services Trading Services,Transport,Fuel (Non LCC Supplies),321,20-Feb-2012,1202-00638,41335.20,R,Bayford Oil,
http://statistics.data.gov.uk/doc/local-authority/00DA,Leeds City Council,Central & Corporate Functions,Commercial Services Trading Services,Transport,Fuel (Non LCC Supplies),321,20-Feb-2012,1202-00639,11533.15,R,Bayford Oil,
http://statistics.data.gov.uk/doc/local-authority/00DA,Leeds City Council,City Development,Libraries  Arts & Heritage,Premises,Oil,122,20-Feb-2012,1202-00640,1362.60,R,Bayford Oil,
http://statistics.data.gov.uk/doc/local-authority/00DA,Leeds City Council,Central & Corporate Functions,Commercial Services Trading Services,Transport,Fuel (Non LCC Supplies),321,20-Feb-2012,1202-00641,11462.00,R,Bayford Oil,
http://statistics.data.gov.uk/doc/local-authority/00DA,Leeds City Council,Central & Corporate Functions,Commercial Services Trading Services,Transport,Fuel (Non LCC Supplies),321,20-Feb-2012,1202-00642,25107.54,R,Bayford Oil,
http://statistics.data.gov.uk/doc/local-authority/00DA,Leeds City Council,Central & Corporate Functions,Commercial Services Trading Services,Transport,Fuel (Non LCC Supplies),321,20-Feb-2012,1202-00643,17178.00,R,Bayford Oil,
http://statistics.data.gov.uk/doc/local-authority/00DA,Leeds City Council,City Development,Libraries  Arts & Heritage,Premises,Oil,122,21-Feb-2012,1202-00644,429.80,R,Bayford Oil,
http://statistics.data.gov.uk/doc/local-authority/00DA,Leeds City Council,City Development,Recreation,Transport,Fuel (Non LCC Supplies),321,22-Feb-2012,1202-00645,2409.05,R,Bayford Oil,
http://statistics.data.gov.uk/doc/local-authority/00DA,Leeds City Council,Central & Corporate Functions,Commercial Services Trading Services,Transport,Fuel (Non LCC Supplies),321,22-Feb-2012,1202-00646,2064.90,R,Bayford Oil,
http://statistics.data.gov.uk/doc/local-authority/00DA,Leeds City Council,Central & Corporate Functions,Commercial Services Trading Services,Transport,Fuel (Non LCC Supplies),321,22-Feb-2012,1202-00647,25436.40,R,Bayford Oil,
http://statistics.data.gov.uk/doc/local-authority/00DA,Leeds City Council,Central & Corporate Functions,Commercial Services Trading Services,Transport,Fuel (Non LCC Supplies),321,22-Feb-2012,1202-00648,41623.20,R,Bayford Oil,
http://statistics.data.gov.uk/doc/local-authority/00DA,Leeds City Council,City Development,Recreation,Transport,Fuel (Non LCC Supplies),321,23-Feb-2012,1202-00649,4364.80,R,Bayford Oil,
http://statistics.data.gov.uk/doc/local-authority/00DA,Leeds City Council,City Development,Recreation,Transport,Fuel (Non LCC Supplies),321,23-Feb-2012,1202-00650,15082.60,R,Bayford Oil,
http://statistics.data.gov.uk/doc/local-authority/00DA,Leeds City Council,Central & Corporate Functions,Commercial Services Trading Services,Transport,Fuel (Non LCC Supplies),321,24-Feb-2012,1202-00651,41083.20,R,Bayford Oil,
http://statistics.data.gov.uk/doc/local-authority/00DA,Leeds City Council,City Development,Libraries  Arts & Heritage,Premises,Oil,122,29-Feb-2012,1202-00652,900.21,R,Bayford Oil,
http://statistics.data.gov.uk/doc/local-authority/00DA,Leeds City Council,City Development,Recreation,Transport,Fuel (Non LCC Supplies),321,29-Feb-2012,1202-00653,4373.25,R,Bayford Oil,
http://statistics.data.gov.uk/doc/local-authority/00DA,Leeds City Council,Adult Social Care,Services For Older People Under 65 P/Dis,Third Party Payments,Residential,580,15-Feb-2012,1202-00654,7984.00,R,Baylis Place,
http://statistics.data.gov.uk/doc/local-authority/00DA,Leeds City Council,Central & Corporate Functions,Commercial Services Trading Services,Premises,Cleaning Maintenance & Toiletries,127,09-Feb-2012,1202-00655,437.92,R,Bbn Fastnet,
http://statistics.data.gov.uk/doc/local-authority/00DA,Aire Valley Homes Leeds             ,Aire Valley Homes Leeds,Aire Valley Homes Leeds,Supplies and Services,Audit Fees,261,17-Feb-2012,1202-00656,750.00,R,Bdo Stoy Hayward Llp,
http://statistics.data.gov.uk/doc/local-authority/00DA,West - North West                    ,West - North West,Corporate Services,Supplies and Services,Audit Fees,261,22-Feb-2012,1202-00657,750.00,R,Bdo Stoy Hayward Llp,
http://statistics.data.gov.uk/doc/local-authority/00DA,East - North East                    ,East - North East,Construction Services,Supplies and Services,Other Materials,205,10-Feb-2012,1202-00658,425.00,R,Be Modern Ltd,
http://statistics.data.gov.uk/doc/local-authority/00DA,East - North East                    ,East - North East,Construction Services,Supplies and Services,Other Materials,205,24-Feb-2012,1202-00659,425.00,R,Be Modern Ltd,
http://statistics.data.gov.uk/doc/local-authority/00DA,Leeds City Council,Adult Social Care,Services For Older People - 65 And Over,Third Party Payments,Payments To Voluntary Organisations,561,23-Feb-2012,1202-00660,9965.00,R,Beat It Music Cic,
http://statistics.data.gov.uk/doc/local-authority/00DA,Leeds City Council,Childrens Services,Safeguarding Targeted & Specialist,Third Party Payments,Family Placements,562,15-Feb-2012,1202-00661,510.00,R,Beds For Everyone,
http://statistics.data.gov.uk/doc/local-authority/00DA,Leeds City Council,Adult Social Care,Services For Older People - 65 And Over,Third Party Payments,Residential,580,15-Feb-2012,1202-00662,1225.00,R,Beech Lodge Residential Home,
http://statistics.data.gov.uk/doc/local-authority/00DA,Leeds City Council,Childrens Services,Learning Skills & Universal,Third Party Payments,Services Rendered By Voluntary Sector,505,28-Feb-2012,1202-00663,435.00,R,Beechtree Headingley Kindergarten,
http://statistics.data.gov.uk/doc/local-authority/00DA,Leeds City Council,Childrens Services,Learning Skills & Universal,Third Party Payments,Services Rendered By Voluntary Sector,505,28-Feb-2012,1202-00664,784.00,R,Beechtree Kindergarten,
http://statistics.data.gov.uk/doc/local-authority/00DA,Leeds City Council,Environment & Neighbourhoods,Strategy & Commissioning,Supplies and Services,Non-Recurring Grants,227,17-Feb-2012,1202-00665,3130.00,R,Behind Closed Doors (Bcd),
http://statistics.data.gov.uk/doc/local-authority/00DA,Leeds City Council,Strategic Accounts,Miscellaneous,Supplies and Services,Non-Recurring Grants,227,13-Feb-2012,1202-00666,500.00,R,Behno Group,
http://statistics.data.gov.uk/doc/local-authority/00DA,East - North East                    ,East - North East,Technical Services,Premises,H.R.A. - Repairs A To P,107,27-Feb-2012,1202-00667,32565.00,R,Bell Group Uk,
http://statistics.data.gov.uk/doc/local-authority/00DA,Leeds City Council,Adult Social Care,Services For Older People - 65 And Over,Third Party Payments,Nursing Home,570,16-Feb-2012,1202-00668,1355.36,R,Belle Green Court Care Home,
http://statistics.data.gov.uk/doc/local-authority/00DA,Leeds City Council,Environment & Neighbourhoods,Hra,Supplies and Services,Almo Cheque Requisition,002,13-Feb-2012,1202-00669,187757.15,R,Belle Isle Tenant Management,
http://statistics.data.gov.uk/doc/local-authority/00DA,Leeds City Council,Central & Corporate Functions,Executive Support,Supplies and Services,Non-Recurring Grants,227,16-Feb-2012,1202-00670,974.00,R,Belle Isle Women'S Wellbeing Group,
http://statistics.data.gov.uk/doc/local-authority/00DA,Leeds City Council,Environment & Neighbourhoods,Environmental Health,Capital,Construction,3,13-Feb-2012,1202-00671,1300.00,C,Bellway Homes Ltd (Yorkshire Division),
http://statistics.data.gov.uk/doc/local-authority/00DA,Leeds City Council,Adult Social Care,Services For Older People - 65 And Over,Third Party Payments,Nursing Home,570,16-Feb-2012,1202-00672,1124.60,R,Belmont House,
http://statistics.data.gov.uk/doc/local-authority/00DA,Leeds City Council,City Development,Asset Management Services,Supplies and Services,Other Hired And Contracted Services,265,02-Feb-2012,1202-00673,2346.00,R,Belmont Ndt & Quality Services,
http://statistics.data.gov.uk/doc/local-authority/00DA,Leeds City Council,Environment & Neighbourhoods,Statutory Housing,Supplies and Services,Other Hired And Contracted Services,265,06-Feb-2012,1202-00674,625.00,R,Belvoir Leeds North,
http://statistics.data.gov.uk/doc/local-authority/00DA,Leeds City Council,City Development,Libraries  Arts & Heritage,Supplies and Services,Bought In Professional Services,277,16-Feb-2012,1202-00675,455.00,R,Ben Hall,
http://statistics.data.gov.uk/doc/local-authority/00DA,Leeds City Council,Central & Corporate Functions,Commercial Services Trading Services,Supplies and Services,Other Hired And Contracted Services,265,27-Feb-2012,1202-00676,516.28,R,Benfield Ford Leeds (Parts Invs),
http://statistics.data.gov.uk/doc/local-authority/00DA,Leeds City Council,City Development,Libraries  Arts & Heritage,Supplies and Services,Operational Furniture And Equipment,203,14-Feb-2012,1202-00677,12087.50,R,Bennet Enterprises Ltd,
http://statistics.data.gov.uk/doc/local-authority/00DA,Leeds City Council,City Development,Libraries  Arts & Heritage,Supplies and Services,Operational Furniture And Equipment,203,16-Feb-2012,1202-00678,12087.50,R,Bennet Enterprises Ltd,
http://statistics.data.gov.uk/doc/local-authority/00DA,Leeds City Council,Adult Social Care,Other Adult Services,Third Party Payments,Residential - Drugs & Alcohol,583,15-Feb-2012,1202-00679,1431.52,R,Bennett House,
http://statistics.data.gov.uk/doc/local-authority/00DA,Leeds City Council,Adult Social Care,Services For Older People - 65 And Over,Third Party Payments,Residential Care Emi,571,15-Feb-2012,1202-00680,37845.28,R,Berkley Court,
http://statistics.data.gov.uk/doc/local-authority/00DA,Leeds City Council,Adult Social Care,Services For Older People - 65 And Over,Third Party Payments,Residential,580,15-Feb-2012,1202-00681,60667.82,R,Berkley Court,
http://statistics.data.gov.uk/doc/local-authority/00DA,Leeds City Council,Childrens Services,Safeguarding Targeted & Specialist,Employees,Agency Staff,008,02-Feb-2012,1202-00682,1260.00,R,Berrybrown Ltd,
http://statistics.data.gov.uk/doc/local-authority/00DA,Leeds City Council,Childrens Services,Safeguarding Targeted & Specialist,Employees,Agency Staff,008,16-Feb-2012,1202-00683,2100.00,R,Berrybrown Ltd,
http://statistics.data.gov.uk/doc/local-authority/00DA,Leeds City Council,Childrens Services,Safeguarding Targeted & Specialist,Employees,Agency Staff,008,22-Feb-2012,1202-00684,2100.00,R,Berrybrown Ltd,
http://statistics.data.gov.uk/doc/local-authority/00DA,Leeds City Council,Childrens Services,Safeguarding Targeted & Specialist,Support Services,Legal Disbursements,411,02-Feb-2012,1202-00685,2746.90,R,Berrymans Lace Mawer,
http://statistics.data.gov.uk/doc/local-authority/00DA,Leeds City Council,Adult Social Care,Services For Older People - 65 And Over,Third Party Payments,Residential Care Emi,571,15-Feb-2012,1202-00686,1760.92,R,Bethel House,
http://statistics.data.gov.uk/doc/local-authority/00DA,Leeds City Council,Childrens Services,Safeguarding Targeted & Specialist,Third Party Payments,Services Rendered By Schools,506,02-Feb-2012,1202-00687,9912.00,R,Bettercare Keys Ltd,
http://statistics.data.gov.uk/doc/local-authority/00DA,Leeds City Council,Adult Social Care,Services For Older People - 65 And Over,Third Party Payments,Nursing Care Emi,574,15-Feb-2012,1202-00688,1728.00,R,Bewick Lodge,
http://statistics.data.gov.uk/doc/local-authority/00DA,Leeds City Council,Adult Social Care,Services For Adults Under 65 Mental/Dis,Third Party Payments,Services Rendered By Voluntary Sector,505,17-Feb-2012,1202-00689,187954.36,R,Bid Services,
http://statistics.data.gov.uk/doc/local-authority/00DA,Leeds City Council,Environment & Neighbourhoods,Streetscene Environmental Services,Supplies and Services,Waste Disposal Charges,236,09-Feb-2012,1202-00690,2404.70,R,Biffa Waste Services Ltd,
http://statistics.data.gov.uk/doc/local-authority/00DA,Leeds City Council,Environment & Neighbourhoods,Streetscene Environmental Services,Supplies and Services,Waste Disposal Charges,236,09-Feb-2012,1202-00691,2271.47,R,Biffa Waste Services Ltd,
http://statistics.data.gov.uk/doc/local-authority/00DA,Leeds City Council,Environment & Neighbourhoods,Streetscene Environmental Services,Supplies and Services,Waste Disposal Charges,236,09-Feb-2012,1202-00692,2704.05,R,Biffa Waste Services Ltd,
http://statistics.data.gov.uk/doc/local-authority/00DA,Leeds City Council,Environment & Neighbourhoods,Streetscene Environmental Services,Supplies and Services,Recycling & Reuse Charges,234,09-Feb-2012,1202-00693,702.70,R,Biffa Waste Services Ltd,
http://statistics.data.gov.uk/doc/local-authority/00DA,Leeds City Council,Environment & Neighbourhoods,Streetscene Environmental Services,Supplies and Services,Waste Disposal Charges,236,09-Feb-2012,1202-00694,34590.41,R,Biffa Waste Services Ltd,
http://statistics.data.gov.uk/doc/local-authority/00DA,Leeds City Council,Environment & Neighbourhoods,Streetscene Environmental Services,Supplies and Services,Waste Disposal Charges,237,09-Feb-2012,1202-00695,91989.31,R,Biffa Waste Services Ltd,
http://statistics.data.gov.uk/doc/local-authority/00DA,Leeds City Council,Environment & Neighbourhoods,Streetscene Environmental Services,Supplies and Services,Waste Disposal Charges,236,09-Feb-2012,1202-00696,44763.57,R,Biffa Waste Services Ltd,
http://statistics.data.gov.uk/doc/local-authority/00DA,Leeds City Council,Environment & Neighbourhoods,Streetscene Environmental Services,Supplies and Services,Waste Disposal Charges,237,09-Feb-2012,1202-00697,75767.68,R,Biffa Waste Services Ltd,
http://statistics.data.gov.uk/doc/local-authority/00DA,Leeds City Council,Environment & Neighbourhoods,Streetscene Environmental Services,Supplies and Services,Recycling & Reuse Charges,234,09-Feb-2012,1202-00698,497.07,R,Biffa Waste Services Ltd,
http://statistics.data.gov.uk/doc/local-authority/00DA,Leeds City Council,Environment & Neighbourhoods,Streetscene Environmental Services,Supplies and Services,Waste Disposal Charges,236,09-Feb-2012,1202-00699,81607.82,R,Biffa Waste Services Ltd,
http://statistics.data.gov.uk/doc/local-authority/00DA,Leeds City Council,Environment & Neighbourhoods,Streetscene Environmental Services,Supplies and Services,Waste Disposal Charges,237,09-Feb-2012,1202-00700,132501.04,R,Biffa Waste Services Ltd,
http://statistics.data.gov.uk/doc/local-authority/00DA,Leeds City Council,Environment & Neighbourhoods,Streetscene Environmental Services,Supplies and Services,Waste Disposal Charges,236,10-Feb-2012,1202-00701,2758.33,R,Biffa Waste Services Ltd,
http://statistics.data.gov.uk/doc/local-authority/00DA,Leeds City Council,Environment & Neighbourhoods,Streetscene Environmental Services,Supplies and Services,Waste Disposal Charges,236,21-Feb-2012,1202-00702,2787.94,R,Biffa Waste Services Ltd,
http://statistics.data.gov.uk/doc/local-authority/00DA,Leeds City Council,Environment & Neighbourhoods,Streetscene Environmental Services,Supplies and Services,Recycling & Reuse Charges,234,22-Feb-2012,1202-00703,1204.00,R,Biffa Waste Services Ltd,
http://statistics.data.gov.uk/doc/local-authority/00DA,Leeds City Council,Environment & Neighbourhoods,Streetscene Environmental Services,Supplies and Services,Waste Disposal Charges,236,22-Feb-2012,1202-00704,53564.22,R,Biffa Waste Services Ltd,
http://statistics.data.gov.uk/doc/local-authority/00DA,Leeds City Council,Environment & Neighbourhoods,Streetscene Environmental Services,Supplies and Services,Waste Disposal Charges,237,22-Feb-2012,1202-00705,140018.31,R,Biffa Waste Services Ltd,
http://statistics.data.gov.uk/doc/local-authority/00DA,Leeds City Council,Environment & Neighbourhoods,Streetscene Environmental Services,Supplies and Services,Waste Disposal Charges,236,28-Feb-2012,1202-00706,2182.66,R,Biffa Waste Services Ltd,
http://statistics.data.gov.uk/doc/local-authority/00DA,Leeds City Council,Environment & Neighbourhoods,Streetscene Environmental Services,Supplies and Services,Recycling & Reuse Charges,234,28-Feb-2012,1202-00707,852.50,R,Biffa Waste Services Ltd,
http://statistics.data.gov.uk/doc/local-authority/00DA,Leeds City Council,Environment & Neighbourhoods,Streetscene Environmental Services,Supplies and Services,Waste Disposal Charges,236,28-Feb-2012,1202-00708,34375.72,R,Biffa Waste Services Ltd,
http://statistics.data.gov.uk/doc/local-authority/00DA,Leeds City Council,Environment & Neighbourhoods,Streetscene Environmental Services,Supplies and Services,Waste Disposal Charges,237,28-Feb-2012,1202-00709,88706.76,R,Biffa Waste Services Ltd,
http://statistics.data.gov.uk/doc/local-authority/00DA,East - North East                    ,East - North East,Construction Services,Supplies and Services,Other Materials,205,01-Feb-2012,1202-00710,596.00,R,Bilbeck (Merchants) Ltd,
http://statistics.data.gov.uk/doc/local-authority/00DA,East - North East                    ,East - North East,Construction Services,Supplies and Services,Other Materials,205,10-Feb-2012,1202-00711,1083.06,R,Bilbeck (Merchants) Ltd,
http://statistics.data.gov.uk/doc/local-authority/00DA,East - North East                    ,East - North East,Construction Services,Supplies and Services,Other Materials,205,10-Feb-2012,1202-00712,721.97,R,Bilbeck (Merchants) Ltd,
http://statistics.data.gov.uk/doc/local-authority/00DA,East - North East                    ,East - North East,Construction Services,Supplies and Services,Other Materials,205,10-Feb-2012,1202-00713,1613.49,R,Bilbeck (Merchants) Ltd,
http://statistics.data.gov.uk/doc/local-authority/00DA,East - North East                    ,East - North East,Construction Services,Supplies and Services,Other Materials,205,10-Feb-2012,1202-00714,763.20,R,Bilbeck (Merchants) Ltd,
http://statistics.data.gov.uk/doc/local-authority/00DA,East - North East                    ,East - North East,Construction Services,Supplies and Services,Other Materials,205,17-Feb-2012,1202-00715,447.00,R,Bilbeck (Merchants) Ltd,
http://statistics.data.gov.uk/doc/local-authority/00DA,East - North East                    ,East - North East,Construction Services,Supplies and Services,Other Materials,205,17-Feb-2012,1202-00716,727.36,R,Bilbeck (Merchants) Ltd,
http://statistics.data.gov.uk/doc/local-authority/00DA,East - North East                    ,East - North East,Construction Services,Supplies and Services,Other Materials,205,24-Feb-2012,1202-00717,2065.42,R,Bilbeck (Merchants) Ltd,
http://statistics.data.gov.uk/doc/local-authority/00DA,East - North East                    ,East - North East,Construction Services,Supplies and Services,Other Materials,205,28-Feb-2012,1202-00718,421.45,R,Bilbeck (Merchants) Ltd,
http://statistics.data.gov.uk/doc/local-authority/00DA,East - North East                    ,East - North East,Construction Services,Supplies and Services,Other Materials,205,28-Feb-2012,1202-00719,3997.01,R,Bilbeck (Merchants) Ltd,
http://statistics.data.gov.uk/doc/local-authority/00DA,East - North East                    ,East - North East,Construction Services,Supplies and Services,Other Materials,205,28-Feb-2012,1202-00720,1728.19,R,Bilbeck (Merchants) Ltd,
http://statistics.data.gov.uk/doc/local-authority/00DA,Leeds City Council,City Development,Recreation,Transport,Plant Spares,346,01-Feb-2012,1202-00721,526.80,R,Binson Bearings,
http://statistics.data.gov.uk/doc/local-authority/00DA,Leeds City Council,Environment & Neighbourhoods,Streetscene Environmental Services,Supplies and Services,Recycling & Reuse Charges,234,21-Feb-2012,1202-00722,1419.09,R,Biowise Ltd,
http://statistics.data.gov.uk/doc/local-authority/00DA,Leeds City Council,City Development,Libraries  Arts & Heritage,Supplies and Services,Other Hired And Contracted Services,265,22-Feb-2012,1202-00723,600.00,R,Bishop Grosseteste University College,
http://statistics.data.gov.uk/doc/local-authority/00DA,Leeds City Council,Adult Social Care,Services For Older People - 65 And Over,Third Party Payments,Nursing Home,570,15-Feb-2012,1202-00724,1100.72,R,Bistre Nursing Home,
http://statistics.data.gov.uk/doc/local-authority/00DA,Leeds City Council,City Development,Libraries  Arts & Heritage,Supplies and Services,Other Hired And Contracted Services,265,03-Feb-2012,1202-00725,3941.00,R,Black Dyke Band 1855 Promotions Ltd,
http://statistics.data.gov.uk/doc/local-authority/00DA,Leeds City Council,Adult Social Care,Other Adult Services,Third Party Payments,Payments To Voluntary Organisations,561,03-Feb-2012,1202-00726,72425.25,R,Black Health Agency,
http://statistics.data.gov.uk/doc/local-authority/00DA,Leeds City Council,Central & Corporate Functions,Support And Facilities Trading Services,Supplies and Services,Operational Materials,205,21-Feb-2012,1202-00727,731.60,R,Blackburns Metals Limited,
http://statistics.data.gov.uk/doc/local-authority/00DA,Leeds City Council,Central & Corporate Functions,Support And Facilities Trading Services,Supplies and Services,Operational Materials,205,21-Feb-2012,1202-00728,1690.66,R,Blackburns Metals Limited,
http://statistics.data.gov.uk/doc/local-authority/00DA,Leeds City Council,Adult Social Care,Services For Older People - 65 And Over,Third Party Payments,Residential Care Emi,571,15-Feb-2012,1202-00729,15982.73,R,Bluebell Lodge Care Home,
http://statistics.data.gov.uk/doc/local-authority/00DA,Leeds City Council,Adult Social Care,Services For Older People - 65 And Over,Third Party Payments,Nursing Care Emi,574,15-Feb-2012,1202-00730,1314.44,R,Bluebell Lodge Care Home,
http://statistics.data.gov.uk/doc/local-authority/00DA,Leeds City Council,Adult Social Care,Services For Older People - 65 And Over,Third Party Payments,Residential,580,15-Feb-2012,1202-00731,2539.00,R,Bluebell Lodge Care Home,
http://statistics.data.gov.uk/doc/local-authority/00DA,Leeds City Council,City Development,Economic Development,Supplies and Services,Other Hired And Contracted Services,265,29-Feb-2012,1202-00732,1350.00,R,Blueclaw Media Ltd,
http://statistics.data.gov.uk/doc/local-authority/00DA,Leeds City Council,City Development,Recreation,Supplies and Services,Operational Furniture And Equipment,203,10-Feb-2012,1202-00733,972.58,R,Bob Wild Grass Machinery,
http://statistics.data.gov.uk/doc/local-authority/00DA,Leeds City Council,City Development,Recreation,Capital,Furniture And Equipment,5,14-Feb-2012,1202-00734,480.20,C,Bob Wild Grass Machinery,
http://statistics.data.gov.uk/doc/local-authority/00DA,Leeds City Council,Central & Corporate Functions,Commercial Services Trading Services,Supplies and Services,Operational Materials,205,03-Feb-2012,1202-00735,865.00,R,Boiler & Heating Supplies Ltd,
http://statistics.data.gov.uk/doc/local-authority/00DA,Leeds City Council,Central & Corporate Functions,Commercial Services Trading Services,Supplies and Services,Operational Materials,205,03-Feb-2012,1202-00736,709.40,R,Boiler & Heating Supplies Ltd,
http://statistics.data.gov.uk/doc/local-authority/00DA,Leeds City Council,Central & Corporate Functions,Commercial Services Trading Services,Supplies and Services,Operational Materials,205,03-Feb-2012,1202-00737,830.00,R,Boiler & Heating Supplies Ltd,
http://statistics.data.gov.uk/doc/local-authority/00DA,Leeds City Council,Central & Corporate Functions,Commercial Services Trading Services,Supplies and Services,Operational Materials,205,09-Feb-2012,1202-00738,1105.00,R,Boiler & Heating Supplies Ltd,
http://statistics.data.gov.uk/doc/local-authority/00DA,Leeds City Council,Central & Corporate Functions,Commercial Services Trading Services,Supplies and Services,Operational Materials,205,09-Feb-2012,1202-00739,785.00,R,Boiler & Heating Supplies Ltd,
http://statistics.data.gov.uk/doc/local-authority/00DA,Leeds City Council,Central & Corporate Functions,Commercial Services Trading Services,Supplies and Services,Operational Materials,205,16-Feb-2012,1202-00740,498.87,R,Boiler & Heating Supplies Ltd,
http://statistics.data.gov.uk/doc/local-authority/00DA,Leeds City Council,Central & Corporate Functions,Commercial Services Trading Services,Supplies and Services,Operational Materials,205,23-Feb-2012,1202-00741,650.00,R,Boiler & Heating Supplies Ltd,
http://statistics.data.gov.uk/doc/local-authority/00DA,Leeds City Council,Central & Corporate Functions,Commercial Services Trading Services,Supplies and Services,Operational Materials,205,23-Feb-2012,1202-00742,560.00,R,Boiler & Heating Supplies Ltd,
http://statistics.data.gov.uk/doc/local-authority/00DA,Leeds City Council,City Development,Libraries  Arts & Heritage,Supplies and Services,Resaleable Materials,204,17-Feb-2012,1202-00743,4350.15,R,Book Tokens Ltd,
http://statistics.data.gov.uk/doc/local-authority/00DA,Leeds City Council,City Development,Libraries  Arts & Heritage,Supplies and Services,Books & Audio-Visual Materials,206,03-Feb-2012,1202-00744,1002.39,R,Books Asia,
http://statistics.data.gov.uk/doc/local-authority/00DA,Leeds City Council,City Development,Libraries  Arts & Heritage,Supplies and Services,Books & Audio-Visual Materials,206,03-Feb-2012,1202-00745,507.67,R,Books Asia,
http://statistics.data.gov.uk/doc/local-authority/00DA,Leeds City Council,City Development,Planning & Sustainable Development,Supplies and Services,Non-Recurring Grants,227,23-Feb-2012,1202-00746,905.00,R,Boston Spa Parish Council,
http://statistics.data.gov.uk/doc/local-authority/00DA,Leeds City Council,Childrens Services,Learning Skills & Universal,Supplies and Services,Food & Drink,231,08-Feb-2012,1202-00747,480.00,R,Boutique Catering Ltd,
http://statistics.data.gov.uk/doc/local-authority/00DA,Leeds City Council,Central & Corporate Functions,Commercial Services Trading Services,Supplies and Services,Other Hired And Contracted Services,265,07-Feb-2012,1202-00748,1080.85,R,Bps Ltd,
http://statistics.data.gov.uk/doc/local-authority/00DA,Leeds City Council,Other Education Services,Refurbishment Works,Capital,Construction,3,22-Feb-2012,1202-00749,16148.01,C,Bps Ltd,
http://statistics.data.gov.uk/doc/local-authority/00DA,Leeds City Council,Environment & Neighbourhoods,Strategy & Commissioning,Third Party Payments,Supporting Ppl - Block Gross Chargeable,514,24-Feb-2012,1202-00750,1061.49,R,Bradford And Northern Housing,
http://statistics.data.gov.uk/doc/local-authority/00DA,Leeds City Council,City Development,Economic Development,Income,Admissions  Booking Fees & Ticket Sales,933,23-Feb-2012,1202-00751,648.48,R,Bradford Council,
http://statistics.data.gov.uk/doc/local-authority/00DA,Leeds City Council as Accountable Body,Social Services Pooled Budgets,Jcs For People With Learning Disabilitie,Third Party Payments,Home Care,568,17-Feb-2012,1202-00752,26984.00,R,Bradford District Care Trust,
http://statistics.data.gov.uk/doc/local-authority/00DA,Leeds City Council,Adult Social Care,Services For Older People - 65 And Over,Third Party Payments,Nursing Home,570,15-Feb-2012,1202-00753,8159.68,R,Bradford Independent (St Ives) Ltd,
http://statistics.data.gov.uk/doc/local-authority/00DA,Leeds City Council,Adult Social Care,Services For Older People Under 65 P/Dis,Third Party Payments,Nursing Home,570,15-Feb-2012,1202-00754,2074.28,R,Bradford Independent (St Ives) Ltd,
http://statistics.data.gov.uk/doc/local-authority/00DA,Leeds City Council,Adult Social Care,Services For Adults Under 65 Mental/Dis,Third Party Payments,Residential,580,15-Feb-2012,1202-00755,1475.76,R,Bradford Independent (St Ives) Ltd,
http://statistics.data.gov.uk/doc/local-authority/00DA,Leeds City Council,Adult Social Care,Services For Older People Under 65 P/Dis,Third Party Payments,Residential,580,15-Feb-2012,1202-00756,1946.80,R,Bradford Independent (St Ives) Ltd,
http://statistics.data.gov.uk/doc/local-authority/00DA,Leeds City Council,Adult Social Care,Services For Adults Under 65 Mental/Dis,Third Party Payments,Nursing Home,570,15-Feb-2012,1202-00757,3306.84,R,Bradford Independent Health Care,
http://statistics.data.gov.uk/doc/local-authority/00DA,Leeds City Council,Adult Social Care,Services For Older People - 65 And Over,Third Party Payments,Nursing Home,570,15-Feb-2012,1202-00758,2625.20,R,Bradford Independent Health Care,
http://statistics.data.gov.uk/doc/local-authority/00DA,Leeds City Council,Adult Social Care,Services For Adults Under 65 Mental/Dis,Third Party Payments,Nursing Home,570,15-Feb-2012,1202-00759,22291.80,R,Bradford Independent Health Care,
http://statistics.data.gov.uk/doc/local-authority/00DA,Leeds City Council,Adult Social Care,Services For Older People - 65 And Over,Third Party Payments,Nursing Home,570,15-Feb-2012,1202-00760,10074.12,R,Bradford Independent Health Care,
http://statistics.data.gov.uk/doc/local-authority/00DA,Leeds City Council,Adult Social Care,Services For Older People Under 65 P/Dis,Third Party Payments,Nursing Home,570,15-Feb-2012,1202-00761,2235.32,R,Bradford Independent Health Care,
http://statistics.data.gov.uk/doc/local-authority/00DA,Leeds City Council,Adult Social Care,Services For Older People - 65 And Over,Third Party Payments,Residential Care Emi,571,15-Feb-2012,1202-00762,1656.32,R,Bradford Independent Health Care,
http://statistics.data.gov.uk/doc/local-authority/00DA,Leeds City Council,Adult Social Care,Services For Older People - 65 And Over,Third Party Payments,Residential Care Emi,571,15-Feb-2012,1202-00763,1727.88,R,Bradford Independent Health Care,
http://statistics.data.gov.uk/doc/local-authority/00DA,Leeds City Council,Adult Social Care,Services For Older People - 65 And Over,Third Party Payments,Nursing Care Emi,574,15-Feb-2012,1202-00764,4020.53,R,Bradford Independent Health Care,
http://statistics.data.gov.uk/doc/local-authority/00DA,Leeds City Council,Adult Social Care,Services For Older People - 65 And Over,Third Party Payments,Nursing Care Emi,574,15-Feb-2012,1202-00765,3238.80,R,Bradford Independent Health Care,
http://statistics.data.gov.uk/doc/local-authority/00DA,Leeds City Council,Adult Social Care,Services For Adults Under 65 Mental/Dis,Third Party Payments,Residential,580,15-Feb-2012,1202-00766,1152.16,R,Bradford Independent Health Care,
http://statistics.data.gov.uk/doc/local-authority/00DA,Leeds City Council,Adult Social Care,Services For Adults Under 65 Mental/Dis,Third Party Payments,Residential,580,15-Feb-2012,1202-00767,9672.95,R,Bradford Independent Health Care,
http://statistics.data.gov.uk/doc/local-authority/00DA,Leeds City Council,Adult Social Care,Services For Older People - 65 And Over,Third Party Payments,Residential,580,15-Feb-2012,1202-00768,1098.24,R,Bradford Independent Health Care,
http://statistics.data.gov.uk/doc/local-authority/00DA,Leeds City Council as Accountable Body,Social Services Pooled Budgets,Jcs For People With Learning Disabilitie,Third Party Payments,Nursing Home,570,15-Feb-2012,1202-00769,1808.20,R,Bradford Independent Health Care,
http://statistics.data.gov.uk/doc/local-authority/00DA,Leeds City Council,Adult Social Care,Services For Adults Under 65 Mental/Dis,Third Party Payments,Nursing Home,570,15-Feb-2012,1202-00770,1420.08,R,Bradford Independent Health Care Owlett,
http://statistics.data.gov.uk/doc/local-authority/00DA,Leeds City Council,Adult Social Care,Services For Older People - 65 And Over,Third Party Payments,Nursing Home,570,15-Feb-2012,1202-00771,22074.09,R,Bradford Independent Health Care Owlett,
http://statistics.data.gov.uk/doc/local-authority/00DA,West - North West                    ,West - North West,Property And Maintenance,Premises,H.R.A. - Special Maintenance,106,15-Feb-2012,1202-00772,806.60,R,Bradley Environmental Consultants,
http://statistics.data.gov.uk/doc/local-authority/00DA,Aire Valley Homes Leeds             ,Aire Valley Homes Leeds,S. Offices,Premises,H.R.A. - Special Maintenance,106,29-Feb-2012,1202-00773,452.35,R,Bradley Environmental Consultants,
http://statistics.data.gov.uk/doc/local-authority/00DA,Leeds City Council,Other Education Services,Primary Schools,Capital,Other Costs,7,17-Feb-2012,1202-00774,747.50,C,Bradshaw Gass And Hope,
http://statistics.data.gov.uk/doc/local-authority/00DA,Leeds City Council,Adult Social Care,Services For Older People - 65 And Over,Third Party Payments,Sheltered Accommodation,569,15-Feb-2012,1202-00775,4930.56,R,Brain Injury Rehabilitation Trust,
http://statistics.data.gov.uk/doc/local-authority/00DA,Leeds City Council,Adult Social Care,Services For Older People Under 65 P/Dis,Third Party Payments,Sheltered Accommodation,569,15-Feb-2012,1202-00776,17621.04,R,Brain Injury Rehabilitation Trust,
http://statistics.data.gov.uk/doc/local-authority/00DA,Leeds City Council,Adult Social Care,Services For Older People Under 65 P/Dis,Third Party Payments,Sheltered Accommodation,569,15-Feb-2012,1202-00777,13187.08,R,Brain Injury Rehabilitation Trust,
http://statistics.data.gov.uk/doc/local-authority/00DA,Leeds City Council,Adult Social Care,Services For Adults Under 65 Mental/Dis,Third Party Payments,Nursing Home,570,15-Feb-2012,1202-00778,3782.20,R,Brain Injury Rehabilitation Trust,
http://statistics.data.gov.uk/doc/local-authority/00DA,Leeds City Council,Adult Social Care,Services For Older People Under 65 P/Dis,Third Party Payments,Residential,580,15-Feb-2012,1202-00779,4642.96,R,Brain Injury Rehabilitation Trust,
http://statistics.data.gov.uk/doc/local-authority/00DA,Leeds City Council,Adult Social Care,Services For Older People Under 65 P/Dis,Third Party Payments,Residential,580,15-Feb-2012,1202-00780,14339.52,R,Brain Injury Rehabilitation Trust,
http://statistics.data.gov.uk/doc/local-authority/00DA,Leeds City Council,Adult Social Care,Services For Older People Under 65 P/Dis,Third Party Payments,Home Care,568,03-Feb-2012,1202-00781,1478.98,R,Brain Injury Rehabillitation Trust,
http://statistics.data.gov.uk/doc/local-authority/00DA,Leeds City Council,Adult Social Care,Services For Older People Under 65 P/Dis,Third Party Payments,Home Care,568,03-Feb-2012,1202-00782,655.84,R,Brain Injury Rehabillitation Trust,
http://statistics.data.gov.uk/doc/local-authority/00DA,Leeds City Council,Adult Social Care,Services For Older People Under 65 P/Dis,Third Party Payments,Home Care,568,03-Feb-2012,1202-00783,655.84,R,Brain Injury Rehabillitation Trust,
http://statistics.data.gov.uk/doc/local-authority/00DA,Leeds City Council as Accountable Body,Social Services Pooled Budgets,Jcs For People With Learning Disabilitie,Third Party Payments,Home Care,568,10-Feb-2012,1202-00784,1575.11,R,Brain Injury Rehabillitation Trust,
http://statistics.data.gov.uk/doc/local-authority/00DA,Leeds City Council,City Development,Libraries  Arts & Heritage  ,Supplies and Services,Provisions,231,11-Jan-2012,1202-00785,517.40,R,Brake Bros Ltd,
http://statistics.data.gov.uk/doc/local-authority/00DA,Leeds City Council,Childrens Services,Learning Skills & Universal,Premises,Maintenance Of Buildings,101,10-Feb-2012,1202-00786,980.00,R,Bramley Glass Construction,
http://statistics.data.gov.uk/doc/local-authority/00DA,Leeds City Council,Childrens Services,Learning Skills & Universal,Premises,Maintenance Of Buildings,101,10-Feb-2012,1202-00787,600.00,R,Bramley Glass Construction,
http://statistics.data.gov.uk/doc/local-authority/00DA,Leeds City Council,Childrens Services,Learning Skills & Universal,Premises,Maintenance Of Buildings,101,10-Feb-2012,1202-00788,600.00,R,Bramley Glass Construction,
http://statistics.data.gov.uk/doc/local-authority/00DA,Leeds City Council,Adult Social Care,Services For Older People - 65 And Over,Third Party Payments,Nursing Home,570,15-Feb-2012,1202-00789,20135.51,R,Brandon House,
http://statistics.data.gov.uk/doc/local-authority/00DA,Leeds City Council,Adult Social Care,Services For Older People - 65 And Over,Third Party Payments,Nursing Care Emi,574,15-Feb-2012,1202-00790,1178.52,R,Brandon House,
http://statistics.data.gov.uk/doc/local-authority/00DA,Leeds City Council,Adult Social Care,Services For Older People - 65 And Over,Third Party Payments,Residential,580,15-Feb-2012,1202-00791,1126.60,R,Brandon House,
http://statistics.data.gov.uk/doc/local-authority/00DA,Leeds City Council,Central & Corporate Functions,Commercial Services Trading Services,Transport,Fuel (Non LCC Supplies),321,10-Feb-2012,1202-00792,495.00,R,Brenntag Uk Limited,
http://statistics.data.gov.uk/doc/local-authority/00DA,Leeds City Council,Central & Corporate Functions,Commercial Services Trading Services,Transport,Fuel (Non LCC Supplies),321,10-Feb-2012,1202-00793,495.00,R,Brenntag Uk Limited,
http://statistics.data.gov.uk/doc/local-authority/00DA,Leeds City Council,Childrens Services,Learning Skills & Universal,Premises,Rents,141,06-Feb-2012,1202-00794,585.00,R,Bridge Street Pentecostal Church Ltd,
http://statistics.data.gov.uk/doc/local-authority/00DA,Leeds City Council,Childrens Services,Learning Skills & Universal,Third Party Payments,Services Rendered By Other Organisations,511,28-Feb-2012,1202-00795,1347.00,R,Bright Beginnings Childcare Centre,
http://statistics.data.gov.uk/doc/local-authority/00DA,Leeds City Council,Childrens Services,Learning Skills & Universal,Third Party Payments,Services Rendered By Other Organisations,511,28-Feb-2012,1202-00796,545.00,R,Bright Horizons Family Solutions,
http://statistics.data.gov.uk/doc/local-authority/00DA,Leeds City Council,Childrens Services,Safeguarding Targeted & Specialist,Third Party Payments,Fostering - Placement Support,550,24-Feb-2012,1202-00797,496.00,R,Bright Skies Day Nursery,
http://statistics.data.gov.uk/doc/local-authority/00DA,Leeds City Council,Childrens Services,Learning Skills & Universal,Third Party Payments,Services Rendered By Other Organisations,511,28-Feb-2012,1202-00798,1160.00,R,Bright Sparks Pre-School,
http://statistics.data.gov.uk/doc/local-authority/00DA,Leeds City Council,Central & Corporate Functions,Commercial Services Trading Services,Transport,Vehicle Spares,345,03-Feb-2012,1202-00799,643.60,R,Britannia Cooling Ltd,
http://statistics.data.gov.uk/doc/local-authority/00DA,Leeds City Council,Adult Social Care,Services For Adults Under 65 Mental/Dis,Third Party Payments,Residential,580,15-Feb-2012,1202-00800,1900.00,R,Britannia Nursing Home,
http://statistics.data.gov.uk/doc/local-authority/00DA,Leeds City Council,Childrens Services,Safeguarding Targeted & Specialist,Third Party Payments,Panel Expenses,543,20-Feb-2012,1202-00801,2478.00,R,British Agencies For Adoption &,
http://statistics.data.gov.uk/doc/local-authority/00DA,Leeds City Council,Childrens Services,Safeguarding Targeted & Specialist,Third Party Payments,Adoptions - Allowances,560,20-Feb-2012,1202-00802,960.00,R,British Agencies For Adoption &,
http://statistics.data.gov.uk/doc/local-authority/00DA,Leeds City Council,Childrens Services,Safeguarding Targeted & Specialist,Third Party Payments,Adoptions - Allowances,560,20-Feb-2012,1202-00803,866.30,R,British Association Of Play Therapists,
http://statistics.data.gov.uk/doc/local-authority/00DA,Leeds City Council,Childrens Services,Learning Skills & Universal,Supplies and Services,Schools Examination Entry Fees,269,01-Feb-2012,1202-00804,420.00,R,British Computer Society,
http://statistics.data.gov.uk/doc/local-authority/00DA,Leeds City Council,Childrens Services,Learning Skills & Universal,Supplies and Services,Schools Examination Entry Fees,269,01-Feb-2012,1202-00805,-420.00,R,British Computer Society,
http://statistics.data.gov.uk/doc/local-authority/00DA,Leeds City Council,Central & Corporate Functions,Commercial Services Trading Services,Supplies and Services,Operational Materials,205,15-Feb-2012,1202-00806,1094.00,R,British Electrical & Manufacturing,
http://statistics.data.gov.uk/doc/local-authority/00DA,Leeds City Council,Central & Corporate Functions,Commercial Services Trading Services,Supplies and Services,Operational Materials,205,15-Feb-2012,1202-00807,724.50,R,British Electrical & Manufacturing,
http://statistics.data.gov.uk/doc/local-authority/00DA,Leeds City Council,Childrens Services,Learning Skills & Universal,Premises,Electricity,124,09-Feb-2012,1202-00808,800.67,R,British Gas,
http://statistics.data.gov.uk/doc/local-authority/00DA,Leeds City Council,Environment & Neighbourhoods,Statutory Housing,Premises,Electricity,124,07-Feb-2012,1202-00809,65000.00,R,British Gas Business,
http://statistics.data.gov.uk/doc/local-authority/00DA,Leeds City Council,Childrens Services,Learning Skills & Universal,Premises,Electricity,124,09-Feb-2012,1202-00810,976.97,R,British Gas Business,
http://statistics.data.gov.uk/doc/local-authority/00DA,Leeds City Council,Environment & Neighbourhoods,Community Safety,Supplies and Services,Other Hired And Contracted Services,265,09-Feb-2012,1202-00811,586.87,R,British Gas Business,
http://statistics.data.gov.uk/doc/local-authority/00DA,Leeds City Council,Environment & Neighbourhoods,Community Safety,Supplies and Services,Other Hired And Contracted Services,265,22-Feb-2012,1202-00812,600.82,R,British Gas Business,
http://statistics.data.gov.uk/doc/local-authority/00DA,Leeds City Council,Environment & Neighbourhoods,Community Safety,Supplies and Services,Other Hired And Contracted Services,265,22-Feb-2012,1202-00813,473.74,R,British Gas Business,
http://statistics.data.gov.uk/doc/local-authority/00DA,Leeds City Council,Environment & Neighbourhoods,West North West,Capital,Construction,3,08-Feb-2012,1202-00814,6391.65,C,British Gas Services Ltd,
http://statistics.data.gov.uk/doc/local-authority/00DA,Leeds City Council,Environment & Neighbourhoods,South South East,Capital,Construction,3,14-Feb-2012,1202-00815,2973.00,C,British Gas Services Ltd,
http://statistics.data.gov.uk/doc/local-authority/00DA,Leeds City Council,Environment & Neighbourhoods,West North West,Capital,Construction,3,14-Feb-2012,1202-00816,9002.43,C,British Gas Services Ltd,
http://statistics.data.gov.uk/doc/local-authority/00DA,Leeds City Council,Environment & Neighbourhoods,East North East,Capital,Construction,3,14-Feb-2012,1202-00817,34703.00,C,British Gas Services Ltd,
http://statistics.data.gov.uk/doc/local-authority/00DA,Leeds City Council,Environment & Neighbourhoods,South South East,Capital,Construction,3,24-Feb-2012,1202-00818,23731.00,C,British Gas Services Ltd,
http://statistics.data.gov.uk/doc/local-authority/00DA,Leeds City Council,Environment & Neighbourhoods,West North West,Capital,Construction,3,24-Feb-2012,1202-00819,3926.63,C,British Gas Services Ltd,
http://statistics.data.gov.uk/doc/local-authority/00DA,Leeds City Council,Environment & Neighbourhoods,West North West,Capital,Construction,3,24-Feb-2012,1202-00820,6231.24,C,British Gas Services Ltd,
http://statistics.data.gov.uk/doc/local-authority/00DA,Leeds City Council,Environment & Neighbourhoods,Belle Isle,Capital,Construction,3,24-Feb-2012,1202-00821,2875.00,C,British Gas Services Ltd,
http://statistics.data.gov.uk/doc/local-authority/00DA,Leeds City Council,Environment & Neighbourhoods,East North East,Capital,Construction,3,24-Feb-2012,1202-00822,25752.00,C,British Gas Services Ltd,
http://statistics.data.gov.uk/doc/local-authority/00DA,Leeds City Council,Adult Social Care,Other Generic Services,Supplies and Services,Telephones,213,17-Feb-2012,1202-00823,470.57,R,British Telecom,
http://statistics.data.gov.uk/doc/local-authority/00DA,Leeds City Council,Adult Social Care,Other Generic Services,Supplies and Services,Telephones,213,17-Feb-2012,1202-00824,619.17,R,British Telecom,
http://statistics.data.gov.uk/doc/local-authority/00DA,Leeds City Council,City Development,Highways,Capital,Construction,3,28-Feb-2012,1202-00825,1245.35,C,British Telecom,
http://statistics.data.gov.uk/doc/local-authority/00DA,Leeds City Council,City Development,Highways,Capital,Construction,3,28-Feb-2012,1202-00826,1339.61,C,British Telecom,
http://statistics.data.gov.uk/doc/local-authority/00DA,Leeds City Council,City Development,Highways,Capital,Construction,3,28-Feb-2012,1202-00827,568.00,C,British Telecom,
http://statistics.data.gov.uk/doc/local-authority/00DA,East - North East                    ,East - North East,Business Improvement,Supplies and Services,Telephones,213,03-Feb-2012,1202-00828,747.50,R,British Telecom Bt/Bacs,
http://statistics.data.gov.uk/doc/local-authority/00DA,East - North East                    ,East - North East,Housing Services,Supplies and Services,Telephones,213,08-Feb-2012,1202-00829,5454.27,R,British Telecom Bt/Bacs,
http://statistics.data.gov.uk/doc/local-authority/00DA,Leeds City Council,City Development,Highways,Supplies and Services,Operational Furniture And Equipment,203,15-Feb-2012,1202-00830,69425.53,R,British Telecom Bt/Bacs,
http://statistics.data.gov.uk/doc/local-authority/00DA,Leeds City Council,City Development,Support Services,Supplies and Services,Telephones,213,17-Feb-2012,1202-00831,4468.90,R,British Telecom Bt/Bacs,
http://statistics.data.gov.uk/doc/local-authority/00DA,Leeds City Council,Central & Corporate Functions,Information Technology,Supplies and Services,Telephones,213,22-Feb-2012,1202-00832,59743.35,R,British Telecom Bt/Bacs,
http://statistics.data.gov.uk/doc/local-authority/00DA,Leeds City Council,Childrens Services,Partnership Development & Leadership,Supplies and Services,Telephones,213,28-Feb-2012,1202-00833,21673.83,R,British Telecom Bt/Bacs,
http://statistics.data.gov.uk/doc/local-authority/00DA,Leeds City Council,City Development,Highways,Capital,Construction,3,10-Feb-2012,1202-00834,1941.01,C,British Telecommunications Plc,
http://statistics.data.gov.uk/doc/local-authority/00DA,Leeds City Council,City Development,Recreation,Supplies and Services,Food & Drink,231,23-Feb-2012,1202-00835,455.06,R,Britvic Soft Drinks Ltd,
http://statistics.data.gov.uk/doc/local-authority/00DA,Leeds City Council,City Development,Highways,Income,Work Done / Services Provided,931,09-Feb-2012,1202-00836,1250.00,R,Broadstone Group Ltd,
http://statistics.data.gov.uk/doc/local-authority/00DA,Leeds City Council,Adult Social Care,Services For Older People - 65 And Over,Third Party Payments,Residential,580,15-Feb-2012,1202-00837,1064.12,R,Broadway Lodge,
http://statistics.data.gov.uk/doc/local-authority/00DA,Leeds City Council,Central & Corporate Functions,Commercial Services Trading Services,Supplies and Services,Operational Materials,205,08-Feb-2012,1202-00838,970.70,R,Broag Ltd,
http://statistics.data.gov.uk/doc/local-authority/00DA,Leeds City Council,Childrens Services,Safeguarding Targeted & Specialist  ,Supplies and Services,Provisions,231,10-Jan-2012,1202-00839,458.25,R,Bronte Natural Spring Wa,
http://statistics.data.gov.uk/doc/local-authority/00DA,Leeds City Council,Adult Social Care,Services For Older People - 65 And Over,Third Party Payments,Nursing Home,570,15-Feb-2012,1202-00840,1273.60,R,Brooklands Residential Home,
http://statistics.data.gov.uk/doc/local-authority/00DA,Leeds City Council,Adult Social Care,Services For Older People - 65 And Over,Third Party Payments,Residential Care Emi,571,15-Feb-2012,1202-00841,3646.60,R,Brooklands Residential Home,
http://statistics.data.gov.uk/doc/local-authority/00DA,Leeds City Council,Adult Social Care,Services For Older People - 65 And Over,Third Party Payments,Residential,580,15-Feb-2012,1202-00842,11929.28,R,Brooklands Residential Home,
http://statistics.data.gov.uk/doc/local-authority/00DA,Leeds City Council as Accountable Body,Social Services Pooled Budgets,Jcs For People With Learning Disabilitie,Third Party Payments,Residential,580,10-Feb-2012,1202-00843,2029.60,R,Brookvale,
http://statistics.data.gov.uk/doc/local-authority/00DA,Leeds City Council as Accountable Body,Social Services Pooled Budgets,Jcs For People With Learning Disabilitie,Third Party Payments,Residential,580,15-Feb-2012,1202-00844,2029.60,R,Brookvale (For The Mentally,
http://statistics.data.gov.uk/doc/local-authority/00DA,Leeds City Council,Childrens Services,Safeguarding Targeted & Specialist,Transport,Private Hire,360,21-Feb-2012,1202-00845,1632.00,R,Broomhill Cars Ltd,
http://statistics.data.gov.uk/doc/local-authority/00DA,Leeds City Council as Accountable Body,Social Services Pooled Budgets,Jcs For People With Learning Disabilitie,Third Party Payments,Residential,580,15-Feb-2012,1202-00846,1850.72,R,Brothers Of Charity,
http://statistics.data.gov.uk/doc/local-authority/00DA,Leeds City Council,Childrens Services,Learning Skills & Universal,Third Party Payments,Services Rendered By Voluntary Sector,505,28-Feb-2012,1202-00847,787.00,R,Brownberrie Lane Pre-School,
http://statistics.data.gov.uk/doc/local-authority/00DA,Leeds City Council,Childrens Services,Safeguarding Targeted & Specialist,Third Party Payments,Other External Residential Placements,508,01-Feb-2012,1202-00848,14400.00,R,Browning House,
http://statistics.data.gov.uk/doc/local-authority/00DA,Leeds City Council,Childrens Services,Safeguarding Targeted & Specialist,Third Party Payments,Other External Residential Placements,508,01-Feb-2012,1202-00849,17600.00,R,Browning House,
http://statistics.data.gov.uk/doc/local-authority/00DA,Leeds City Council,Childrens Services,Safeguarding Targeted & Specialist,Third Party Payments,Other External Residential Placements,508,01-Feb-2012,1202-00850,17600.00,R,Browning House,
http://statistics.data.gov.uk/doc/local-authority/00DA,Leeds City Council,Childrens Services,Safeguarding Targeted & Specialist,Third Party Payments,Other External Residential Placements,508,01-Feb-2012,1202-00851,15085.71,R,Browning House,
http://statistics.data.gov.uk/doc/local-authority/00DA,Leeds City Council,Childrens Services,Safeguarding Targeted & Specialist,Third Party Payments,Other External Residential Placements,508,01-Feb-2012,1202-00852,7200.00,R,Browning House,
http://statistics.data.gov.uk/doc/local-authority/00DA,Leeds City Council,Childrens Services,Safeguarding Targeted & Specialist,Third Party Payments,Other External Residential Placements,508,01-Feb-2012,1202-00853,14457.14,R,Browning House,
http://statistics.data.gov.uk/doc/local-authority/00DA,Leeds City Council,Childrens Services,Safeguarding Targeted & Specialist,Third Party Payments,Other External Residential Placements,508,01-Feb-2012,1202-00854,5142.87,R,Browning House,
http://statistics.data.gov.uk/doc/local-authority/00DA,Leeds City Council,Childrens Services,Safeguarding Targeted & Specialist,Third Party Payments,Other External Residential Placements,508,01-Feb-2012,1202-00855,6744.00,R,Browning House,
http://statistics.data.gov.uk/doc/local-authority/00DA,Leeds City Council,Childrens Services,Safeguarding Targeted & Specialist,Third Party Payments,Other External Residential Placements,508,02-Feb-2012,1202-00856,7864.00,R,Browning House,
http://statistics.data.gov.uk/doc/local-authority/00DA,Leeds City Council,Childrens Services,Safeguarding Targeted & Specialist,Third Party Payments,Other External Residential Placements,508,13-Feb-2012,1202-00857,11576.95,R,Browning House,
http://statistics.data.gov.uk/doc/local-authority/00DA,Leeds City Council,Childrens Services,Safeguarding Targeted & Specialist,Third Party Payments,Other External Residential Placements,508,13-Feb-2012,1202-00858,6946.17,R,Browning House,
http://statistics.data.gov.uk/doc/local-authority/00DA,Leeds City Council,Childrens Services,Safeguarding Targeted & Specialist,Third Party Payments,Section 17,551,14-Feb-2012,1202-00859,3992.00,R,Browning House,
http://statistics.data.gov.uk/doc/local-authority/00DA,Leeds City Council,Childrens Services,Safeguarding Targeted & Specialist,Third Party Payments,Section 17,551,14-Feb-2012,1202-00860,1290.00,R,Browning House,
http://statistics.data.gov.uk/doc/local-authority/00DA,Leeds City Council,City Development,Recreation,Capital,Construction,3,10-Feb-2012,1202-00861,4500.00,C,Broxap Ltd,
http://statistics.data.gov.uk/doc/local-authority/00DA,Leeds City Council,City Development,Recreation,Supplies and Services,Operational Materials,205,22-Feb-2012,1202-00862,4200.00,R,Broxap Ltd,
http://statistics.data.gov.uk/doc/local-authority/00DA,Leeds City Council,City Development,Asset Management Services,Premises,Electricity,124,15-Feb-2012,1202-00863,570.50,R,Bruntwood 2000 Alpha Portfolio Ltd,
